Workbook

Sheet BD RD Summary
C2: =IF($P$3="Renewable Diesel","Summary of the Tier 1 Renewable Diesel Pathway (Release Date: August 13, 2018-corrected)","Summary of the Tier 1 Biodiesel Pathway (Release Date: August 13, 2018-corrected)") -> Summary of the Tier 1 Renewable Diesel Pathway (Release Date: August 13, 2018-corrected) | P2: Select Summary for:
C3: Applicant: | D3: =IF($P$3="Biodiesel",'BD-Production'!B7,'RD-Production'!B6) -> 0 | J3: =IF($P$3="Biodiesel","Location: "& 'BD-Production'!E7," Location: "& 'RD-Production'!F6) -> Location: | P3: Renewable Diesel
C4: Application # | D4: =IF($P$3="Biodiesel",'BD-Production'!I7,'RD-Production'!I6) -> 0 | G4: Application Date | H4: =IF(P3="Biodiesel",'BD-Production'!B9,'RD-Production'!A9) -> MM/DD/YYYY | J4: Facility ID # | K4: =IF($P$3="Biodiesel", 'BD-Production'!I8,'RD-Production'!I7) -> 0 | M4: Provisional | N4: =IF($P$3="Biodiesel",'BD-Production'!E8,'RD-Production'!F7) -> No | O4: =IF($P$3="Biodiesel",'BD-Production'!F8,'RD-Production'!G7) -> If yes, enter Month and Year of Provided Data
C5: Feedstock Production Electricity Mix | E5: As Specified Below | J5: Fuel Production Electricity Mix | K5: =IF(P3="Biodiesel",'BD-Production'!H18,'RD-Production'!H21) -> 1-U.S Ave Mix | P5: =IF($P$3="Biodiesel","Biodiesel","Renewable Diesel") -> Renewable Diesel | T5: =IF($P$3="Biodiesel","","Renewable Naptha") -> Renewable Naptha | X5: =IF($P$3="Biodiesel","","Renewable Propane") -> Renewable Propane | AB5: =IF($P$3="Biodiesel","","Other Co-Products") -> Other Co-Products
C6: Feedstock Production | J6: Fuel Production | M6: Different Feedstock for Fuel Production | P6: Carbon Intensity (gCO2e/MJ) | Q6: Margin of Safety CI, gCO2e/MJ | R6: Total CI, gCO2e/MJ | S6: Correspondent Volume (gallons) | T6: Carbon Intensity (gCO2e/MJ) | U6: Margin of Safety CI, gCO2e/MJ | V6: Total CI, gCO2e/MJ | W6: Correspondent Volume (gallons) | X6: Carbon Intensity (gCO2e/MJ) | Y6: Margin of Safety CI, gCO2e/MJ | Z6: Total CI, gCO2e/MJ | AA6: Correspondent Volume (gallons) | AB6: Carbon Intensity (gCO2e/MJ) | AC6: Margin of Safety CI, gCO2e/MJ | AD6: Total CI, gCO2e/MJ | AE6: =CONCATENATE("Correspondent Volume")&" "&'RD-Production'!M26 -> Correspondent Volume gallons (@ 60°F) or specify applicable unit
C7: Feedstock Production | D7: Column2 | E7: Column1 | F7: Column3 | G7: Column4 | H7: Column5 | J7: Fuel Production | K7: Column1
C8: Feedstock | D8: Quantity, lbs. | E8: Electricity Generation Mix | F8: Oil Extraction Energy, Btu/lb oil | G8: Rendering Energy, Btu/lb oil | J8: =IF(D99="Biodiesel","Total Biodiesel, gallons","Total Renewable Diesel, gallons") -> Total Renewable Diesel, gallons | K8: =IF($P$3="Biodiesel",'BD-Production'!C48,'RD-Production'!C51) -> 0 | M8: =IF($P$3="Biodiesel","Soybean " & $P$3,"Soy Oil") -> Soy Oil | P8: =IF($P$3="Biodiesel",'BD-Production'!C10,'RD-Production'!B10) -> 0 | R8: =P8+Q8 -> 0 | S8: =IF($P$3="Biodiesel",'BD-Production'!C11,'RD-Production'!C10) -> 0 | T8: ='RD-Production'!D10 -> 0 | V8: =T8+U8 -> 0 | W8: ='RD-Production'!E10 -> 0 | X8: ='RD-Production'!F10 -> 0 | Z8: =X8+Y8 -> 0 | AA8: ='RD-Production'!G10 -> 0 | AB8: ='RD-Production'!H10 -> 0 | AD8: =AB8+AC8 -> 0 | AE8: ='RD-Production'!I10 -> 0
C9: Soybean Oil | D9: ='Soy Oil'!E39 -> 0 | E9: =IF('Soy Oil'!$D$10="U.S.","U.S.",IF(AND('Soy Oil'!$D$10="User Defined",'Soy Oil'!$G$10=""),"",'Soy Oil'!$G$10)) -> U.S. | F9: =IF(D9=0," ",IF('Soy Oil'!$D$11="User Defined",'Soy Oil'!$J$11,References!$C$92)) ->  | J9: =IF($P$3="Biodiesel","Biodiesel Yield, lbs BD/lb oil","RD Yield, lbs RD/lb oil") -> RD Yield, lbs RD/lb oil | K9: =IF($P$3="Biodiesel",'BD-Production'!$F$156,'RD-Production'!F118) -> 0
C10: Canola Oil | D10: =Canola!E39 -> 0 | E10: =IF(Canola!$D$10="U.S.","U.S.",IF(Canola!$D$10="User Defined",Canola!$G$10)) -> U.S. | F10: =IF(D10=0," ",IF(Canola!$D$11="User Defined",Canola!$J$11,References!$E$92)) ->  | J10: Energy Consumption | M10: =IF($P$3="Biodiesel","Canola Oil " & $P$3,"Canola Oil") -> Canola Oil | P10: =IF($P$3="Biodiesel",'BD-Production'!C12,'RD-Production'!B11) -> 0 | R10: =P10+Q10 -> 0 | S10: =IF($P$3="Biodiesel",'BD-Production'!C13,'RD-Production'!C11) -> 0 | T10: ='RD-Production'!D11 -> 0 | V10: =T10+U10 -> 0 | W10: ='RD-Production'!E11 -> 0 | X10: ='RD-Production'!F11 -> 0 | Z10: =X10+Y10 -> 0 | AA10: ='RD-Production'!G11 -> 0 | AB10: ='RD-Production'!H11 -> 0 | AD10: =AB10+AC10 -> 0 | AE10: ='RD-Production'!I11 -> 0
C11: Corn Oil | D11: ='CornSorghum Oil'!E39 -> 0 | E11: =IF('CornSorghum Oil'!$D$10="U.S.","U.S.",IF(AND('CornSorghum Oil'!$D$10="User Defined",'CornSorghum Oil'!$G$10=""),"",'CornSorghum Oil'!$G$10)) -> U.S. | F11: =IF(D11=0," ",IF('CornSorghum Oil'!$D$11="User Defined",'CornSorghum Oil'!J11,References!$G$92)) ->  | J11: Natural Gas , HHV in MMBtu | K11: =IF($P$3="Biodiesel",'BD-Production'!F48,'RD-Production'!F51) -> 0
C12: Rendered UCO 1 | D12: ='UCO1'!E39 -> 0 | E12: =IF('UCO1'!$D$10="U.S.","U.S.",IF(AND('UCO1'!$D$10="User Defined",'UCO1'!$G$10=""),"",'UCO1'!$G$10)) -> U.S. | G12: =IF(D12=0," ",IF('UCO1'!$D$11="User Defined",'UCO1'!$J$11,References!$I$92)) ->  | J12: Other fuel, HHV in MMBtu | K12: =IF($P$3="Biodiesel",'BD-Production'!H48,'RD-Production'!H51) -> 0 | M12: =IF($P$3="Biodiesel","Corn Oil " & $P$3,"Corn Oil") -> Corn Oil | P12: =IF($P$3="Biodiesel",'BD-Production'!C14,'RD-Production'!B12) -> 0 | R12: =P12+Q12 -> 0 | S12: =IF($P$3="Biodiesel",'BD-Production'!C15,'RD-Production'!C12) -> 0 | T12: ='RD-Production'!D12 -> 0 | V12: =T12+U12 -> 0 | W12: ='RD-Production'!E12 -> 0 | X12: ='RD-Production'!F12 -> 0 | Z12: =X12+Y12 -> 0 | AA12: ='RD-Production'!G12 -> 0 | AB12: ='RD-Production'!H12 -> 0 | AD12: =AB12+AC12 -> 0 | AE12: ='RD-Production'!I12 -> 0
C13: Rendered UCO 2 | D13: ='UCO2'!E39 -> 0 | E13: =IF('UCO2'!$D$10="U.S.","U.S.",IF(AND('UCO2'!$D$10="User Defined",'UCO2'!$G$10=""),"",'UCO2'!$G$10)) -> U.S. | G13: =IF(D13=0," ",IF('UCO2'!$D$11="User Defined",'UCO2'!$J$11,References!$I$92)) ->  | J13: Electricity, kWh | K13: =IF($P$3="Biodiesel",'BD-Production'!G48,'RD-Production'!G51) -> 0
C14: Rendered UCO 3 | D14: ='UCO3'!E39 -> 0 | E14: =IF('UCO3'!$D$10="U.S.","U.S.",IF(AND('UCO3'!$D$10="User Defined",'UCO3'!$G$10=""),"",'UCO3'!$G$10)) -> U.S. | G14: =IF(D14=0," ",IF('UCO3'!$D$11="User Defined",'UCO3'!$J$11,References!$I$92)) ->  | J14: =IF($D$99="Biodiesel","Methanol, lbs.","Hydrogen, lbs.") -> Hydrogen, lbs. | K14: =IF($P$3="Biodiesel",'BD-Production'!J48,'RD-Production'!I51) -> 0 | M14: =IF($P$3="Biodiesel","UCO 1 " & $P$3,"UCO 1") -> UCO 1 | P14: =IF($P$3="Biodiesel",'BD-Production'!F10,'RD-Production'!B13) -> 0 | R14: =P14+Q14 -> 0 | S14: =IF($P$3="Biodiesel",'BD-Production'!F11,'RD-Production'!C13) -> 0 | T14: ='RD-Production'!D13 -> 0 | V14: =T14+U14 -> 0 | W14: ='RD-Production'!E13 -> 0 | X14: ='RD-Production'!F13 -> 0 | Z14: =X14+Y14 -> 0 | AA14: ='RD-Production'!G13 -> 0 | AB14: ='RD-Production'!H13 -> 0 | AD14: =AB14+AC14 -> 0 | AE14: ='RD-Production'!I13 -> 0
C15: Rendered Tallow Oil 1 | D15: =Tallow1!E39 -> 0 | E15: =IF(Tallow1!$D$10="U.S.","U.S.",IF(AND(Tallow1!$D$10="User Defined",Tallow1!$G$10=""),"",Tallow1!$G$10)) -> U.S. | G15: =IF(D15=0," ",IF(Tallow1!$D$11="User Defined",Tallow1!$J$11,References!$K$92)) ->  | M15: =IF($P$3="Biodiesel","UCO 2 " & $P$3,"UCO 2") -> UCO 2 | P15: =IF($P$3="Biodiesel",'BD-Production'!F12,'RD-Production'!B14) -> 0 | R15: =P15+Q15 -> 0 | S15: =IF($P$3="Biodiesel",'BD-Production'!F13,'RD-Production'!C14) -> 0 | T15: ='RD-Production'!D14 -> 0 | V15: =T15+U15 -> 0 | W15: ='RD-Production'!E14 -> 0 | X15: ='RD-Production'!F14 -> 0 | Z15: =X15+Y15 -> 0 | AA15: ='RD-Production'!G14 -> 0 | AB15: ='RD-Production'!H14 -> 0 | AD15: =AB15+AC15 -> 0 | AE15: ='RD-Production'!I14 -> 0
C16: Rendered Tallow Oil 2 | D16: =Tallow2!E39 -> 0 | E16: =IF(Tallow2!$D$10="U.S.","U.S.",IF(AND(Tallow2!$D$10="User Defined",Tallow2!$G$10=""),"",Tallow2!$G$10)) -> U.S. | G16: =IF(D16=0," ",IF(Tallow2!$D$11="User Defined",Tallow2!$J$11,References!$K$92)) ->  | J16: Standard Chemical Usage (gCO2e/MJ) | K16: =IF($P$3="Biodiesel",References!C106,References!C109) -> 0.03 | M16: =IF($P$3="Biodiesel","UCO 3 " & $P$3,"UCO 3") -> UCO 3 | P16: =IF($P$3="Biodiesel",'BD-Production'!F14,'RD-Production'!B15) -> 0 | R16: =P16+Q16 -> 0 | S16: =IF($P$3="Biodiesel",'BD-Production'!F15,'RD-Production'!C15) -> 0 | T16: ='RD-Production'!D15 -> 0 | V16: =T16+U16 -> 0 | W16: ='RD-Production'!E15 -> 0 | X16: ='RD-Production'!F15 -> 0 | Z16: =X16+Y16 -> 0 | AA16: ='RD-Production'!G15 -> 0 | AB16: ='RD-Production'!H15 -> 0 | AD16: =AB16+AC16 -> 0 | AE16: ='RD-Production'!I15 -> 0
C17: Rendered Tallow Oil 3 | D17: =Tallow3!E39 -> 0 | E17: =IF(Tallow3!$D$10="U.S.","U.S.",IF(AND(Tallow3!$D$10="User Defined",Tallow3!$G$10=""),"",Tallow3!$G$10)) -> U.S. | G17: =IF(D17=0," ",IF(Tallow3!$D$11="User Defined",Tallow3!$J$11,References!$K$92)) -> 
C18: Total Feedstock | D18: =SUBTOTAL(109,D8:D17) -> 0 | J18: Fuel Transport | M18: =IF($P$3="Biodiesel","Tallow 1 " & $P$3,"Tallow 1") -> Tallow 1 | P18: =IF($P$3="Biodiesel",'BD-Production'!I10,'RD-Production'!B16) -> 0 | R18: =P18+Q18 -> 0 | S18: =IF($P$3="Biodiesel",'BD-Production'!I11,'RD-Production'!C16) -> 0 | T18: ='RD-Production'!D16 -> 0 | V18: =T18+U18 -> 0 | W18: ='RD-Production'!E16 -> 0 | X18: ='RD-Production'!F16 -> 0 | Z18: =X18+Y18 -> 0 | AA18: ='RD-Production'!G16 -> 0 | AB18: ='RD-Production'!H16 -> 0 | AD18: =AB18+AC18 -> 0 | AE18: ='RD-Production'!I16 -> 0
C19: Feedstock Transport | E19: HDT Truck | F19: Ocean Tanker | G19: Rail | H19: Barge | J19: By HD Truck to ports, miles | K19: =IF($P$3="Biodiesel",'BD-Production'!R24,'RD-Production'!O27) -> 0 | M19: =IF($P$3="Biodiesel","Tallow 2 " & $P$3,"Tallow 2") -> Tallow 2 | P19: =IF($P$3="Biodiesel",'BD-Production'!I12,'RD-Production'!B17) -> 0 | R19: =P19+Q19 -> 0 | S19: =IF($P$3="Biodiesel",'BD-Production'!I13,'RD-Production'!C17) -> 0 | T19: ='RD-Production'!D17 -> 0 | V19: =T19+U19 -> 0 | W19: ='RD-Production'!E17 -> 0 | X19: ='RD-Production'!F17 -> 0 | Z19: =X19+Y19 -> 0 | AA19: ='RD-Production'!G17 -> 0 | AB19: ='RD-Production'!H17 -> 0 | AD19: =AB19+AC19 -> 0 | AE19: ='RD-Production'!I17 -> 0
C20: Soybean Oil, miles | E20: =IF($P$3="Biodiesel",'BD-Production'!$F$61,'RD-Production'!$F$64) -> 0 | F20: =IFERROR(IF($P$3="Biodiesel",'BD-Production'!$F$62,'RD-Production'!$F$65),0) -> 0 | G20: =IF($P$3="Biodiesel",'BD-Production'!$F$63,'RD-Production'!$F$66) -> 0 | H20: =IF($P$3="Biodiesel",'BD-Production'!$F$64,'RD-Production'!$F$67) -> 0 | J20: By HD Truck to Blending Terminal, miles | K20: =IF($P$3="Biodiesel",'BD-Production'!R28,'RD-Production'!O29) -> 0 | M20: =IF($P$3="Biodiesel","Tallow 3 " & $P$3,"Tallow 3") -> Tallow 3 | P20: =IF($P$3="Biodiesel",'BD-Production'!I14,'RD-Production'!B18) -> 0 | R20: =P20+Q20 -> 0 | S20: =IF($P$3="Biodiesel",'BD-Production'!I15,'RD-Production'!C18) -> 0 | T20: ='RD-Production'!D18 -> 0 | V20: =T20+U20 -> 0 | W20: ='RD-Production'!E18 -> 0 | X20: ='RD-Production'!F18 -> 0 | Z20: =X20+Y20 -> 0 | AA20: ='RD-Production'!G18 -> 0 | AB20: ='RD-Production'!H18 -> 0 | AD20: =AB20+AC20 -> 0 | AE20: ='RD-Production'!I18 -> 0
C21: Canola Oil, miles | E21: =IF($P$3="Biodiesel",'BD-Production'!$F$83,'RD-Production'!$F$77) -> 0 | F21: =IF($P$3="Biodiesel",'BD-Production'!$F$84,'RD-Production'!$F$78) -> 0 | G21: =IF($P$3="Biodiesel",'BD-Production'!$F$85,'RD-Production'!$F$79) -> 0 | H21: =IF($P$3="Biodiesel",'BD-Production'!$F$86,'RD-Production'!$F$80) -> 0 | J21: By Rail, miles | K21: =IF($P$3="Biodiesel",'BD-Production'!R32,'RD-Production'!O33) -> 0
C22: Corn Oil, miles | E22: =IF($P$3="Biodiesel",'BD-Production'!$F$93,'RD-Production'!$F$87) -> 0 | F22: =IF($P$3="Biodiesel",'BD-Production'!$F$94,'RD-Production'!$F$88) -> 0 | G22: =IF($P$3="Biodiesel",'BD-Production'!$F$95,'RD-Production'!$F$89) -> 0 | H22: =IF($P$3="Biodiesel",'BD-Production'!$F$96,'RD-Production'!$F$90) -> 0 | J22: By Barge, miles | K22: =IF($P$3="Biodiesel",'BD-Production'!R40,'RD-Production'!O41) -> 0
C23: Rendered UCO 1, miles | E23: =IF($P$3="Biodiesel",'BD-Production'!$F$114,'RD-Production'!$F$98) -> 0 | F23: =IF($P$3="Biodiesel",'BD-Production'!$F$115,'RD-Production'!$F$99) -> 0 | G23: =IF($P$3="Biodiesel",'BD-Production'!$F$116,'RD-Production'!$F$100) -> 0 | H23: =IF($P$3="Biodiesel",'BD-Production'!$F$117,'RD-Production'!$F$101) -> 0 | J23: By Ocean Tanker, miles | K23: =IF($P$3="Biodiesel",'BD-Production'!R38,'RD-Production'!O39) -> 0
C24: Rendered UCO 2, miles | E24: =IF($P$3="Biodiesel",'BD-Production'!$N$114,'RD-Production'!$P$98) -> 0 | F24: =IF($P$3="Biodiesel",'BD-Production'!$N$115,'RD-Production'!$P$99) -> 0 | G24: =IF($P$3="Biodiesel",'BD-Production'!$N$116,'RD-Production'!$P$100) -> 0 | H24: =IF($P$3="Biodiesel",'BD-Production'!$N$117,'RD-Production'!$P$101) -> 0 | M24: =IF($P$3="Biodiesel","Total Volume " &P3& ", gallons","Total Fuels, gallons") -> Total Fuels, gallons | S24: =S8+S10+S12+S14+S15+S16+S18+S19+S20 -> 0 | W24: =W8+W10+W12+W14+W15+W16+W18+W19+W20 -> 0 | AA24: =AA8+AA10+AA12+AA14+AA15+AA16+AA18+AA19+AA20 -> 0 | AE24: =AE8+AE10+AE12+AE14+AE15+AE16+AE18+AE19+AE20 -> 0
C25: Rendered UCO 3, miles | E25: =IFERROR(IF($P$3="Biodiesel",'BD-Production'!$V$114,'RD-Production'!$Z$98),0) -> 0 | F25: =IFERROR(IF($P$3="Biodiesel",'BD-Production'!$V$115,'RD-Production'!$Z$99),0) -> 0 | G25: =IFERROR(IF($P$3="Biodiesel",'BD-Production'!$V$116,'RD-Production'!$Z$100),0) -> 0 | H25: =IFERROR(IF($P$3="Biodiesel",'BD-Production'!$V$117,'RD-Production'!$Z$101),0) -> 0 | J25: Co-products Production
C26: Rendered Tallow Oil 1, miles | E26: =IF($P$3="Biodiesel",'BD-Production'!$F$126,'RD-Production'!$F$110) -> 0 | F26: =IFERROR(IF($P$3="Biodiesel",'BD-Production'!$F$127,'RD-Production'!$F$111),0) -> 0 | G26: =IFERROR(IF($P$3="Biodiesel",'BD-Production'!$F$128,'RD-Production'!$F$112),0) -> 0 | H26: =IFERROR(IF($P$3="Biodiesel",'BD-Production'!$F$129,'RD-Production'!$F$113),0) -> 0 | J26: =IF($P$3="Biodiesel","Glycerine, lbs","Propane/Light Hydrocarbon, MMBtu") -> Propane/Light Hydrocarbon, MMBtu | K26: =IF($P$3="Biodiesel",'BD-Production'!O$48,'RD-Production'!J$51) -> 0
C27: Rendered Tallow Oil 2, miles | E27: =IF($P$3="Biodiesel",'BD-Production'!$N$126,'RD-Production'!$P$110) -> 0 | F27: =IFERROR(IF($P$3="Biodiesel",'BD-Production'!$N$127,'RD-Production'!$P$111),0) -> 0 | G27: =IF($P$3="Biodiesel",'BD-Production'!$N$128,'RD-Production'!$P$112) -> 0 | H27: =IF($P$3="Biodiesel",'BD-Production'!$N$129,'RD-Production'!$P$113) -> 0 | J27: =IF($P$3="Biodiesel","Distillate Bottoms, lbs","Renewable Naptha, gals") -> Renewable Naptha, gals | K27: =IF($P$3="Biodiesel",'BD-Production'!M$48,'RD-Production'!K$51) -> 0
C28: Rendered Tallow Oil 3, miles | E28: =IFERROR(IF($P$3="Biodiesel",'BD-Production'!$V$126,'RD-Production'!$Z$110),0) -> 0 | F28: =IFERROR(IF($P$3="Biodiesel",'BD-Production'!$V$127,'RD-Production'!$Z$111),0) -> 0 | G28: =IFERROR(IF($P$3="Biodiesel",'BD-Production'!$V$128,'RD-Production'!$Z$112),0) -> 0 | H28: =IFERROR(IF($P$3="Biodiesel",'BD-Production'!$V$129,'RD-Production'!$Z$113),0) -> 0 | J28: =IF($P$3="Biodiesel","Free Fatty Acids, lbs","Renewable Propane, gals") -> Renewable Propane, gals | K28: =IF($P$3="Biodiesel",'BD-Production'!N$48,'RD-Production'!L$51) -> 0
J29: =IF($P$3="Biodiesel","Other Co-product, lbs","Jet Fuel/Other Co-product, gals") -> Jet Fuel/Other Co-product, gals | K29: =IF($P$3="Biodiesel",'BD-Production'!P$48,'RD-Production'!M52) -> 0
C99: =IF(P3="Renewable Diesel","Summary of the Renewable Diesel Pathway","Summary of the Biodiesel Pathway") -> Summary of the Renewable Diesel Pathway | D99: =IF(C99="Summary of the Renewable Diesel Pathway","Renewable Diesel","Biodiesel") -> Renewable Diesel

Sheet Soy Oil
C1: Soy Oil Production Inputs | R1: =IF(G7="None",0,1) -> 1
H2: Yellow Cells require user input
B3: Section 1. Applicant Information for Soy Oil Production | H3: Green Cells show the calculation button
B4: 1.1 Company Name | H4: Gray Cells are Calculated Values
B5: 1.2 Company ID
B6: 1.3 Facility ID | AS6: Values | AT6: Note
B7: 1.4 Soy Oil Production Location | F7: (Click CALCULATE button frequently after updating a value)
B9: Section 2. Information for Soy Oil Production
B10: 2.1 Select Sources of Soybean | D10: U.S. | E10: =IF(D10="User Defined", "2.2 Source of Soybean: ","" ) ->  | O10: 2.9 Ocean Tanker GHG EF, gCO2e/ton-mile
B11: 2.5 Select Oil Extraction | D11: Standard Values | E11: 2.6 Standard Oil Extraction GHG Emission Factor, gCO2e/lb oil: | G11: 295.563158 | H11: 2.7 Standard Oil Extraction Energy, Btu/lb oil: | J11: 3073 | K11: 2.8 Select Ocean Tanker size for Soy Oil transport, DWT | M11: Standard Values | N11: 12500 | O11: 34.60329791
B12: Soy Oil Inventory and Production | H12: Soy Oil Transport (weighted average) | AV12: 0
B13: 3.1 Reporting Month (MM/YYYY) | C13: 3.2 Beginning Soy Oil Inventory | D13: 3.3 Oil Received | E13: 3.4 Oil Used (Calculated) | F13: 3.5 Ending Soy Oil Inventory | G13: 3.6 Moisture Content | H13: 3.7 Weighted average of oil transported by HDD Truck | J13: 3.8 Weighted average of oil transported by Ocean Tanker | L13: 3.9 Weighted average of oil transported by Rail | N13: 3.10 Weighted average of oil transported by Barge
C14: lbs. | D14: lbs. | E14: lbs. | F14: lbs. | G14: % | H14: lbs. | I14: miles | J14: lbs. | K14: miles | L14: lbs. | M14: miles | N14: lbs. | O14: miles
E15: =C15+D15-F15 -> 0
E16: =C16+D16-F16 -> 0
E17: 0
E18: 0
E19: 0
E20: 0
E21: 0
E22: 0
E23: 0
E24: 0
E25: 0
E26: 0
E27: 0
E28: 0
E29: 0
E30: 0
E31: 0
E32: 0
E33: 0
E34: 0
E35: 0
E36: 0
E37: 0
E38: 0
B39: Total | D39: =SUM(D15:D38) -> 0 | E39: =SUM(E15:E38)*(1-G39) -> 0 | G39: =IF(MAX($G15:$G38)<=0,"0",SUMPRODUCT(G15:G38,D15:D38)/SUM(D15:D38)) -> 0 | H39: =SUM(H15:H38) -> 0 | I39: =IF(MAX(I15:I38)<=0,"0",SUMPRODUCT(H15:H38,I15:I38)/$H$39) -> 0 | J39: =SUM(J15:J38) -> 0 | K39: =IF(MAX(K15:K38)<=0,"0",SUMPRODUCT(J15:J38,K15:K38)/$J$39) -> 0 | L39: =SUM(L15:L38) -> 0 | M39: =IF(MAX(M15:M38)<=0,"0",SUMPRODUCT(L15:L38,M15:M38)/$L$39) -> 0 | N39: =SUM(N15:N38) -> 0 | O39: =IF(MAX(O15:O38)<=0,"0",SUMPRODUCT(N15:N38,O15:O38)/$N$39) -> 0
B41: =IF(D10="User Defined","User Defined GHG Emission Factor of Soybean Farming and Fertilizers EF, gCO2e/dry ton","Standard Value of Farming GHG EF, gCO2e/dry ton:") -> Standard Value of Farming GHG EF, gCO2e/dry ton: | D41: =IF(D10="User Defined",N10,'EF Table'!C3+'EF Table'!C4+'EF Table'!C5) -> 332219.7378 | E41: Region | F41: =IF(D10="U.S.","U.S",G10) -> U.S
B42: =IF(D11="User Defined","User Defined GHG Emission Factor of Soy Oil Extraction EF, gCO2e/lb oil: ","Standard Value of Soy Oil Extraction EF, gCO2e/lb oil: ") -> Standard Value of Soy Oil Extraction EF, gCO2e/lb oil: | D42: =IF(D11="User Defined",G11,'EF Table'!C41) -> 295.563158 | E42: Electricity GHG EF, gCO2e/kWh | F42: =IF(D10="U.S.",'EF Table'!C53,J10) -> 610.3418915
B43: Tanker Size, DWT | D43: =N11 -> 12500
B44: =IF(M11="User Defined","User Defined GHG Emission Factor of Tanker, gCO2e/lb oil: ","Standard Value GHG EF of Tanker, gCO2e/lb oil: ") -> Standard Value GHG EF of Tanker, gCO2e/lb oil: | D44: =O11 -> 34.60329791
B46: Note: Total oil transport by each mode (cells H39, J39, L39, and N39) are not the same as total oil received in cell D39, because oil could be transported in parallel (e.g.: some by truck, some by rail) or in sequential mode (e.g.: same amount of oil by truck first then by rail). The calculations take into account of both in parallel and in sequential or combination of both during the month.

Sheet Canola
C1: Canola Oil Production Inputs | R1: =IF(#REF!="None",0,1) -> 
H2: Yellow Cells require user input
B3: Section 1. Applicant Information for Canola Oil Production | H3: Green Cells show the calculation button
B4: 1.1 Company Name | H4: Gray Cells are Calculated Values
B5: 1.2 Company ID
B6: 1.3 Facility ID
B7: 1.4 Canola Oil Production Location | F7: (Click CALCULATE button frequently after updating a value)
B9: Section 2. Information for Canola Oil Production
B10: 2.1 Select Sources of Canola | D10: U.S. | E10: =IF(D10="User Defined", "2.2 If User-Defined selected, specify source of Canola: ","" ) ->  | O10: 2.9 Ocean Tanker GHG EF, gCO2e/ton-mile
B11: 2.5 Select Oil Extraction | D11: Standard Values | E11: 2.6 Standard Oil Extraction GHG Emission Factor, gCO2e/lb oil: | G11: 117.221847 | H11: 2.7 Standard Oil Extraction Energy, Btu/lb oil: | J11: 1238 | K11: 2.8 Select Ocean Tanker size for Canola Oil transport, DWT | M11: Standard Values | N11: 12500 | O11: 34.60329791
B12: Canola Oil Inventory and Production | H12: Canola Oil Transport (weighted average)
B13: 3.1 Reporting Month (MM/YYYY) | C13: 3.2 Beginning Canola Oil Inventory | D13: 3.3 Oil Received | E13: 3.4 Oil Used (Calculated) | F13: 3.5 Ending Canola Oil Inventory | G13: 3.6 Moisture Content | H13: 3.7 Weighted average of oil transported by HDD Truck | J13: 3.8 Weighted average of oil transported by Ocean Tanker | L13: 3.9 Weighted average of oil transported by Rail | N13: 3.10 Weighted average of oil transported by Barge
C14: lbs. | D14: lbs. | E14: lbs. | F14: lbs. | G14: % | H14: lbs | I14: miles | J14: lbs. | K14: miles | L14: lbs. | M14: miles | N14: lbs. | O14: miles
E15: =C15+D15-F15 -> 0
E16: =C16+D16-F16 -> 0
E17: =C17+D17-F17 -> 0
E18: 0
E19: 0
E20: 0
E21: 0
E22: 0
E23: 0
E24: 0
E25: 0
E26: 0
E27: 0
E28: 0
E29: 0
E30: 0
E31: 0
E32: 0
E33: 0
E34: 0
E35: 0
E36: 0
E37: 0
E38: 0
B39: Total | D39: =SUM(D15:D38) -> 0 | E39: =SUM(E15:E38)*(1-G39) -> 0 | G39: =IF(MAX($G15:$G38)<=0,"0",SUMPRODUCT(G15:G38,D15:D38)/SUM(D15:D38)) -> 0 | H39: =SUM(H15:H38) -> 0 | I39: =IF(MAX(I15:I38)<=0,"0",SUMPRODUCT(H15:H38,I15:I38)/$H$39) -> 0 | J39: =SUM(J15:J38) -> 0 | K39: =IF(MAX(K15:K38)<=0,"0",SUMPRODUCT(J15:J38,K15:K38)/$J$39) -> 0 | L39: =SUM(L15:L38) -> 0 | M39: =IF(MAX(M15:M38)<=0,"0",SUMPRODUCT(L15:L38,M15:M38)/$L$39) -> 0 | N39: =SUM(N15:N38) -> 0 | O39: =IF(MAX(O15:O38)<=0,"0",SUMPRODUCT(N15:N38,O15:O38)/$N$39) -> 0
B40: =IF(D10="User Defined","User Defined GHG Emission Factor of Canola Farming and Fertilizers, gCO2e/MT of dry Canola: ","Standard Value of Farming and Fertilizers GHG EF, gCO2e/MT of dry Canola: ") -> Standard Value of Farming and Fertilizers GHG EF, gCO2e/MT of dry Canola: | D40: =IF(D10="User Defined",N10,'EF Table'!C12+'EF Table'!C13+'EF Table'!C14) -> 730671.7024 | E40: Region | F40: =IF(D10="U.S.","U.S",G10) -> U.S
B41: =IF(D11="User Defined","User Defined GHG Emission Factor of Canola Oil Extraction EF, gCO2e/lb oil: ","Standard Value of Canola Oil Extraction EF, gCO2e/lb oil: ") -> Standard Value of Canola Oil Extraction EF, gCO2e/lb oil: | D41: =IF(D11="User Defined",G11,'EF Table'!C42) -> 117.221847 | E41: Electricity GHG EF, gCO2e/kWh | F41: =IF(D10="U.S.",'EF Table'!C53,J10) -> 610.3418915
B42: Tanker Size, DWT | D42: =N11 -> 12500
B43: =IF(M11="User Defined","User Defined GHG Emission Factor of Tanker, gCO2e/lb oil: ","Standard Value GHG EF of Tanker, gCO2e/lb oil: ") -> Standard Value GHG EF of Tanker, gCO2e/lb oil: | D43: =O11 -> 34.60329791
B45: Note: Total oil transport by each mode (cells H39, J39, L39, and N39) are not the same as total oil received in cell D39, because oil could be transported in parallel (e.g.: some by truck, some by rail) or in sequential mode (e.g.: same amount of oil by truck first then by rail). The calculations take into account of both in parallel and in sequential or combination of both during the month.

Sheet CornSorghum Oil
C1: Corn/Sorghum Oil Production (from Distiller Grains of Corn/Sorghum Ethanol) Inputs | S1: =IF(#REF!="None",0,1) ->  | AI1: Soy Oil | AJ1: 1 | AK1: DNAVSO | AQ1: Assumptions or Defaults
H2: Yellow Cells require user input
B3: Section 1. Applicant Information for Corn Oil Production | H3: Green Cells show the calculation button
B4: 1.1 Company Name | H4: Gray Cells are Calculated Values
B5: 1.2 Company ID
B6: 1.3 Facility ID
B7: 1.4 Oil Extraction Location | F7: (Click CALCULATE button frequently after updating a value)
B9: Section 2. Information for Corn Oil Production | AI9: Canola Oil | AJ9: 2 | AK9: DNAVCAO | AQ9: 1) Soybean Farming | AR9: Values | AS9: 1) Canola Farming | AT9: Values | AU9: Note
B10: 2.1 Select Sources of Corn or Sorghum Oil | D10: U.S. | E10: =IF(D10="User Defined", "2.2 Source of Corn/Sorghum Oil: ","" ) ->  | O10: 2.8 Ocean Tanker GHG EF, gCO2e/ton-mile | AI10: Used Cooking Oil | AJ10: 4 | AK10: DNAVUCO | AQ10: b) Energy Consumption (Btu/bushel) | AS10: b) Energy Consumption (Btu/MT of rapeseed)
B11: 2.4 Oil Extraction | D11: Standard Values | E11: 2.5 Standard Oil Extraction GHG Emission Factor, gCO2e/lb oil: | G11: 47.50169444 | H11: 2.6 Standard Oil Extraction Energy, Btu/lb oil: | J11: 266 | K11: 2.7 Select Ocean Tanker size for Corn Oil transport, DWT | M11: Standard Values | N11: 12500 | O11: 34.60329791
B12: Corn/Sorghum Oil Inventory and Production | H12: Corn/Sorghum Oil Transport (weighted average)
B13: 3.1 Reporting Month (MM/YYYY) | C13: 3.2 Beginning Corn/Sorghum Oil Inventory | D13: 3.3 Oil Received | E13: 3.4 Oil Used (Calculated) | F13: 3.5 Ending Corn/Sorghum Oil Inventory | G13: 3.6 Moisture Content | H13: 3.8 Weighted average of oil transported by HDD Truck | J13: 3.9 Weighted average of oil transported by Ocean Tanker | L13: 3.10 Weighted average of oil transported by Rail | N13: 3.11 Weighted average of oil transported by Barge
C14: lbs. | D14: lbs. | E14: lbs. | F14: lbs. | G14: % | H14: lbs. | I14: miles | J14: lbs. | K14: miles | L14: lbs. | M14: miles | N14: lbs. | O14: miles
E15: =C15+D15-F15 -> 0
E16: =C16+D16-F16 -> 0
E17: 0
E18: 0
E19: 0
E20: 0
E21: 0
E22: 0
E23: 0
E24: 0
E25: 0
E26: 0
E27: 0
E28: 0
E29: 0
E30: 0
E31: 0
E32: 0
E33: 0
E34: 0
E35: 0
E36: 0
E37: 0
E38: 0
B39: Total | D39: =SUM(D15:D38) -> 0 | E39: =SUM(E15:E38)*(1-G39) -> 0 | G39: =IF(MAX($G15:$G38)<=0,"0",SUMPRODUCT(G15:G38,D15:D38)/SUM(D15:D38)) -> 0 | H39: =SUM(H15:H38) -> 0 | I39: =IF(MAX(I15:I38)<=0,"0",SUMPRODUCT(H15:H38,I15:I38)/$H$39) -> 0 | J39: =SUM(J15:J38) -> 0 | K39: =IF(MAX(K15:K38)<=0,"0",SUMPRODUCT(J15:J38,K15:K38)/$J$39) -> 0 | L39: =SUM(L15:L38) -> 0 | M39: =IF(MAX(M15:M38)<=0,"0",SUMPRODUCT(L15:L38,M15:M38)/$L$39) -> 0 | N39: =SUM(N15:N38) -> 0 | O39: =IF(MAX(O15:O38)<=0,"0",SUMPRODUCT(N15:N38,O15:O38)/$N$39) -> 0
B40: =IF(D11="User Defined","User Defined Oil Extraction GHG Emission Factor, gCO2e/lb oil","Standard Value of Oil Extraction GHG Emission Factor, gCO2e/lb oil") -> Standard Value of Oil Extraction GHG Emission Factor, gCO2e/lb oil | D40: =IF(D11="User Defined",G11,'EF Table'!C45) -> 47.50169444 | E40: Region | F40: =IF(D10="U.S.","U.S",G10) -> U.S
B41: Tanker Size, DWT | D41: =N11 -> 12500 | E41: Electricity GHG EF, gCO2e/kWh | F41: =IF(D10="U.S.",'EF Table'!C53,J10) -> 610.3418915
B42: =IF(M11="User Defined","User Defined GHG Emission Factor of Tanker, gCO2e/lb oil: ","Standard Value GHG EF of Tanker, gCO2e/lb oil: ") -> Standard Value GHG EF of Tanker, gCO2e/lb oil: | D42: =O11 -> 34.60329791
B45: Note: Total oil transport by each mode (cells H39, J39, L39, and N39) are not the same as total oil received in cell D39, because oil could be transported in parallel (e.g.: some by truck, some by rail) or in sequential mode (e.g.: same amount of oil by truck first then by rail). The calculations take into account of both in parallel and in sequential or combination of both during the month.

Sheet UCO1
C1: Used Cooking Oil Production Inputs | S1: =IF(#REF!="None",0,1) ->  | AI1: Soy Oil | AJ1: 1 | AK1: DNAVSO | AQ1: Assumptions or Defaults
H2: Yellow Cells require user input
B3: Section 1. Applicant Information for UCO Production | H3: Green Cells show the calculation button
B4: 1.1 Company Name | H4: Gray Cells are Calculated Values
B5: 1.2 Company ID
B6: 1.3 Facility ID
B7: 1.4 UCO Rendering Location | G7: (Click CALCULATE button frequently after updating a value)
B9: Section 2. Information for UCO Production | AI9: Canola Oil | AJ9: 2 | AK9: DNAVCAO | AQ9: 1) Soybean Farming | AR9: Values | AS9: 1) Canola Farming | AT9: Values | AU9: Note
B10: 2.1 Select Sources of UCO | D10: U.S. | E10: =IF(D10="User Defined", "2.2 If User-Defined selected, specify source of UCO1: ","" ) ->  | O10: 2.8 Ocean Tanker GHG EF, gCO2e/ton-mile | AI10: Used Cooking Oil | AJ10: 4 | AK10: DNAVUCO | AQ10: b) Energy Consumption (Btu/bushel) | AS10: b) Energy Consumption (Btu/MT of rapeseed)
B11: 2.4 Select Oil Rendering | D11: Standard Values | E11: 2.5 Standard UCO Rendering GHG Emission Factor, gCO2e/lb oil: | G11: 90.43831825 | H11: 2.6 Standard Oil Extraction Energy, Btu/lb oil: | J11: 1073 | K11: 2.7 Select Ocean Tanker size for Corn Oil transport, DWT | M11: Standard Values | N11: 12500 | O11: 34.60329791
B12: Used Cooking Oil Inventory and Production | H12: Oil Transport (weighted average)
B13: 3.1 Reporting Month (MM/YYYY) | C13: 3.2 Beginning Used Cooking Oil Inventory | D13: 3.3 Oil Received | E13: 3.4 Oil Used (Calculated) | F13: 3.5 Ending Used Cooking Oil Inventory | G13: 3.6 Moisture Content | H13: 3.7 Weighted average of raw UCO or rendered oil transported by HDD Truck1 | J13: 3.8 Weighted average of oil transported by Ocean Tanker | L13: 3.9 Weighted average of oil transported by Rail | N13: 3.10 Weighted average of oil transported by Barge
C14: lbs. | D14: lbs. | E14: lbs. | F14: lbs. | G14: % | H14: lbs. | I14: miles | J14: lbs. | K14: miles | L14: lbs. | M14: miles | N14: lbs. | O14: miles
E15: =C15+D15-F15 -> 0
E16: =C16+D16-F16 -> 0
E17: 0
E18: 0
E19: 0
E20: 0
E21: 0
E22: 0
E23: 0
E24: 0
E25: 0
E26: 0
E27: 0
E28: 0
E29: 0
E30: 0
E31: 0
E32: 0
E33: 0
E34: 0
E35: 0
E36: 0
E37: 0
E38: 0
B39: Total | D39: =SUM(D15:D38) -> 0 | E39: =SUM(E15:E38)*(1-G39) -> 0 | G39: =IF(MAX($G15:$G38)<=0,"0",SUMPRODUCT(G15:G38,D15:D38)/SUM(D15:D38)) -> 0 | H39: =SUM(H15:H38) -> 0 | I39: =IF(MAX(I15:I38)<=0,"0",SUMPRODUCT(H15:H38,I15:I38)/$H$39) -> 0 | J39: =SUM(J15:J38) -> 0 | K39: =IF(MAX(K15:K38)<=0,"0",SUMPRODUCT(J15:J38,K15:K38)/$J$39) -> 0 | L39: =SUM(L15:L38) -> 0 | M39: =IF(MAX(M15:M38)<=0,"0",SUMPRODUCT(L15:L38,M15:M38)/$L$39) -> 0 | N39: =SUM(N15:N38) -> 0 | O39: =IF(MAX(O15:O38)<=0,"0",SUMPRODUCT(N15:N38,O15:O38)/$N$39) -> 0
C40: =IF(D11="User Defined","User Defined Oil Rendering GHG Emission Factor, gCO2e/lb oil","Standard Value of Oil Rendering GHG Emission Factor, gCO2e/lb oil") -> Standard Value of Oil Rendering GHG Emission Factor, gCO2e/lb oil | E40: =IF(D11="User Defined",G11,'EF Table'!C44) -> 90.43831825 | F40: Region | G40: =IF(D10="U.S.","U.S",G10) -> U.S
C41: Tanker Size, DWT | E41: =N11 -> 12500 | F41: Electricity GHG EF, gCO2e/kWh | G41: =IF(D10="U.S.",'EF Table'!C53,J10) -> 610.3418915
C42: =IF(M11="User Defined","User Defined GHG Emission Factor of Tanker, gCO2e/lb oil: ","Standard Value GHG EF of Tanker, gCO2e/lb oil: ") -> Standard Value GHG EF of Tanker, gCO2e/lb oil: | E42: =O11 -> 34.60329791
B43: Note: 1. Raw UCO: Truck transport distance of raw UCO directly from restaurants to the BD or RD facility for self-rendering at the BD or RD facility. Rendered Oil: Truck transport distance of rendered oil from the renderers/distributors to the BD or RD facility 2. Total oil transport by each mode (cells H39, J39, L39, and N39) are not the same as total oil received in cell D39, because oil could be transported in parallel (e.g.: some by truck, some by rail) or in sequential mode (e.g.: same amount of oil by truck first then by rail). The calculations take into account of both in parallel and in sequential or combination of both during the month.

Sheet UCO2
C1: Used Cooking Oil Production Inputs | S1: =IF(#REF!="None",0,1) ->  | AI1: Soy Oil | AJ1: 1 | AK1: DNAVSO | AQ1: Assumptions or Defaults
H2: Yellow Cells require user input
B3: Section 1. Applicant Information for UCO Production | H3: Green Cells show the calculation button
B4: 1.1 Company Name | H4: Gray Cells are Calculated Values
B5: 1.2 Company ID
B6: 1.3 Facility ID
B7: 1.4 UCO Rendering Location | G7: (Click CALCULATE button frequently after updating a value)
B9: Section 2. Information for UCO Production | AI9: Canola Oil | AJ9: 2 | AK9: DNAVCAO | AQ9: 1) Soybean Farming | AR9: Values | AS9: 1) Canola Farming | AT9: Values | AU9: Note
B10: 2.1 Select Sources of UCO | D10: U.S. | E10: =IF(D10="User Defined", "2.2 If User-Defined selected, specify source of UCO2: ","" ) ->  | O10: 2.8 Ocean Tanker GHG EF, gCO2e/ton-mile | AI10: Used Cooking Oil | AJ10: 4 | AK10: DNAVUCO | AQ10: b) Energy Consumption (Btu/bushel) | AS10: b) Energy Consumption (Btu/MT of rapeseed)
B11: 2.4 Select Oil Rendering | D11: Standard Values | E11: 2.4 Standard UCO Rendering GHG Emission Factor, gCO2e/lb oil: | G11: 90.43831825 | H11: 2.5 Standard UCO Rendering Energy, Btu/lb oil: | J11: 1073 | K11: 2.7 Select Ocean Tanker size for Rendered UCO transport, DWT | M11: Standard Values | N11: 12500 | O11: 34.60329791
B12: Used Cooking Oil Inventory and Production | H12: Oil Transport (weighted average)
B13: 3.1 Reporting Month (MM/YYYY) | C13: 3.2 Beginning Used Cooking Oil Inventory | D13: 3.3 Oil Received | E13: 3.4 Oil Used (Calculated) | F13: 3.5 Ending Used Cooking Oil Inventory | G13: 3.6 Moisture Content | H13: 3.7 Weighted average of raw UCO or rendered oil transported by HDD Truck1 | J13: 3.8 Weighted average of oil transported by Ocean Tanker | L13: 3.9 Weighted average of oil transported by Rail | N13: 3.10 Weighted average of oil transported by Barge
C14: lbs. | D14: lbs. | E14: lbs. | F14: lbs. | G14: % | H14: lbs. | I14: miles | J14: lbs. | K14: miles | L14: lbs. | M14: miles | N14: lbs. | O14: miles
E15: =C15+D15-F15 -> 0
E16: =C16+D16-F16 -> 0
E17: 0
E18: 0
E19: 0
E20: 0
E21: 0
E22: 0
E23: 0
E24: 0
E25: 0
E26: 0
E27: 0
E28: 0
E29: 0
E30: 0
E31: 0
E32: 0
E33: 0
E34: 0
E35: 0
E36: 0
E37: 0
E38: 0
B39: Total | D39: =SUM(D15:D38) -> 0 | E39: =SUM(E15:E38)*(1-G39) -> 0 | G39: =IF(MAX($G15:$G38)<=0,"0",SUMPRODUCT(G15:G38,D15:D38)/SUM(D15:D38)) -> 0 | H39: =SUM(H15:H38) -> 0 | I39: =IF(MAX(I15:I38)<=0,"0",SUMPRODUCT(H15:H38,I15:I38)/$H$39) -> 0 | J39: =SUM(J15:J38) -> 0 | K39: =IF(MAX(K15:K38)<=0,"0",SUMPRODUCT(J15:J38,K15:K38)/$J$39) -> 0 | L39: =SUM(L15:L38) -> 0 | M39: =IF(MAX(M15:M38)<=0,"0",SUMPRODUCT(L15:L38,M15:M38)/$L$39) -> 0 | N39: =SUM(N15:N38) -> 0 | O39: =IF(MAX(O15:O38)<=0,"0",SUMPRODUCT(N15:N38,O15:O38)/$N$39) -> 0
C40: =IF(D11="User Defined","User Defined Oil Rendering GHG Emission Factor, gCO2e/lb oil","Standard Value of Oil Rendering GHG Emission Factor, gCO2e/lb oil") -> Standard Value of Oil Rendering GHG Emission Factor, gCO2e/lb oil | E40: =IF(D11="User Defined",G11,'EF Table'!C44) -> 90.43831825 | F40: Region | G40: =IF(D10="U.S.","U.S",G10) -> U.S
C41: Tanker Size, DWT | E41: =N11 -> 12500 | F41: Electricity GHG EF, gCO2e/kWh | G41: =IF(D10="U.S.",'EF Table'!C53,J10) -> 610.3418915
C42: =IF(M11="User Defined","User Defined GHG Emission Factor of Tanker, gCO2e/lb oil: ","Standard Value GHG EF of Tanker, gCO2e/lb oil: ") -> Standard Value GHG EF of Tanker, gCO2e/lb oil: | E42: =O11 -> 34.60329791
B43: Note: 1. Raw UCO: Truck transport distance of raw UCO directly from restaurants to the BD or RD facility for self-rendering at the BD or RD facility. Rendered Oil: Truck transport distance of rendered oil from the renderers/distributors to the BD or RD facility 2. Total oil transport by each mode (cells H39, J39, L39, and N39) are not the same as total oil received in cell D39, because oil could be transported in parallel (e.g.: some by truck, some by rail) or in sequential mode (e.g.: same amount of oil by truck first then by rail). The calculations take into account of both in parallel and in sequential or combination of both during the month.

Sheet UCO3
C1: Used Cooking Oil Production Inputs | S1: =IF(#REF!="None",0,1) ->  | AI1: Soy Oil | AJ1: 1 | AK1: DNAVSO | AQ1: Assumptions or Defaults
H2: Yellow Cells require user input
B3: Section 1. Applicant Information for UCO Production | H3: Green Cells show the calculation button
B4: 1.1 Company Name | H4: Gray Cells are Calculated Values
B5: 1.2 Company ID
B6: 1.3 Facility ID
B7: 1.4 UCO Rendering Location | G7: (Click CALCULATE button frequently after updating a value)
B9: Section 2. Information for UCO Production | AI9: Canola Oil | AJ9: 2 | AK9: DNAVCAO | AQ9: 1) Soybean Farming | AR9: Values | AS9: 1) Canola Farming | AT9: Values | AU9: Note
B10: 2.1 Select Sources of UCO | D10: U.S. | E10: =IF(D10="User Defined", "2.2 If User-Defined selected, specify source of UCO3: ","" ) ->  | O10: 2.8 Ocean Tanker GHG EF, gCO2e/ton-mile | AI10: Used Cooking Oil | AJ10: 4 | AK10: DNAVUCO | AQ10: b) Energy Consumption (Btu/bushel) | AS10: b) Energy Consumption (Btu/MT of rapeseed)
B11: 2.4 Select Oil Rendering | D11: Standard Values | E11: 2.5 Standard UCO Rendering GHG Emission Factor, gCO2e/lb oil: | G11: 90.43831825 | H11: 2.6 Standard UCO Rendering Energy, Btu/lb oil: | J11: 1073 | K11: 2.7 Select Ocean Tanker size for Rendered UCO transport, DWT | M11: Standard Values | N11: 12500 | O11: 34.60329791
B12: Used Cooking Oil Inventory and Production | H12: Oil Transport (weighted average)
B13: 3.1 Reporting Month (MM/YYYY) | C13: 3.2 Beginning Used Cooking Oil Inventory | D13: 3.3 Oil Received | E13: 3.4 Oil Used (Calculated) | F13: 3.5 Ending Used Cooking Oil Inventory | G13: 3.6 Moisture Content | H13: 3.7 Weighted average of raw UCO or rendered oil transported by HDD Truck1 | J13: 3.8 Weighted average of oil transported by Ocean Tanker | L13: 3.9 Weighted average of oil transported by Rail | N13: 3.10 Weighted average of oil transported by Barge
C14: lbs. | D14: lbs. | E14: lbs. | F14: lbs. | G14: % | H14: lbs. | I14: miles | J14: lbs. | K14: miles | L14: lbs. | M14: miles | N14: lbs. | O14: miles
E15: =C15+D15-F15 -> 0
E16: =C16+D16-F16 -> 0
E17: 0
E18: 0
E19: 0
E20: 0
E21: 0
E22: 0
E23: 0
E24: 0
E25: 0
E26: =C26+D26-F26 -> 0
E27: =C27+D27-F27 -> 0
E28: =C28+D28-F28 -> 0
E29: =C29+D29-F29 -> 0
E30: 0
E31: 0
E32: 0
E33: 0
E34: 0
E35: 0
E36: 0
E37: 0
E38: 0
B39: Total | D39: =SUM(D15:D38) -> 0 | E39: =SUM(E15:E38)*(1-G39) -> 0 | G39: =IF(MAX($G15:$G38)<=0,"0",SUMPRODUCT(G15:G38,D15:D38)/SUM(D15:D38)) -> 0 | H39: =SUM(H15:H38) -> 0 | I39: =IF(MAX(I15:I38)<=0,"0",SUMPRODUCT(H15:H38,I15:I38)/$H$39) -> 0 | J39: =SUM(J15:J38) -> 0 | K39: =IF(MAX(K15:K38)<=0,"0",SUMPRODUCT(J15:J38,K15:K38)/$J$39) -> 0 | L39: =SUM(L15:L38) -> 0 | M39: =IF(MAX(M15:M38)<=0,"0",SUMPRODUCT(L15:L38,M15:M38)/$L$39) -> 0 | N39: =SUM(N15:N38) -> 0 | O39: =IF(MAX(O15:O38)<=0,"0",SUMPRODUCT(N15:N38,O15:O38)/$N$39) -> 0
C40: =IF(D11="User Defined","User Defined Oil Rendering GHG Emission Factor, gCO2e/lb oil","Standard Value of Oil Rendering GHG Emission Factor, gCO2e/lb oil") -> Standard Value of Oil Rendering GHG Emission Factor, gCO2e/lb oil | E40: =IF(D11="User Defined",G11,'EF Table'!C44) -> 90.43831825 | F40: Region | G40: =IF(D10="U.S.","U.S",G10) -> U.S
C41: Tanker Size, DWT | E41: =N11 -> 12500 | F41: Electricity GHG EF, gCO2e/kWh | G41: =IF(D10="U.S.",'EF Table'!C53,J10) -> 610.3418915
C42: =IF(M11="User Defined","User Defined GHG Emission Factor of Tanker, gCO2e/lb oil: ","Standard Value GHG EF of Tanker, gCO2e/lb oil: ") -> Standard Value GHG EF of Tanker, gCO2e/lb oil: | E42: =O11 -> 34.60329791
B45: Note:
B46: 1. Raw UCO: Truck transport distance of raw UCO directly from restaurants to the BD or RD facility for self-rendering at the BD or RD facility. Rendered Oil: Truck transport distance of rendered oil from the renderers/distributors to the BD or RD facility. 2. Total oil transport by each mode (cells H39, J39, L39, and N39) are not the same as total oil received in cell D39, because oil could be transported in parallel (e.g.: some by truck, some by rail) or in sequential mode (e.g.: same amount of oil by truck first then by rail). The calculations take into account of both in parallel and in sequential or combination of both during the month.

Sheet Tallow1
C1: Tallow Production Inputs | R1: =IF(#REF!="None",0,1) ->  | AH1: Soy Oil | AI1: 1 | AJ1: DNAVSO | AP1: Assumptions or Defaults
H2: Yellow Cells require user input
B3: Section 1. Applicant Information for Tallow Oil Production | H3: Green Cells show the calculation button
B4: 1.1 Company Name | H4: Gray Cells are Calculated Values
B5: 1.2 Company ID
B6: 1.3 Facility ID
B7: 1.4 Tallow Oil Rendering Location | G7: (Click CALCULATE button frequently after updating a value)
B9: Section 2. Information for Tallow Oil Production | AH9: Canola Oil | AI9: 2 | AJ9: DNAVCAO | AP9: 1) Soybean Farming | AQ9: Values | AR9: 1) Canola Farming | AS9: Values | AT9: Note
B10: 2.1 Select Sources of Tallow | D10: U.S. | E10: =IF(D10="User Defined", "2.2 If User-Defined selected, specify source of Tallow1: ","" ) ->  | O10: 2.8 Ocean Tanker GHG EF, gCO2e/ton-mile | AH10: Used Cooking Oil | AI10: 4 | AJ10: DNAVUCO | AP10: b) Energy Consumption (Btu/bushel) | AR10: b) Energy Consumption (Btu/MT of rapeseed)
B11: 2.4 Select Oil Rendering | D11: Standard Values | E11: 2.5 Standard Tallow Rendering GHG Emission Factor, gCO2e/lb oil: | G11: 303.8222645 | H11: 2.6 Standard Tallow Rendering Energy, Btu/lb oil: | J11: 3944 | K11: 2.7 Select Ocean Tanker size for Rendered Oil transport, DWT | M11: Standard Values | N11: 12500 | O11: 34.60329791
B12: Rendered Tallow Oil Inventory and Production | H12: Oil Transport (weighted average)
B13: 3.1 Reporting Month (MM/YYYY) | C13: 3.2 Beginning Tallow Oil Inventory | D13: 3.3 Oil Received | E13: 3.4 Oil Used (Calculated) | F13: 3.5 Ending Tallow Oil Inventory | G13: 3.6 Moisture Content | H13: 3.7 Weighted average of oil transported by HDD Truck | J13: 3.8 Weighted average of oil transported by Ocean Tanker | L13: 3.9 Weighted average of oil transported by Rail | N13: 3.10 Weighted average of oil transported by Barge
C14: lbs. | D14: lbs. | E14: lbs. | F14: lbs. | G14: % | H14: lbs. | I14: miles | J14: lbs. | K14: miles | L14: lbs. | M14: miles | N14: lbs. | O14: miles
E15: =C15+D15-F15 -> 0
E16: =C16+D16-F16 -> 0
E17: 0
E18: 0
E19: 0
E20: 0
E21: 0
E22: 0
E23: 0
E24: 0
E25: 0
E26: 0
E27: 0
E28: 0
E29: 0
E30: 0
E31: 0
E32: 0
E33: 0
E34: 0
E35: 0
E36: 0
E37: 0
E38: 0
B39: Total | D39: =SUM(D15:D38) -> 0 | E39: =SUM(E15:E38)*(1-G39) -> 0 | G39: =IF(MAX($D15:$D38)<=0,"0",SUMPRODUCT(G15:G38,D15:D38)/SUM(D15:D38)) -> 0 | H39: =SUM(H15:H38) -> 0 | I39: =IF(MAX(I15:I38)<=0,"0",SUMPRODUCT(H15:H38,I15:I38)/$H$39) -> 0 | J39: =SUM(J15:J38) -> 0 | K39: =IF(MAX(K15:K38)<=0,"0",SUMPRODUCT(J15:J38,K15:K38)/$J$39) -> 0 | L39: =SUM(L15:L38) -> 0 | M39: =IF(MAX(M15:M38)<=0,"0",SUMPRODUCT(L15:L38,M15:M38)/$L$39) -> 0 | N39: =SUM(N15:N38) -> 0 | O39: =IF(MAX(O15:O38)<=0,"0",SUMPRODUCT(N15:N38,O15:O38)/$N$39) -> 0
B40: =IF(D11="User Defined","User Defined Oil Rendering GHG Emission Factor, gCO2e/lb oil","Standard Value of Oil Renderingn GHG Emission Factor, gCO2e/lb oil") -> Standard Value of Oil Renderingn GHG Emission Factor, gCO2e/lb oil | D40: =IF(D11="User Defined",G11,'EF Table'!C43) -> 303.8222645 | E40: Region | F40: =IF(D10="U.S.","U.S",G10) -> U.S
B41: Tanker Size, DWT | D41: =N11 -> 12500 | E41: Electricity GHG EF, gCO2e/kWh | F41: =IF(D10="U.S.",'EF Table'!C53,J10) -> 610.3418915
B42: =IF(M11="User Defined","User Defined GHG Emission Factor of Tanker, gCO2e/lb oil: ","Standard Value GHG EF of Tanker, gCO2e/lb oil: ") -> Standard Value GHG EF of Tanker, gCO2e/lb oil: | D42: =O11 -> 34.60329791
B45: Note: Total oil transport by each mode (cells H39, J39, L39, and N39) are not the same as total oil received in cell D39, because oil could be transported in parallel (e.g.: some by truck, some by rail) or in sequential mode (e.g.: same amount of oil by truck first then by rail). The calculations take into account of both in parallel and in sequential or combination of both during the month.

Sheet Other (hidden)
A1: Corn Oil (from Corn DGS) Production Data Inputs | C1: Applicant: | D1: ABC Energy
C2: Feedstock Quantity | D2: Unit | E2: Feedstock Source: | F2: City, State, Country
B3: Other Feedstock 1 | C3: 0 | D3: lbs
B4: Fuel | D4: lbs
B5: Other Feedstock 2 | C5: 0 | D5: lbs
B6: Fuel | D6: lbs

Sheet Tallow2
C1: Tallow Production Inputs | R1: =IF(#REF!="None",0,1) ->  | AH1: Soy Oil | AI1: 1 | AJ1: DNAVSO | AP1: Assumptions or Defaults
H2: Yellow Cells require user input
B3: Section 1. Applicant Information for Tallow Oil Production | H3: Green Cells show the calculation button
B4: 1.1 Company Name | H4: Gray Cells are Calculated Values
B5: 1.2 Company ID
B6: 1.3 Facility ID
B7: 1.4 Tallow Oil Rendering Location | G7: (Click CALCULATE button frequently after updating a value)
B9: Section 2. Information for Tallow Oil Production | AH9: Canola Oil | AI9: 2 | AJ9: DNAVCAO | AP9: 1) Soybean Farming | AQ9: Values | AR9: 1) Canola Farming | AS9: Values | AT9: Note
B10: 2.1 Select Sources of Tallow | D10: U.S. | E10: =IF(D10="User Defined", "2.2 If User-Defined selected, specify source of Tallow 2: ","" ) ->  | O10: 2.8 Ocean Tanker GHG EF, gCO2e/ton-mile | AH10: Used Cooking Oil | AI10: 4 | AJ10: DNAVUCO | AP10: b) Energy Consumption (Btu/bushel) | AR10: b) Energy Consumption (Btu/MT of rapeseed)
B11: 2.4 Select Oil Rendering | D11: Standard Values | E11: 2.5 Standard Tallow Rendering GHG Emission Factor, gCO2e/lb oil: | G11: 303.8222645 | H11: 2.6 Standard Tallow Rendering Energy, Btu/lb oil: | J11: 3944 | K11: 2.7 Select Ocean Tanker size for Rendered Oil transport, DWT | M11: Standard Values | N11: 12500 | O11: 34.60329791
B12: Rendered Tallow Oil Inventory and Production | H12: Oil Transport (weighted average)
B13: 3.1 Reporting Month (MM/YYYY) | C13: 3.2 Beginning Tallow Oil Inventory | D13: 3.3 Oil Received | E13: 3.4 Oil Used (Calculated) | F13: 3.5 Ending Tallow Oil Inventory | G13: 3.6 Moisture Content | H13: 3.7 Weighted average of oil transported by HDD Truck | J13: 3.8 Weighted average of oil transported by Ocean Tanker | L13: 3.9 Weighted average of oil transported by Rail | N13: 3.10 Weighted average of oil transported by Barge
C14: lbs. | D14: lbs. | E14: lbs. | F14: lbs. | G14: % | H14: lbs. | I14: miles | J14: lbs. | K14: miles | L14: lbs. | M14: miles | N14: lbs. | O14: miles
E15: =C15+D15-F15 -> 0
E16: =C16+D16-F16 -> 0
E17: 0
E18: 0
E19: 0
E20: 0
E21: 0
E22: 0
E23: 0
E24: 0
E25: 0
E26: 0
E27: 0
E28: 0
E29: 0
E30: 0
E31: 0
E32: 0
E33: 0
E34: 0
E35: 0
E36: 0
E37: 0
E38: 0
B39: Total | D39: =SUM(D15:D38) -> 0 | E39: =SUM(E15:E38)*(1-G39) -> 0 | G39: =IF(MAX($D15:$D38)<=0,"0",SUMPRODUCT(G15:G38,D15:D38)/SUM(D15:D38)) -> 0 | H39: =SUM(H15:H38) -> 0 | I39: =IF(MAX(I15:I38)<=0,"0",SUMPRODUCT(H15:H38,I15:I38)/$H$39) -> 0 | J39: =SUM(J15:J38) -> 0 | K39: =IF(MAX(K15:K38)<=0,"0",SUMPRODUCT(J15:J38,K15:K38)/$J$39) -> 0 | L39: =SUM(L15:L38) -> 0 | M39: =IF(MAX(M15:M38)<=0,"0",SUMPRODUCT(L15:L38,M15:M38)/$L$39) -> 0 | N39: =SUM(N15:N38) -> 0 | O39: =IF(MAX(O15:O38)<=0,"0",SUMPRODUCT(N15:N38,O15:O38)/$N$39) -> 0
B40: =IF(D11="User Defined","User Defined Oil Rendering GHG Emission Factor, gCO2e/lb oil","Standard Value of Oil Renderingn GHG Emission Factor, gCO2e/lb oil") -> Standard Value of Oil Renderingn GHG Emission Factor, gCO2e/lb oil | D40: =IF(D11="User Defined",G11,'EF Table'!C43) -> 303.8222645 | E40: Region | F40: =IF(D10="U.S.","U.S",G10) -> U.S
B41: Tanker Size, DWT | D41: =N11 -> 12500 | E41: Electricity GHG EF, gCO2e/kWh | F41: =IF(D10="U.S.",'EF Table'!C53,J10) -> 610.3418915
B42: =IF(M11="User Defined","User Defined GHG Emission Factor of Tanker, gCO2e/lb oil: ","Standard Value GHG EF of Tanker, gCO2e/lb oil: ") -> Standard Value GHG EF of Tanker, gCO2e/lb oil: | D42: =O11 -> 34.60329791
B45: Note: Total oil transport by each mode (cells H39, J39, L39, and N39) are not the same as total oil received in cell D39, because oil could be transported in parallel (e.g.: some by truck, some by rail) or in sequential mode (e.g.: same amount of oil by truck first then by rail). The calculations take into account of both in parallel and in sequential or combination of both during the month.

Sheet Tallow3
C1: Tallow Production Inputs | R1: =IF(#REF!="None",0,1) ->  | AH1: Soy Oil | AI1: 1 | AJ1: DNAVSO | AP1: Assumptions or Defaults
H2: Yellow Cells require user input
B3: Section 1. Applicant Information for Tallow Oil Production | H3: Green Cells show the calculation button
B4: 1.1 Company Name | H4: Gray Cells are Calculated Values
B5: 1.2 Company ID
B6: 1.3 Facility ID
B7: 1.4 Tallow Oil Rendering Location | G7: (Click CALCULATE button frequently after updating a value)
B9: Section 2. Information for Tallow Oil Production | AH9: Canola Oil | AI9: 2 | AJ9: DNAVCAO | AP9: 1) Soybean Farming | AQ9: Values | AR9: 1) Canola Farming | AS9: Values | AT9: Note
B10: 2.1 Select Sources of Tallow | D10: U.S. | E10: =IF(D10="User Defined", "2.2 If User-Defined selected, specify source of Tallow3: ","" ) ->  | O10: 2.8 Ocean Tanker GHG EF, gCO2e/ton-mile | AH10: Used Cooking Oil | AI10: 4 | AJ10: DNAVUCO | AP10: b) Energy Consumption (Btu/bushel) | AR10: b) Energy Consumption (Btu/MT of rapeseed)
B11: 2.4 Select Oil Rendering | D11: Standard Values | E11: 2.5 Standard Tallow Rendering GHG Emission Factor, gCO2e/lb oil: | G11: 303.8222645 | H11: 2.6 Standard Tallow Rendering Energy, Btu/lb oil: | J11: 3944 | K11: 2.7 Select Ocean Tanker size for Rendered Oil transport, DWT | M11: Standard Values | N11: 12500 | O11: 34.60329791
B12: Rendered Tallow Oil Inventory and Production | H12: Oil Transport (weighted average)
B13: 3.1 Reporting Month (MM/YYYY) | C13: 3.2 Beginning Tallow Oil Inventory | D13: 3.3 Oil Received | E13: 3.4 Oil Used (Calculated) | F13: 3.5 Ending Tallow Oil Inventory | G13: 3.6 Moisture Content | H13: 3.7 Weighted average of oil transported by HDD Truck | J13: 3.8 Weighted average of oil transported by Ocean Tanker | L13: 3.9 Weighted average of oil transported by Rail | N13: 3.10 Weighted average of oil transported by Barge
C14: lbs. | D14: lbs. | E14: lbs. | F14: lbs. | G14: % | H14: lbs. | I14: miles | J14: lbs. | K14: miles | L14: lbs. | M14: miles | N14: lbs. | O14: miles
E15: =C15+D15-F15 -> 0
E16: =C16+D16-F16 -> 0
E17: =C17+D17-F17 -> 0
E18: =C18+D18-F18 -> 0
E19: =C19+D19-F19 -> 0
E20: 0
E21: 0
E22: 0
E23: 0
E24: 0
E25: 0
E26: 0
E27: 0
E28: 0
E29: 0
E30: 0
E31: 0
E32: 0
E33: 0
E34: 0
E35: 0
E36: 0
E37: 0
E38: 0
B39: Total | D39: =SUM(D15:D38) -> 0 | E39: =SUM(E15:E38)*(1-G39) -> 0 | G39: =IF(MAX($D15:$D38)<=0,"0",SUMPRODUCT(G15:G38,D15:D38)/SUM(D15:D38)) -> 0 | H39: =SUM(H15:H38) -> 0 | I39: =IF(MAX(I15:I38)<=0,"0",SUMPRODUCT(H15:H38,I15:I38)/$H$39) -> 0 | J39: =SUM(J15:J38) -> 0 | K39: =IF(MAX(K15:K38)<=0,"0",SUMPRODUCT(J15:J38,K15:K38)/$J$39) -> 0 | L39: =SUM(L15:L38) -> 0 | M39: =IF(MAX(M15:M38)<=0,"0",SUMPRODUCT(L15:L38,M15:M38)/$L$39) -> 0 | N39: =SUM(N15:N38) -> 0 | O39: =IF(MAX(O15:O38)<=0,"0",SUMPRODUCT(N15:N38,O15:O38)/$N$39) -> 0
B40: =IF(D11="User Defined","User Defined Oil Rendering GHG Emission Factor, gCO2e/lb oil","Standard Value of Oil Renderingn GHG Emission Factor, gCO2e/lb oil") -> Standard Value of Oil Renderingn GHG Emission Factor, gCO2e/lb oil | D40: =IF(D11="User Defined",G11,'EF Table'!C43) -> 303.8222645 | E40: Region | F40: =IF(D10="U.S.","U.S",G10) -> U.S
B41: Tanker Size, DWT | D41: =N11 -> 12500 | E41: Electricity GHG EF, gCO2e/kWh | F41: =IF(D10="U.S.",'EF Table'!C53,J10) -> 610.3418915
B42: =IF(M11="User Defined","User Defined GHG Emission Factor of Tanker, gCO2e/lb oil: ","Standard Value GHG EF of Tanker, gCO2e/lb oil: ") -> Standard Value GHG EF of Tanker, gCO2e/lb oil: | D42: =O11 -> 34.60329791
B45: Note: Total oil transport by each mode (cells H39, J39, L39, and N39) are not the same as total oil received in cell D39, because oil could be transported in parallel (e.g.: some by truck, some by rail) or in sequential mode (e.g.: same amount of oil by truck first then by rail). The calculations take into account of both in parallel and in sequential or combination of both during the month.

Sheet BD-Production
J2: Yellow Cells require user input
J3: Light Blue Cells show CI results
C4: Tier 1 Simplified CI Calculator for Biodiesel | J4: Green Cells show the calculation button
J5: Gray Cells are Calculated Values
A6: Section 1. Applicant Information for Biodiesel Production and Pathway Summary and Estimated CI (g/MJ)
A7: 1.1 Applicant | D7: 1.2 Facility Location (City, State, Country) | H7: 1.5 Application #
A8: 1.3 Pathway Description | D8: 1.4 Provisional Pathway? | E8: No | F8: If yes, enter Month and Year of Provided Data | H8: 1.6 Facility #
A9: 1.7 Application Date | B9: MM/DD/YYYY
A10: =C215&" CI, g/MJ" -> Soy Oil CI, g/MJ | C10: =IF(C11=0,"0",D215) -> 0 | D10: =C218&" CI, g/MJ" -> UCO1 CI, g/MJ | F10: =IF(F11=0,"0",D218) -> 0 | G10: =C221&" CI, g/MJ" -> Tallow1 CI, g/MJ | I10: =IF(I11=0,"0",D221) -> 0
A11: Volume, gal | C11: =H215 -> 0 | D11: Volume, gal | F11: =H218 -> 0 | G11: Volume, gal | I11: =H221 -> 0
A12: =C216&" CI, g/MJ" -> Canola Oil CI, g/MJ | C12: =IF(C13=0,"0",D216) -> 0 | D12: =C219&" CI, g/MJ" -> UCO2 CI, g/MJ | F12: =IF(F13=0,"0",D219) -> 0 | G12: =C222&" CI, g/MJ" -> Tallow2 CI, g/MJ | I12: =IF(I13=0,"0",D222) -> 0
A13: Volume, gal | C13: =H216 -> 0 | D13: Volume, gal | F13: =H219 -> 0 | G13: Volume, gal | I13: =H222 -> 0
A14: =C217 & " CI, g/MJ" -> Corn Oil CI, g/MJ | C14: =IF(C15=0,"0",D217) -> 0 | D14: =C220&" CI, g/MJ" -> UCO3 CI, g/MJ | F14: =IF(F15=0,"0",D220) -> 0 | G14: =C223&" CI, g/MJ" -> Tallow3 CI, g/MJ | I14: =IF(I15=0,"0",D223) -> 0
A15: Volume, gal | C15: =H217 -> 0 | D15: Volume, gal | F15: =H220 -> 0 | G15: Volume, gal | I15: =H223 -> 0
A17: Section 2. Information for Biodiesel Production (FAME)
A18: Region | B18: 2.1 Regional Electricity Mix for Fuel | H18: 1-U.S Ave Mix | J18: =IF(H18="2-User Defined Mix","2.2 Enter GHG EF of Electricity Mix, gCO2e/kWh","") ->  | N18: 0
B19: 2.3 Regional Crude Mix | H19: U.S Average Crude | J19: =IF(H19="U.S Average Crude","","2.4 Enter GHG EF of Crude Sources, gCO2e/MMBtu of Crude") ->  | N19: 5000
B20: 2.5 Regional Natural Gas Source | H20: U.S Average NG | J20: =IF(H20="U.S Average NG","","2.6 Enter GHG EF of NG Sources, gCO2e/MMBtu of NG") ->  | N20: 4000
A21: Process | B21: Inputs for Biodiesel Production | M21: Co-Products | Q21: Fuel Transport
A22: 2.7 Reporting Month (MM/YYYY) | B22: 2.8 Beginning Biodiesel Inventory | C22: 2.9 Biodiesel Produced (Calculated) | D22: 2.10 Ending Biodiesel Inventory | E22: 2.11 Biodiesel Sales | F22: 2.12 NG Use from Utility Invoices | G22: 2.13 Electricity Use from Utility Invoices | H22: 2.14 Alternate Fuel Use | I22: 2.15 Beginning Methanol Inventory | J22: 2.16 Methanol Use (Calculated) | K22: 2.17 Methanol Purchased | L22: 2.18 Ending Methanol Inventory | M22: 2.19 Distillate Bottoms Production (moisture corrected) | N22: 2.20 Free Fatty Acids Production (moisture corrected) | O22: 2.21 Glycerin Production (moisture corrected) | P22: 2.22 Other Co-products (Specify here) | Q22: 2.23 Biodiesel Transportation
B23: gallons (@ 60°F) | C23: gallons (@ 60°F) | D23: gallons (@ 60°F) | E23: gallons (@ 60°F) | F23: MMBtu, HHV | G23: KWh | H23: MMBtu | I23: gal | J23: gal | K23: gal | L23: gal | M23: lbs. | N23: lbs. | O23: lbs. | P23: lbs. | Q23: Mode | R23: Miles
C24: =D24-B24+E24 -> 0 | J24: =I24+K24-L24 -> 0 | Q24: 2.23.a From BD plant to port/railyard by HDD Truck
C25: =D25-B25+E25 -> 0 | J25: =I25+K25-L25 -> 0
C26: =D26-B26+E26 -> 0 | J26: =I26+K26-L26 -> 0
C27: =D27-B27+E27 -> 0 | J27: =I27+K27-L27 -> 0
C28: 0 | J28: 0 | Q28: 2.23.b From BD plant to blending terminal by HDD Truck
C29: 0 | J29: 0
C30: 0 | J30: 0
C31: 0 | J31: 0
C32: 0 | J32: 0 | Q32: 2.23.c By Rail
C33: 0 | J33: 0
C34: 0 | J34: 0 | Q34: 2.23.d By Ocean Tanker (Select Tanker Size first) | R34: Standard Values
C35: 0 | J35: 0 | R35: 22500
C36: 0 | J36: 0 | Q36: GHG EF, gCO2e/gallon BD-mile | R36: 0.09773073162
C37: 0 | J37: 0
C38: 0 | J38: 0 | Q38: Mileage to California
C39: 0 | J39: 0
C40: 0 | J40: 0 | Q40: 2.23.e By Barge
C41: 0 | J41: 0
C42: 0 | J42: =I42+K42-L42 -> 0
C43: 0 | J43: 0
C44: 0 | J44: 0
C45: 0 | J45: 0
C46: 0 | J46: 0
C47: 0 | J47: 0
A48: Total | C48: =SUM(C24:C47) -> 0 | E48: =SUM(E24:E47) -> 0 | F48: =SUM(F24:F47) -> 0 | G48: =SUM(G24:G47) -> 0 | H48: =SUM(H24:H47) -> 0 | J48: =SUM(J24:J47) -> 0 | K48: =SUM(K24:K47) -> 0 | M48: 0 | N48: 0 | O48: 0 | P48: 0
B49: Convert from gallons to lb of BD | C49: =C48*References!C115 -> 0 | D49: lbs. BD | G49: 2.14.a Alternate Fuel GHG Emission Factor, gCO2e/MMBtu | L49: 2.19.a Energy Density for co-products LHV (Btu/lb) | O49: =Fuel_Specs!B29 -> 7979
E50: 2.14.b Conversion Factor from HHV to LHV for cell H47 above | L50: Co-product Energy Allocation Factor | M50: =IFERROR(((Fuel_Specs!$E$29/(Fuel_Specs!$E$29+(M49*M48+N48*N49+O48*O49+P48*P49)/(C48*References!C$115)))),0) -> 0
A51: Section 3. CI Calculations Details
A52: Feedstock Production
B53: Process | D53: Inputs | F53: Values | G53: Shares | H53: GHG Emissions, gCO2e | I53: CI, gCO2e/MMBtu BD | J53: GHG EF Factors | K53: GHG EF Unit | L53: Unallocated, gCO2e/MJ | M53: Mass and Energy Allocation, gCO2e/MJ
A54: Soy Oil | D54: Soy Oil Production | E54: =IF('Soy Oil'!D10="U.S.","1-U.S Ave Mix",'Soy Oil'!G41) -> 1-U.S Ave Mix | L54: =IFERROR(L55+L56+L57+L58+L59,0) -> 0 | M54: =IFERROR(M55+M56+M57+M58+M59,0) -> 0
B55: =IF('Soy Oil'!D10= "User-Defined",'Soy Oil'!G10 &" Soybean Farming and Fertilizers","Soybean Farming and Fertilizers") -> Soybean Farming and Fertilizers | D55: Oil Yield, lb oil/lb soybean | F55: 0.2 | H55: =J55/2000/$F$55/$F$156*$C$49*$E$215 ->  | I55: =H55/$C$49/$E$215/Fuel_Specs!$E$29*10^6 ->  | J55: ='Soy Oil'!D41 -> 332219.7378 | K55: gCO2e/dry ton Soybean | L55: =I55/Fuel_Specs!$H$66 ->  | M55: =L55*$M$50*Fuel_Specs!$B$79*$F$55 -> 
D56: Soybean transported by Medium Truck, miles | F56: 10 | H56: =J56*F56/2000/$F$55/$F$156*$C$49*$E$215 ->  | I56: =H56/$C$49/$E$215/Fuel_Specs!$E$29*10^6 ->  | J56: ='EF Table'!C7 -> 616.2972099 | K56: gCO2e/dry ton Soybean-mile | L56: =I56/Fuel_Specs!$H$66 ->  | M56: =L56*$M$50*Fuel_Specs!$B$79*$F$55 -> 
D57: Soybean transported by Heavy Duty Diesel Truck, miles | F57: =References!C90 -> 40 | H57: =J57*F57/2000/$F$55/$F$156*$C$49*$E$215 ->  | I57: =H57/$C$49/$E$215/Fuel_Specs!$E$29*10^6 ->  | J57: ='EF Table'!C8 -> 153.8912487 | K57: gCO2e/dry ton Soybean-mile | L57: =I57/Fuel_Specs!$H$66 ->  | M57: =L57*$M$50*Fuel_Specs!$B$79*F55 -> 
B58: Soy oil Extraction | H58: =J58*'Soy Oil'!D39 -> 0 | I58: =H58/$C$49/Fuel_Specs!$E$29*10^6/$E$215 ->  | J58: ='Soy Oil'!D42 -> 295.563158 | K58: gCO2e/lb Oil | L58: =I58/Fuel_Specs!$H$66 ->  | M58: =L58*$M$50*Fuel_Specs!$B$79*$F$55 -> 
B59: Soybean Oil Transport, miles | L59: =IFERROR(L61+L62+L63+L64,0) -> 0 | M59: =SUM(M61:M64) -> 
D61: Soy Oil transported by Heavy Duty Diesel Truck, miles | F61: ='Soy Oil'!I39 -> 0 | H61: =F61*J61*'Soy Oil'!H39/Fuel_Specs!$F$53 -> 0 | I61: =H61/$C$49/$E$215/Fuel_Specs!$E$29*10^6 ->  | J61: ='EF Table'!C23 -> 153.8912487 | K61: gCO2e/ton Oil - Mile | L61: =I61/Fuel_Specs!$H$66 ->  | M61: =L61*$M$50*Fuel_Specs!$B$79 -> 
D62: Soy Oil transported by Ocean Tanker, miles | F62: ='Soy Oil'!K39 -> 0 | H62: =F62*J62*'Soy Oil'!J39/Fuel_Specs!$F$53 -> 0 | I62: =H62/$C$49/$E$215/Fuel_Specs!$E$29*10^6 ->  | J62: ='Soy Oil'!$D$44 -> 34.60329791 | K62: gCO2e/ton Oil - Mile | L62: =I62/Fuel_Specs!$H$66 ->  | M62: =L62*$M$50*Fuel_Specs!$B$79 -> 
D63: Soy Oil transported by Rail, miles | F63: ='Soy Oil'!M39 -> 0 | H63: =F63*J63*'Soy Oil'!L39/Fuel_Specs!$F$53 -> 0 | I63: =H63/$C$49/$E$215/Fuel_Specs!$E$29*10^6 ->  | J63: ='EF Table'!C24 -> 27.28328641 | K63: gCO2e/ton Oil - Mile | L63: =I63/Fuel_Specs!$H$66 ->  | M63: =L63*$M$50*Fuel_Specs!$B$79 -> 
D64: Soy Oil transported by Barge, miles | F64: ='Soy Oil'!O39 -> 0 | H64: =F64*J64*'Soy Oil'!N39/Fuel_Specs!$F$53 -> 0 | I64: =H64/$C$49/$E$215/Fuel_Specs!$E$29*10^6 ->  | J64: ='EF Table'!C25 -> 22.41742795 | K64: gCO2e/ton Oil - Mile | L64: =I64/Fuel_Specs!$H$66 ->  | M64: =L64*$M$50*Fuel_Specs!$B$79 -> 
B65: ILUC | M65: 29.1
B66: =IF(Canola!E39>0,"For Canola Oil Production","") ->  | D66: Canola Production | F66: Values | G66: Shares | H66: GHG Emissions, gCO2e | I66: CI, gCO2e/MMBtu BD | J66: GHG EF Factors | K66: GHG EF Unit | L66: Unallocated, gCO2e/MJ | M66: Mass and Energy Allocation, gCO2e/MJ
A67: Canola Oil | D67: Canola Oil Production | E67: =IF(Canola!D10="U.S.","1-U.S Ave Mix",Canola!F40) -> 1-U.S Ave Mix | L67: =IFERROR(L68+L69+L70+L71+L81,0) -> 0 | M67: =IFERROR(M68+M69+M70+M71+M81,0) -> 0
B68: Canola Farming and Fertilizers | D68: Fuel Yield, lb oil/lb canola | F68: =References!E100 -> 0.4733 | H68: =J68/$F$68/Fuel_Specs!$D$53/$F$156*$C$49*$E$216 ->  | I68: =H68/$C$49/$E$216/Fuel_Specs!$E$29*10^6 ->  | J68: =Canola!D40 -> 730671.7024 | K68: gCO2e/dry metric ton Canola | L68: =I68/Fuel_Specs!$H$66 ->  | M68: =L68*$M$50*Fuel_Specs!$B$81*$F$68 -> 
B69: Canola Transport | D69: Canola transported by Medium Truck, miles | F69: 10 | H69: =F69*J69/$F$68/Fuel_Specs!$D$53/$F$156*$C$49*$E$216 ->  | I69: =H69/$C$49/$E$216/Fuel_Specs!$E$29*10^6 ->  | J69: ='EF Table'!C16 -> 679.3513854 | K69: gCO2e/metric ton Canola - Mile | L69: =I69/Fuel_Specs!$H$66 ->  | M69: =L69*$M$50*Fuel_Specs!$B$81*$F$68 -> 
D70: Canola transported by Heavy Duty Diesel Truck, miles | F70: =References!E90 -> 40 | H70: =F70*J70/$F$68/Fuel_Specs!$D$53/$F$156*$C$49*$E$216 ->  | I70: =H70/$C$49/$E$216/Fuel_Specs!$E$29*10^6 ->  | J70: ='EF Table'!$C$17 -> 169.6360641 | K70: gCO2e/metric ton Canola Oil - Mile | L70: =I70/Fuel_Specs!$H$66 ->  | M70: =L70*$M$50*Fuel_Specs!$B$81*$F$68 -> 
B71: Canola Oil Extraction | H71: =J71*Canola!$E$39 -> 0 | I71: =H71/$C$49/Fuel_Specs!$E$29*10^6/$E$216 ->  | J71: =Canola!$D$41 -> 117.221847 | K71: gCO2e/lb Oil | L71: =I71/Fuel_Specs!$H$66 ->  | M71: =L71*$M$50*Fuel_Specs!$B$81*$F$68 -> 
D72: Residual Oil | F72: =$F$71*G72 -> 0
D73: Diesel | F73: 0
E74: Gasoline | F74: 0
D75: Natural Gas | F75: 0 | G75: 0.793 | H75: =F75/10^6*J75/$F$156*$C$49*$E$216 ->  | I75: =H75/$C$49/$E$216/Fuel_Specs!$E$29*10^6 ->  | J75: ='EF Table'!C39 -> 0 | K75: gCO2e/MMBtu NG | L75: =I75/Fuel_Specs!$H$66 ->  | M75: =L75*$M$50 -> 
D76: Coal | F76: 0
E77: LPG | F77: 0
D78: N-Hexane | F78: 0 | G78: 0.073 | H78: =F78/10^6*J78/$F$156*$C$49*$E$216 ->  | I78: =H78/$C$49/$E$216/Fuel_Specs!$E$29*10^6 ->  | J78: ='EF Table'!C31 -> 105842.137 | K78: gCO2e/MMBtu N-Hexane | L78: =I78/Fuel_Specs!$H$66 ->  | M78: =L78*$M$50 -> 
D79: Electricity | F79: 0 | G79: 0.134 | H79: =F79*J79/Fuel_Specs!$E$69/$F$156*$C$49*$E$216 ->  | I79: =H79/$C$49/$E$216/Fuel_Specs!$E$29*10^6 ->  | J79: ='EF Table'!$C$53 -> 610.3418915 | K79: gCO2e/kWh | L79: =I79/Fuel_Specs!$H$66 ->  | M79: =L79*$M$50 -> 
D80: Renewable NG | F80: 0
B81: Canola Oil Transport | L81: =SUM(L82:L86) ->  | M81: =SUM(M82:M86) -> 
D83: Canola Oil transported by Heavy Duty Diesel Truck, miles | F83: =Canola!I39 -> 0 | H83: =F83*J83*Canola!H39/Fuel_Specs!$F$53 -> 0 | I83: =H83/$C$49/$E$216/Fuel_Specs!$E$29*10^6 ->  | J83: ='EF Table'!$C$23 -> 153.8912487 | K83: gCO2e/ton Oil - Mile | L83: =I83/Fuel_Specs!$H$66 ->  | M83: =L83*$M$50*Fuel_Specs!$B$81 -> 
D84: Canola Oil transported by Ocean Tanker, miles | F84: =Canola!K39 -> 0 | H84: =F84*J84*Canola!J39/Fuel_Specs!$F$53 -> 0 | I84: =H84/$C$49/$E$216/Fuel_Specs!$E$29*10^6 ->  | J84: =Canola!$D$43 -> 34.60329791 | K84: gCO2e/ton Oil - Mile | L84: =I84/Fuel_Specs!$H$66 ->  | M84: =L84*$M$50*Fuel_Specs!$B$81 -> 
D85: Canola Oil transported by Rail, miles | F85: =Canola!M39 -> 0 | H85: =F85*J85*Canola!L39/Fuel_Specs!$F$53 -> 0 | I85: =H85/$C$49/$E$216/Fuel_Specs!$E$29*10^6 ->  | J85: ='EF Table'!C24 -> 27.28328641 | K85: gCO2e/ton Oil - Mile | L85: =I85/Fuel_Specs!$H$66 ->  | M85: =L85*$M$50*Fuel_Specs!$B$81 -> 
D86: Canola Oil transported by Barge, miles | F86: =Canola!O39 -> 0 | H86: =F86*J86*Canola!N39/Fuel_Specs!$F$53 -> 0 | I86: =H86/$C$49/$E$216/Fuel_Specs!$E$29*10^6 ->  | J86: ='EF Table'!C25 -> 22.41742795 | K86: gCO2e/ton Oil - Mile | L86: =I86/Fuel_Specs!$H$66 ->  | M86: =L86*$M$50*Fuel_Specs!$B$81 -> 
B87: ILUC | M87: =Fuel_Specs!B74 -> 14.5
A88: Corn/Sorghum Oil | B88: Feedstock Production | D88: Corn/Sorghum Oil Production | E88: =IF('CornSorghum Oil'!D10="U.S.","1-U.S Ave Mix",'CornSorghum Oil'!F40) -> 1-U.S Ave Mix | F88: Values | G88: Shares | H88: GHG Emissions, gCO2e | I88: CI, gCO2e/MMBtu BD | J88: GHG EF Factors | K88: GHG EF Unit | L88: Unallocated, gCO2e/MJ | M88: Mass and Energy Allocation, gCO2e/MJ
B89: Corn/Sorghum Oil Extraction Yield | D89: Oil Yield, lb oil/lb DGS | M89: =IFERROR(M90+M91,0) -> 0
B90: Corn/Sorghum Oil Extraction | H90: =$J$90*'CornSorghum Oil'!$E$39 -> 0 | I90: =H90/$C$49/Fuel_Specs!$E$29*10^6/$E$217 ->  | J90: ='CornSorghum Oil'!$D$40 -> 47.50169444 | K90: gCO2e/lb Oil | L90: =I90/Fuel_Specs!$H$66 ->  | M90: =L90*$M$50*Fuel_Specs!$B$87 -> 
B91: Oil Transport | L91: =SUM(L92:L96) ->  | M91: =SUM(M92:M96) -> 
D93: Corn/Sorghum Oil transported by Heavy Duty Diesel Truck, miles | F93: ='CornSorghum Oil'!I39 -> 0 | H93: =F93*J93*'CornSorghum Oil'!H39/Fuel_Specs!$F$53 -> 0 | I93: =H93/$C$49/$E$217/Fuel_Specs!$E$29*10^6 ->  | J93: ='EF Table'!$C$23 -> 153.8912487 | K93: gCO2e/ton Oil - Mile | L93: =I93/Fuel_Specs!$H$66 ->  | M93: =L93*$M$50*Fuel_Specs!$B$87 -> 
D94: Corn/Sorghum Oil transported by Ocean Tanker, miles | F94: ='CornSorghum Oil'!K39 -> 0 | H94: =F94*J94*'CornSorghum Oil'!J39/Fuel_Specs!$F$53 -> 0 | I94: =H94/$C$49/$E$217/Fuel_Specs!$E$29*10^6 ->  | J94: ='CornSorghum Oil'!D42 -> 34.60329791 | K94: gCO2e/ton Oil - Mile | L94: =I94/Fuel_Specs!$H$66 ->  | M94: =L94*$M$50*Fuel_Specs!$B$87 -> 
D95: Corn/Sorghum Oil transported by Rail, miles | F95: ='CornSorghum Oil'!M39 -> 0 | H95: =F95*J95*'CornSorghum Oil'!L39/Fuel_Specs!$F$53 -> 0 | I95: =H95/$C$49/$E$217/Fuel_Specs!$E$29*10^6 ->  | J95: ='EF Table'!$C$24 -> 27.28328641 | K95: gCO2e/ton Oil - Mile | L95: =I95/Fuel_Specs!$H$66 ->  | M95: =L95*$M$50*Fuel_Specs!$B$87 -> 
D96: Corn/Sorghum Oil transported by Barge, miles | F96: ='CornSorghum Oil'!O39 -> 0 | H96: =F96*J96*'CornSorghum Oil'!N39/Fuel_Specs!$F$53 -> 0 | I96: =H96/$C$49/$E$217/Fuel_Specs!$E$29*10^6 ->  | J96: ='EF Table'!$C$25 -> 22.41742795 | K96: gCO2e/ton Oil - Mile | L96: =I96/Fuel_Specs!$H$66 ->  | M96: =L96*$M$50*Fuel_Specs!$B$87 -> 
B97: ILUC | M97: 0
A98: Used Cooking Oil | B98: Feedstock Production | D98: UCO 1 | E98: =IF('UCO1'!D10="U.S.","1-U.S Ave Mix",'UCO1'!G40) -> 1-U.S Ave Mix | F98: Values | G98: Shares | H98: GHG Emissions, gCO2e | I98: CI, gCO2e/MMBtu BD | J98: GHG EF Factors | K98: GHG EF Unit | L98: Unallocated, gCO2e/MJ | M98: Mass and Energy Allocation, gCO2e/MJ | N98: UCO 2 | O98: Shares | P98: GHG Emissions, gCO2e | Q98: CI, gCO2e/MMBtu BD | R98: GHG EF Factors | S98: GHG EF Unit | T98: Unallocated, gCO2e/MJ | U98: Mass and Energy Allocation, gCO2e/MJ | V98: UCO 3 | W98: Shares | X98: GHG Emissions, gCO2e | Y98: CI, gCO2e/MMBtu BD | Z98: GHG EF Factors | AA98: GHG EF Unit | AB98: Unallocated, gCO2e/MJ | AC98: Mass and Energy Allocation, gCO2e/MJ
L99: =IFERROR(L100+L101+L102+L103+L112,0) -> 0 | M99: =IFERROR(M100+M101+M102+M103+M112,0) -> 0 | N99: Region | O99: =IF('UCO2'!D10="U.S.","1-U.S Ave Mix",'UCO2'!G40) -> 1-U.S Ave Mix | T99: =T100+T101+T102+T103+T112 ->  | U99: =IFERROR(U100+U101+U102+U103+U112,0) -> 0 | V99: Region | W99: =IF('UCO3'!D10="U.S.","1-U.S Ave Mix",'UCO3'!G40) -> 1-U.S Ave Mix | AB99: =AB100+AB101+AB102+AB103+AB112 ->  | AC99: =IFERROR(AC100+AC101+AC102+AC103+AC112,0) -> 0
B100: Raw UCO | D100: Oil Yield, lb oil/lb raw UCO | F100: =References!I100 -> 0.8 | N100: =F100 -> 0.8 | V100: =N100 -> 0.8
B101: Raw UCO Transport | D101: Raw UCO transported by Heavy Truck, miles | F101: =IF('UCO1'!G11=0,0,50) -> 50 | H101: =F101*J101/2000/$F$100/$F$156*$C$49*$E$218 ->  | I101: =H101/($C$49)/$E$218/Fuel_Specs!$E$29*10^6 ->  | J101: ='EF Table'!C23 -> 153.8912487 | K101: gCO2e/ton Raw UCO - Mile | L101: =I101/Fuel_Specs!$H$66 ->  | M101: =L101*$M$50*Fuel_Specs!$B$83 ->  | N101: =IF('UCO2'!G11=0,0,50) -> 50 | P101: =N101*R101/2000/$N$100/$F$156*$C$49*$E$219 ->  | Q101: =P101/($C$49)/$E$219/Fuel_Specs!$E$29*10^6 ->  | R101: ='EF Table'!C23 -> 153.8912487 | S101: gCO2e/ton Raw UCO - Mile | T101: =Q101/Fuel_Specs!$H$66 ->  | U101: =T101*$M$50 ->  | V101: =IF('UCO3'!G11=0,0,50) -> 50 | X101: =V101*Z101/2000/$V$100/$F$156*$C$49*$E$220 ->  | Y101: =X101/$C$49/$E$220/Fuel_Specs!$E$29*10^6 ->  | Z101: ='EF Table'!C23 -> 153.8912487 | AA101: gCO2e/ton Raw UCO - Mile | AB101: =Y101/Fuel_Specs!$H$66 ->  | AC101: =AB101*$M$50 -> 
B102: UCO Treatment/Rendering | H102: =J102*'UCO1'!$E$39 -> 0 | I102: =H102/$C$49/$E$218/Fuel_Specs!$E$29*10^6 ->  | J102: ='UCO1'!$E$40 -> 90.43831825 | K102: gCO2e/lb Oil | L102: =I102/Fuel_Specs!$H$66 ->  | M102: =L102*$M$50*Fuel_Specs!$B$83 ->  | P102: =R102*'UCO2'!$E$39 -> 0 | Q102: =P102/$C$49/$E$219/Fuel_Specs!$E$29*10^6 ->  | R102: ='UCO2'!E40 -> 90.43831825 | S102: gCO2e/lb Oil | T102: =Q102/Fuel_Specs!$H$66 ->  | U102: =T102*$M$50*Fuel_Specs!$B$83 ->  | X102: =Z102*'UCO3'!$E$39 -> 0 | Y102: =X102/$C$49/Fuel_Specs!$E$29*10^6/$E$220 ->  | Z102: ='UCO3'!$E$40 -> 90.43831825 | AA102: gCO2e/lb Oil | AB102: =Y102/Fuel_Specs!$H$66 ->  | AC102: =AB102*$M$50*Fuel_Specs!$B$83 -> 
D103: Residual Oil
D104: Diesel
E105: Gasoline
D106: Natural Gas | F106: 963 | G106: =F106/F102 ->  | H106: =J106*F106/10^6/$F$156*$C$49*$E$218 ->  | I106: =H106/$C$49/$E$218/Fuel_Specs!$E$29*10^6 ->  | J106: ='EF Table'!C30 -> 73424.19464 | K106: gCO2e/MMBtu NG | L106: =I106/Fuel_Specs!$H$66 ->  | M106: =L106*$M$50*Fuel_Specs!$B$83 ->  | N106: 963 | O106: =N106/N102 ->  | P106: =R106*N106/10^6/$F$156*$C$49*$E$219 ->  | Q106: =P106/$C$49/$E$219/Fuel_Specs!$E$29*10^6 ->  | R106: ='EF Table'!C30 -> 73424.19464 | S106: gCO2e/MMBtu NG | T106: =Q106/Fuel_Specs!$H$66 ->  | U106: =T106*$M$50*Fuel_Specs!$B$83 ->  | V106: 963 | W106: =V106/V102 ->  | X106: =Z106*V106/10^6/$F$156*$C$49*$E$220 ->  | Y106: =X106/$C$49/$E$220/Fuel_Specs!$E$29*10^6 ->  | Z106: ='EF Table'!C30 -> 73424.19464 | AA106: gCO2e/MMBtu NG | AB106: =Y106/Fuel_Specs!$H$66 ->  | AC106: =AB106*$M$50*Fuel_Specs!$B$83 -> 
D107: Coal
E108: LPG
D109: N-Hexane
D110: Electricity | F110: 110 | G110: =F110/F102 ->  | H110: =F110*J110/Fuel_Specs!$F$69/$F$156*$C$49*$E$218 ->  | I110: =H110/$C$49/$E$218/Fuel_Specs!$E$29*10^6 ->  | J110: =HLOOKUP(A100,'EF Table'!$C$52:$AF$57,2,FALSE) ->  | K110: gCO2e/kWh | L110: =I110/Fuel_Specs!$H$66 ->  | M110: =L110*$M$50*Fuel_Specs!$B$83 ->  | N110: 110 | O110: =N110/N102 ->  | P110: =N110*R110/Fuel_Specs!$F$69/$F$156*$C$49*$E$219 ->  | Q110: =P110/$C$49/$E$219/Fuel_Specs!$E$29*10^6 ->  | R110: =HLOOKUP(A100,'EF Table'!$C$52:$AF$57,2,FALSE) ->  | S110: gCO2e/kWh | T110: =Q110/Fuel_Specs!$H$66 ->  | U110: =T110*$M$50*Fuel_Specs!$B$83 ->  | V110: 110 | W110: =V110/V102 ->  | X110: =V110*Z110/Fuel_Specs!$F$69/$F$156*$C$49*$E$220 ->  | Y110: =X110/$C$49/$E$220/Fuel_Specs!$E$29*10^6 ->  | Z110: =HLOOKUP(A100,'EF Table'!$C$52:$AF$57,2,FALSE) ->  | AA110: gCO2e/kWh | AB110: =Y110/Fuel_Specs!$H$66 ->  | AC110: =AB110*$M$50*Fuel_Specs!$B$83 -> 
D111: Renewable NG
B112: Rendered Oil Transport | L112: =SUM(L113:L117) ->  | M112: =SUM(M113:M117) ->  | T112: =SUM(T113:T117) ->  | U112: =SUM(U113:U117) ->  | AB112: =SUM(AB113:AB117) ->  | AC112: =SUM(AC113:AC117) -> 
D114: Rendered UCO transported by Heavy Duty Diesel Truck, miles | F114: ='UCO1'!I39 -> 0 | H114: =F114*J114*'UCO1'!H39/Fuel_Specs!$F$53 -> 0 | I114: =H114/$C$49/$E$218/Fuel_Specs!$E$29*10^6 ->  | J114: ='EF Table'!$C$23 -> 153.8912487 | K114: gCO2e/ton Oil - Mile | L114: =I114/Fuel_Specs!$H$66 ->  | M114: =L114*$M$50*Fuel_Specs!$B$83 ->  | N114: ='UCO2'!I39 -> 0 | P114: =N114*R114*'UCO2'!H39/Fuel_Specs!$F$53 -> 0 | Q114: =P114/$C$49/$E$219/Fuel_Specs!$E$29*10^6 ->  | R114: ='EF Table'!$C$23 -> 153.8912487 | S114: gCO2e/ton Oil - Mile | T114: =Q114/Fuel_Specs!$H$66 ->  | U114: =T114*$M$50*Fuel_Specs!$B$83 ->  | V114: ='UCO3'!I39 -> 0 | X114: =V114*Z114*'UCO3'!H39/Fuel_Specs!$F$53 -> 0 | Y114: =X114/$C$49/$E$220/Fuel_Specs!$E$29*10^6 ->  | Z114: ='EF Table'!$C$23 -> 153.8912487 | AA114: gCO2e/ton Oil - Mile | AB114: =Y114/Fuel_Specs!$H$66 ->  | AC114: =AB114*$M$50*Fuel_Specs!$B$83 -> 
D115: Rendered UCO transported by Ocean Tanker, miles | F115: ='UCO1'!K39 -> 0 | H115: =F115*J115*'UCO1'!J39/Fuel_Specs!$F$53 -> 0 | I115: =H115/$C$49/$E$218/Fuel_Specs!$E$29*10^6 ->  | J115: ='UCO1'!E42 -> 34.60329791 | K115: gCO2e/ton Oil - Mile | L115: =I115/Fuel_Specs!$H$66 ->  | M115: =L115*$M$50*Fuel_Specs!$B$83 ->  | N115: ='UCO2'!K39 -> 0 | P115: =N115*R115*'UCO2'!J39/Fuel_Specs!$F$53 -> 0 | Q115: =P115/$C$49/$E$219/Fuel_Specs!$E$29*10^6 ->  | R115: ='UCO2'!E42 -> 34.60329791 | S115: gCO2e/ton Oil - Mile | T115: =Q115/Fuel_Specs!$H$66 ->  | U115: =T115*$M$50*Fuel_Specs!$B$83 ->  | V115: ='UCO3'!K39 -> 0 | X115: =V115*Z115*'UCO3'!J39/Fuel_Specs!$F$53 -> 0 | Y115: =X115/$C$49/$E$220/Fuel_Specs!$E$29*10^6 ->  | Z115: ='UCO3'!E42 -> 34.60329791 | AA115: gCO2e/ton Oil - Mile | AB115: =Y115/Fuel_Specs!$H$66 ->  | AC115: =AB115*$M$50*Fuel_Specs!$B$83 -> 
D116: Rendered UCO transported by Rail, miles | F116: ='UCO1'!M39 -> 0 | H116: =F116*J116*'UCO1'!L39/Fuel_Specs!$F$53 -> 0 | I116: =H116/$C$49/$E$218/Fuel_Specs!$E$29*10^6 ->  | J116: ='EF Table'!$C$24 -> 27.28328641 | K116: gCO2e/ton Oil - Mile | L116: =I116/Fuel_Specs!$H$66 ->  | M116: =L116*$M$50*Fuel_Specs!$B$83 ->  | N116: ='UCO2'!M39 -> 0 | P116: =N116*R116*'UCO2'!L39/Fuel_Specs!$F$53 -> 0 | Q116: =P116/$C$49/$E$219/Fuel_Specs!$E$29*10^6 ->  | R116: ='EF Table'!$C$24 -> 27.28328641 | S116: gCO2e/ton Oil - Mile | T116: =Q116/Fuel_Specs!$H$66 ->  | U116: =T116*$M$50*Fuel_Specs!$B$83 ->  | V116: ='UCO3'!M39 -> 0 | X116: =V116*Z116*'UCO3'!L39/Fuel_Specs!$F$53 -> 0 | Y116: =X116/$C$49/$E$220/Fuel_Specs!$E$29*10^6 ->  | Z116: ='EF Table'!$C$24 -> 27.28328641 | AA116: gCO2e/ton Oil - Mile | AB116: =Y116/Fuel_Specs!$H$66 ->  | AC116: =AB116*$M$50*Fuel_Specs!$B$83 -> 
D117: Rendered UCO transported by Barge, miles | F117: ='UCO1'!O39 -> 0 | H117: =F117*J117*'UCO1'!N39/Fuel_Specs!$F$53 -> 0 | I117: =H117/$C$49/$E$218/Fuel_Specs!$E$29*10^6 ->  | J117: ='EF Table'!$C$25 -> 22.41742795 | K117: gCO2e/ton Oil - Mile | L117: =I117/Fuel_Specs!$H$66 ->  | M117: =L117*$M$50*Fuel_Specs!$B$83 ->  | N117: ='UCO2'!O39 -> 0 | P117: =N117*R117*'UCO2'!N39/Fuel_Specs!$F$53 -> 0 | Q117: =P117/$C$49/$E$219/Fuel_Specs!$E$29*10^6 ->  | R117: ='EF Table'!$C$25 -> 22.41742795 | S117: gCO2e/ton Oil - Mile | T117: =Q117/Fuel_Specs!$H$66 ->  | U117: =T117*$M$50*Fuel_Specs!$B$83 ->  | V117: ='UCO3'!O39 -> 0 | X117: =V117*Z117*'UCO3'!N39/Fuel_Specs!$F$53 -> 0 | Y117: =X117/$C$49/$E$220/Fuel_Specs!$E$29*10^6 ->  | Z117: ='EF Table'!$C$25 -> 22.41742795 | AA117: gCO2e/ton Oil - Mile | AB117: =Y117/Fuel_Specs!$H$66 ->  | AC117: =AB117*$M$50*Fuel_Specs!$B$83 -> 
B118: ILUC | AC118: 0
A119: Tallow | B119: Feedstock Production | F119: Values | G119: Shares | H119: GHG Emissions, gCO2e | I119: CI, gCO2e/MMBtu BD | J119: GHG EF Factors | K119: GHG EF Unit | L119: Unallocated, gCO2e/MJ | M119: Mass and Energy Allocation, gCO2e/MJ | N119: Tallow 2 | O119: Shares | P119: GHG Emissions, gCO2e | Q119: CI, gCO2e/MMBtu BD | V119: Tallow 3 | W119: Shares | X119: GHG Emissions, gCO2e | Y119: CI, gCO2e/MMBtu BD
D120: Tallow 1 | E120: =IF(Tallow1!D10="U.S.","1-U.S Ave Mix",Tallow1!F40) -> 1-U.S Ave Mix | L120: =L122+L123+L124+L121 ->  | M120: =IFERROR(M121+M122+M123+M124,0) -> 0 | N120: Region | O120: =IF(Tallow2!D10="U.S.","1-U.S Ave Mix",Tallow2!F40) -> 1-U.S Ave Mix | T120: =T122+T123+T124 ->  | U120: =IFERROR(U121+U122+U123+U124,0) -> 0 | V120: Region | W120: =IF(Tallow3!D10="U.S.","1-U.S Ave Mix",Tallow3!F40) -> 1-U.S Ave Mix | AB120: =AB122+AB123+AB124 ->  | AC120: =IFERROR(AC121+AC122+AC123+AC124,0) -> 0
B121: Tallow | D121: Oil Yield, lb oil/lb raw Tallow | F121: =1/3.5 -> 0.2857142857 | N121: =F121 -> 0.2857142857 | V121: =F121 -> 0.2857142857
B123: Tallow Rendering | H123: =J123*Tallow1!$E$39 -> 0 | I123: =H123/$C$49/Fuel_Specs!$E$29*10^6/$E$221 ->  | J123: =Tallow1!$D$40 -> 303.8222645 | K123: gCO2e/lb Oil | L123: =I123/Fuel_Specs!$H$66 ->  | M123: =L123*$M$50*Fuel_Specs!$B$85 ->  | P123: =R123*Tallow2!$E$39 -> 0 | Q123: =P123/$C$49/Fuel_Specs!$E$29*10^6/$E$222 ->  | R123: =Tallow2!$D$40 -> 303.8222645 | S123: gCO2e/lb Oil | T123: =Q123/Fuel_Specs!$H$66 ->  | U123: =T123*$M$50*Fuel_Specs!$B$85 ->  | X123: =Z123*Tallow3!$E$39 -> 0 | Y123: =X123/$C$49/Fuel_Specs!$E$29*10^6/$E$223 ->  | Z123: =Tallow3!D40 -> 303.8222645 | AA123: gCO2e/lb Oil | AB123: =Y123/Fuel_Specs!$H$66 ->  | AC123: =AB123*$M$50*Fuel_Specs!$B$85 -> 
B124: Rendered Oil Transport | L124: =SUM(L126:L129) ->  | M124: =SUM(M125:M129) ->  | T124: =SUM(T126:T129) ->  | U124: =SUM(U125:U129) ->  | AB124: =SUM(AB126:AB129) ->  | AC124: =SUM(AC125:AC129) -> 
D126: Tallow Oil transported by Heavy Duty Diesel Truck, miles | F126: =Tallow1!I39 -> 0 | H126: =F126*J126*Tallow1!H39/Fuel_Specs!$F$53 -> 0 | I126: =H126/$C$49/$E$221/Fuel_Specs!$E$29*10^6 ->  | J126: ='EF Table'!$C$23 -> 153.8912487 | K126: gCO2e/ton Oil - Mile | L126: =I126/Fuel_Specs!$H$66 ->  | M126: =L126*$M$50*Fuel_Specs!$B$85 ->  | N126: =Tallow2!I39 -> 0 | P126: =N126*R126*Tallow2!H39/Fuel_Specs!$F$53 -> 0 | Q126: =P126/$C$49/$E$222/Fuel_Specs!$E$29*10^6 ->  | R126: ='EF Table'!$C$23 -> 153.8912487 | S126: gCO2e/ton Oil - Mile | T126: =Q126/Fuel_Specs!$H$66 ->  | U126: =T126*$M$50*Fuel_Specs!$D$85 ->  | V126: =Tallow3!I39 -> 0 | X126: =V126*Z126*Tallow3!H39/Fuel_Specs!$F$53 -> 0 | Y126: =X126/$C$49/$E$223/Fuel_Specs!$E$29*10^6 ->  | Z126: ='EF Table'!$C$23 -> 153.8912487 | AA126: gCO2e/ton Oil - Mile | AB126: =Y126/Fuel_Specs!$H$66 ->  | AC126: =AB126*$M$50*Fuel_Specs!$D$85 -> 
D127: Tallow transported by Ocean Tanker, miles | F127: =Tallow1!K39 -> 0 | H127: =F127*J127*Tallow1!J39/Fuel_Specs!$F$53 -> 0 | I127: =H127/$C$49/$E$221/Fuel_Specs!$E$29*10^6 ->  | J127: =Tallow1!D42 -> 34.60329791 | K127: gCO2e/ton Oil - Mile | L127: =I127/Fuel_Specs!$H$66 ->  | M127: =L127*$M$50*Fuel_Specs!$B$85 ->  | N127: =Tallow2!K39 -> 0 | P127: =N127*R127*Tallow2!J39/Fuel_Specs!$F$53 -> 0 | Q127: =P127/$C$49/$E$222/Fuel_Specs!$E$29*10^6 ->  | R127: =Tallow2!D42 -> 34.60329791 | S127: gCO2e/ton Oil - Mile | T127: =Q127/Fuel_Specs!$H$66 ->  | U127: =T127*$M$50*Fuel_Specs!$D$85 ->  | V127: =Tallow3!K39 -> 0 | X127: =V127*Z127*Tallow3!J39/Fuel_Specs!$F$53 -> 0 | Y127: =X127/$C$49/$E$223/Fuel_Specs!$E$29*10^6 ->  | Z127: =Tallow3!D42 -> 34.60329791 | AA127: gCO2e/ton Oil - Mile | AB127: =Y127/Fuel_Specs!$H$66 ->  | AC127: =AB127*$M$50*Fuel_Specs!$D$85 -> 
D128: Tallow transported by Rail, miles | F128: =Tallow1!M39 -> 0 | H128: =F128*J128*Tallow1!L39/Fuel_Specs!$F$53 -> 0 | I128: =H128/$C$49/$E$221/Fuel_Specs!$E$29*10^6 ->  | J128: ='EF Table'!$C$24 -> 27.28328641 | K128: gCO2e/ton Oil - Mile | L128: =I128/Fuel_Specs!$H$66 ->  | M128: =L128*$M$50*Fuel_Specs!$B$85 ->  | N128: =Tallow2!M39 -> 0 | P128: =N128*R128*Tallow2!L39/Fuel_Specs!$F$53 -> 0 | Q128: =P128/$C$49/$E$222/Fuel_Specs!$E$29*10^6 ->  | R128: ='EF Table'!$C$24 -> 27.28328641 | S128: gCO2e/ton Oil - Mile | T128: =Q128/Fuel_Specs!$H$66 ->  | U128: =T128*$M$50*Fuel_Specs!$D$85 ->  | V128: =Tallow3!M39 -> 0 | X128: =V128*Z128*Tallow3!L39/Fuel_Specs!$F$53 -> 0 | Y128: =X128/$C$49/$E$223/Fuel_Specs!$E$29*10^6 ->  | Z128: ='EF Table'!$C$24 -> 27.28328641 | AA128: gCO2e/ton Oil - Mile | AB128: =Y128/Fuel_Specs!$H$66 ->  | AC128: =AB128*$M$50*Fuel_Specs!$D$85 -> 
D129: Tallow transported by Barge, miles | F129: =Tallow1!O39 -> 0 | H129: =F129*J129*Tallow1!N39/Fuel_Specs!$F$53 -> 0 | I129: =H129/$C$49/$E$221/Fuel_Specs!$E$29*10^6 ->  | J129: ='EF Table'!$C$25 -> 22.41742795 | K129: gCO2e/ton Oil - Mile | L129: =I129/Fuel_Specs!$H$66 ->  | M129: =L129*$M$50*Fuel_Specs!$B$85 ->  | N129: =Tallow2!O39 -> 0 | P129: =N129*R129*Tallow2!N39/Fuel_Specs!$F$53 -> 0 | Q129: =P129/$C$49/$E$222/Fuel_Specs!$E$29*10^6 ->  | R129: ='EF Table'!$C$25 -> 22.41742795 | S129: gCO2e/ton Oil - Mile | T129: =Q129/Fuel_Specs!$H$66 ->  | U129: =T129*$M$50*Fuel_Specs!$D$85 ->  | V129: =Tallow3!O39 -> 0 | X129: =V129*Z129*Tallow3!N39/Fuel_Specs!$F$53 -> 0 | Y129: =X129/$C$49/$E$223/Fuel_Specs!$E$29*10^6 ->  | Z129: ='EF Table'!$C$25 -> 22.41742795 | AA129: gCO2e/ton Oil - Mile | AB129: =Y129/Fuel_Specs!$H$66 ->  | AC129: =AB129*$M$50*Fuel_Specs!$D$85 -> 
A153: Biodiesel Production
A154: Region | D154: Fuel Production | F154: Values | G154: Shares | H154: GHG Emissions, gCO2e | I154: CI, gCO2e/MMBtu BD | J154: EF Factors | K154: EF Unit | L154: Unallocated, gCO2e/MJ | M154: After Energy Allocation, gCO2e/MJ
A155: ='BD-Production'!H18 -> 1-U.S Ave Mix | B155: Transesterification | L155: =IFERROR(L157+L167+L177+L172+L173+L174,0) -> 0 | M155: =IFERROR(M157+M167+M177+M172+M173+M174,0) -> 0
B156: Average Biodiesel Yield, lb BD/lb Feedstock | F156: =IFERROR($C$49/('Soy Oil'!E39+Canola!E39+'CornSorghum Oil'!E39+'UCO1'!E39+'UCO2'!E39+'UCO3'!E39+Tallow1!E39+Tallow2!E39+Tallow3!E39),0) -> 0
B157: (Pre-treatment/FFA Removal included) | D157: Natural gas, MMBtu (HHV) | F157: =F48 -> 0 | L157: =SUM(L158:L166) ->  | M157: =SUM(M158:M166) -> 
E158: Convert to Btu/lb BD (LHV) | F158: =F157*Fuel_Specs!$I$23*10^6/$C$49 ->  | G158: =F158/($F$158+$F$160+$F$162+$F$164+$F$166) ->  | H158: =F158/10^6*$C$49*J158 ->  | I158: =H158/$C$49/Fuel_Specs!$E$29*10^6 ->  | J158: =IF(H20="User Defined NG",'EF Table'!D30,'EF Table'!C30) -> 73424.19464 | K158: gCO2e/MMBtu NG | L158: =I158/Fuel_Specs!$H$66 ->  | M158: =L158*$M$50*Fuel_Specs!$B$79 -> 
D159: Electricity, kWh | F159: =G48 -> 0
E160: Convert to Btu/lb fuel (LHV) | F160: =F159*Fuel_Specs!$F$69/$C$49 ->  | G160: =F160/($F$158+$F$160+$F$162+$F$164+$F$166) ->  | H160: =F160*$C$49*J160/Fuel_Specs!F69 ->  | I160: =H160/$C$49/Fuel_Specs!$E$29*10^6 ->  | J160: =HLOOKUP($A$155,'EF Table'!$C$52:$AF$57,3,FALSE) -> 610.3418915 | K160: gCO2e/kWh | L160: =I160/Fuel_Specs!$H$66 ->  | M160: =L160*$M$50*Fuel_Specs!$B$79 -> 
D161: Other Fuel, MMBtu (HHV) | F161: =H48 -> 0
D162: Convert to Btu/lb fuel (LHV) | F162: =F161*H50*10^6/$C$49 ->  | G162: =F162/($F$158+$F$160+$F$162+$F$164+$F$166) ->  | H162: =F162/10^6*$C$49*J162 ->  | I162: =H162/$C$49/Fuel_Specs!$E$29*10^6 ->  | J162: =H49 -> 0 | K162: gCO2e/MMBtu of Other Fuel | L162: =I162/Fuel_Specs!$H$66 ->  | M162: =L162*$M$50*Fuel_Specs!$B$79 -> 
D165: Methanol Use, gallons (HHV) | F165: =J48 -> 0
E166: Convert to Btu/lb fuel (LHV) | F166: =F165*Fuel_Specs!$B$16/$C$49 ->  | G166: =F166/($F$158+$F$160+$F$162+$F$164+$F$166) ->  | H166: =F166/10^6*$C$49*J166 ->  | I166: =H166/$C$49/Fuel_Specs!$E$29*10^6 ->  | J166: ='EF Table'!C36 -> 113250.9966 | K166: gCO2e/MMBtu Methanol | L166: =I166/Fuel_Specs!$H$66 ->  | M166: =L166*$M$50*Fuel_Specs!$B$79 -> 
D167: Chemical Use CI, g/MJ | L167: =References!C106 -> 0.65 | M167: =L167 -> 0.65
D168: Total Thermal energy, Btu/lb fuel | F168: =F158+F164+F162+F166 -> 
D169: Total Electricity energy, Btu/lb fuel | F169: =F164+F160 -> 
D170: Total Energy, Btu/lb fuel | F170: =F168+F169 -> 
B171: Co-product Credit | D171: Distillate Bottoms, lbs. | F171: =M48 -> 0 | G171: =(M48*M49)/($C$48*Fuel_Specs!$B$17) ->  | J171: =M49 -> 0
B172: (Energy Allocation) | D172: Free Fatty Acids, lbs. | F172: =N48 -> 0 | G172: =(N49*N48)/($C$48*Fuel_Specs!$B$17) ->  | J172: =N49 -> 0
D173: Glycerin, lbs. | F173: =O48 -> 0 | G173: =(O48*O49)/($C$48*Fuel_Specs!$B$17) ->  | J173: =O49 -> 7979
D174: Other, lbs. | F174: =P48 -> 0 | G174: =(P48*P49)/($C$48*Fuel_Specs!$B$17) ->  | J174: =P49 -> 0
B175: Corn Oil Use as Debit to DGS in Corn Ethanol | D175: Corn Oil from DGS | F175: ='CornSorghum Oil'!E39 -> 0 | H175: =F175*J175 -> 0 | I175: =H175/$C$49/$E$217/Fuel_Specs!$E$29*10^6 ->  | J175: ='EF Table'!$C$67 -> 177.1574839 | K175: gCO2e/lb Oil | L175: =I175/Fuel_Specs!$H$66 ->  | M175: =IFERROR(L175*$M$50*Fuel_Specs!$B$87,0) -> 0
L177: =SUM(L178:L181) ->  | M177: =SUM(M178:M181) -> 0
B178: Biodiesel Transport | D178: by Diesel HDT, miles | F178: =R24+R28 -> 0 | G178: 1 | H178: =F178*J178*$C$48 -> 0 | I178: =H178/$E$48/Fuel_Specs!$B$17*10^6 ->  | J178: ='EF Table'!C48 -> 0.4652397981 | K178: gCO2e/gallon BD - Mile | L178: =I178/Fuel_Specs!$H$66 ->  | M178: =IFERROR(L178,0) -> 0
D179: by Rail, miles | F179: =R32 -> 0 | G179: 1 | H179: =F179*J179*$C$48 -> 0 | I179: =H179/$E$48/Fuel_Specs!$B$17*10^6 ->  | J179: ='EF Table'!C49 -> 0.1010809834 | K179: gCO2e/gallon BD - Mile | L179: =I179/Fuel_Specs!$H$66 ->  | M179: =IFERROR(L179,0) -> 0
D180: By Ocean Tanker, miles | F180: =R38 -> 0 | G180: 1 | H180: =F180*J180*$C$48 -> 0 | I180: =H180/$C$48/Fuel_Specs!$B$17*10^6 ->  | J180: =$R$36 -> 0.09773073162 | K180: gCO2e/gallon BD - Mile | L180: =I180/Fuel_Specs!$H$66 ->  | M180: =IFERROR(L180,0) -> 0
D181: by Barge, miles | F181: =R40 -> 0 | G181: 1 | H181: =F181*J181*$C$48 -> 0 | I181: =H181/$C$48/Fuel_Specs!$B$17*10^6 ->  | J181: ='EF Table'!C51 -> 0.08305361856 | K181: gCO2e/gallon BD - Mile | L181: =I181/Fuel_Specs!$H$66 ->  | M181: =IFERROR(L181,0) -> 0
B182: Tailpipe Emissions | M182: 0.76
B183: CI Summary | D183: BD from Soy Oil, gCO2e/MJ | F183: =SUM(F184:F187) -> 0
D184: Feedstock Production, gCO2e/MJ | F184: =IF('Soy Oil'!$E$39=0,0,M54) -> 0
D185: Fuel Production, gCO2e/MJ | F185: =IF('Soy Oil'!$E$39=0,0,M155) -> 0
D186: Indirect Land Use, gCO2e/MJ | F186: =IF('Soy Oil'!$E$39=0,0,M65) -> 0
D187: Tailpipe Emissions, gCO2e/MJ | F187: =IF('Soy Oil'!$E$39=0,0,$M$182) -> 0
D188: BD from Canola Oil, gCO2e/MJ | F188: =SUM(F189:F192) -> 0
D189: Feedstock Production, gCO2e/MJ | F189: =IF(Canola!$E$39=0,0,M67) -> 0
D190: Fuel Production, gCO2e/MJ | F190: =IF(Canola!$E$39=0,0,M155) -> 0
D191: Indirect Land Use, gCO2e/MJ | F191: =IF(Canola!$E$39=0,0,M87) -> 0
D192: Tailpipe Emissions, gCO2e/MJ | F192: =IF(Canola!$E$39=0,0,$M$182) -> 0
D193: BD from Corn Oil, gCO2e/MJ | F193: =SUM(F194:F197) -> 0
D194: Feedstock Production, gCO2e/MJ | F194: =IF('CornSorghum Oil'!$E$39=0,0,M89+M175) -> 0
D195: Fuel Production, gCO2e/MJ | F195: =IF('CornSorghum Oil'!$E$39=0,0,M155) -> 0
D196: Indirect Land Use, gCO2e/MJ | F196: 0
D197: Tailpipe Emissions, gCO2e/MJ | F197: =IF('CornSorghum Oil'!$E$39=0,0,$M$182) -> 0
D198: BD from Used Cooking Oil 1, gCO2e/MJ | F198: =SUM(F199:F202) -> 0 | G198: BD from Used Cooking Oil 2, gCO2e/MJ | I198: =SUM(I199:I202) -> 0 | J198: BD from Used Cooking Oil 3, gCO2e/MJ | L198: =SUM(L199:L202) -> 0
D199: Feedstock Production, gCO2e/MJ | F199: =IF('UCO1'!$E$39=0,0,M99) -> 0 | G199: Feedstock Production, gCO2e/MJ | I199: =IF('UCO2'!$E$39=0,0,U99) -> 0 | J199: Feedstock Production, gCO2e/MJ | L199: =IF('UCO3'!$E$39=0,0,AC99) -> 0
D200: Fuel Production, gCO2e/MJ | F200: =IF('UCO1'!$E$39=0,0,M155) -> 0 | G200: Fuel Production, gCO2e/MJ | I200: =IF('UCO2'!$E$39=0,0,M155) -> 0 | J200: Fuel Production, gCO2e/MJ | L200: =IF('UCO3'!$E$39=0,0,M155) -> 0
D201: Indirect Land Use, gCO2e/MJ | F201: 0 | G201: Indirect Land Use, gCO2e/MJ | I201: 0 | J201: Indirect Land Use, gCO2e/MJ | L201: 0
D202: Tailpipe Emissions, gCO2e/MJ | F202: =IF('UCO1'!$E$39=0,0,$M$182) -> 0 | G202: Tailpipe Emissions, gCO2e/MJ | I202: =IF('UCO2'!$E$39=0,0,$M$182) -> 0 | J202: Tailpipe Emissions, gCO2e/MJ | L202: =IF('UCO3'!$E$39=0,0,$M$182) -> 0
D203: BD from Tallow 1,gCO2e/MJ | F203: =SUM(F204:F207) -> 0 | G203: BD from Tallow 2,gCO2e/MJ | I203: =SUM(I204:I207) -> 0 | J203: BD from Tallow 3,gCO2e/MJ | L203: =SUM(L204:L207) -> 0
D204: Feedstock Production, gCO2e/MJ | F204: =IF(Tallow1!$E$39=0,0,M120) -> 0 | G204: Feedstock Production, gCO2e/MJ | I204: =IF(Tallow2!$E$39=0,0,U120) -> 0 | J204: Feedstock Production, gCO2e/MJ | L204: =IF(Tallow3!$E$39=0,0,AC120) -> 0
D205: Fuel Production, gCO2e/MJ | F205: =IF(Tallow1!$E$39=0,0,M155) -> 0 | G205: Fuel Production, gCO2e/MJ | I205: =IF(Tallow2!$E$39=0,0,M155) -> 0 | J205: Fuel Production, gCO2e/MJ | L205: =IF(Tallow3!$E$39=0,0,M155) -> 0
D206: Indirect Land Use, gCO2e/MJ | F206: =0 -> 0 | G206: Indirect Land Use, gCO2e/MJ | I206: =0 -> 0 | J206: Indirect Land Use, gCO2e/MJ | L206: =0 -> 0
D207: Tailpipe Emissions, gCO2e/MJ | F207: =IF(Tallow1!$E$39=0,0,$M$182) -> 0 | G207: Tailpipe Emissions, gCO2e/MJ | I207: =IF(Tallow2!$E$39=0,0,$M$182) -> 0 | J207: Tailpipe Emissions, gCO2e/MJ | L207: =IF(Tallow3!$E$39=0,0,$M$182) -> 0
D208: BD from Other Feedstock ,gCO2e/MJ | F208: =SUM(F209:F212) -> 0.76
D209: Feedstock Production, gCO2e/MJ | F209: 0
D210: Fuel Production, gCO2e/MJ | F210: 0
D211: Indirect Land Use, gCO2e/MJ | F211: 0
D212: Tailpipe Emissions, gCO2e/MJ | F212: =$M$182 -> 0.76
B214: Position | C214: ID | D214: CI | E214: % | H214: Volume, gals. | I214: Weight, lbs.
B215: 1 | C215: Soy Oil | D215: =VLOOKUP(C215,$F$215:$G$227,2,FALSE) -> 0 | E215: =IFERROR('Soy Oil'!E39/('Soy Oil'!$E$39+Canola!$E$39+'UCO1'!$E$39+'UCO2'!$E$39+'UCO3'!$E$39+Tallow1!$E$39+Tallow2!$E$39+Tallow3!$E$39+'CornSorghum Oil'!$E$39),0) -> 0 | F215: =C215 -> Soy Oil | G215: =F$183 -> 0 | H215: =E215*$C$48 -> 0 | I215: =H215*References!$C$115 -> 0
B216: 2 | C216: Canola Oil | D216: 0 | E216: =IFERROR(Canola!$E$39/('Soy Oil'!$E$39+Canola!$E$39+'UCO1'!$E$39+'UCO2'!$E$39+'UCO3'!$E$39+Tallow1!$E$39+Tallow2!$E$39+Tallow3!$E$39+'CornSorghum Oil'!$E$39),0) -> 0 | F216: Canola Oil | G216: =F188 -> 0 | H216: =E216*$C$48 -> 0 | I216: =H216*References!$C$115 -> 0
B217: 3 | C217: Corn Oil | D217: 0 | E217: =IFERROR('CornSorghum Oil'!$E$39/('Soy Oil'!$E$39+Canola!$E$39+'UCO1'!$E$39+'UCO2'!$E$39+'UCO3'!$E$39+Tallow1!$E$39+Tallow2!$E$39+Tallow3!$E$39+'CornSorghum Oil'!$E$39),0) -> 0 | F217: Corn Oil | G217: =F193 -> 0 | H217: 0 | I217: =H217*References!$C$115 -> 0
B218: 4 | C218: UCO1 | D218: 0 | E218: =IFERROR('UCO1'!$E$39/('Soy Oil'!$E$39+Canola!$E$39+'UCO1'!$E$39+'UCO2'!$E$39+'UCO3'!$E$39+Tallow1!$E$39+Tallow2!$E$39+Tallow3!$E$39+'CornSorghum Oil'!$E$39),0) -> 0 | F218: UCO1 | G218: =F198 -> 0 | H218: 0 | I218: =H218*References!$C$115 -> 0
B219: 5 | C219: UCO2 | D219: 0 | E219: =IFERROR('UCO2'!$E$39/('Soy Oil'!$E$39+Canola!$E$39+'UCO1'!$E$39+'UCO2'!$E$39+'UCO3'!$E$39+Tallow1!$E$39+Tallow2!$E$39+Tallow3!$E$39+'CornSorghum Oil'!$E$39),0) -> 0 | F219: UCO2 | G219: =I198 -> 0 | H219: 0 | I219: =H219*References!$C$115 -> 0
B220: 6 | C220: UCO3 | D220: 0 | E220: =IFERROR('UCO3'!$E$39/('Soy Oil'!$E$39+Canola!$E$39+'UCO1'!$E$39+'UCO2'!$E$39+'UCO3'!$E$39+Tallow1!$E$39+Tallow2!$E$39+Tallow3!$E$39+'CornSorghum Oil'!$E$39),0) -> 0 | F220: UCO3 | G220: =L198 -> 0 | H220: 0 | I220: =H220*References!$C$115 -> 0
B221: 7 | C221: Tallow1 | D221: 0 | E221: =IFERROR(Tallow1!$E$39/('Soy Oil'!$E$39+Canola!$E$39+'UCO1'!$E$39+'UCO2'!$E$39+'UCO3'!$E$39+Tallow1!$E$39+Tallow2!$E$39+Tallow3!$E$39+'CornSorghum Oil'!$E$39),0) -> 0 | F221: Tallow1 | G221: =F203 -> 0 | H221: 0 | I221: =H221*References!$C$115 -> 0
B222: 8 | C222: Tallow2 | D222: 0 | E222: =IFERROR(Tallow2!$E$39/('Soy Oil'!$E$39+Canola!$E$39+'UCO1'!$E$39+'UCO2'!$E$39+'UCO3'!$E$39+Tallow1!$E$39+Tallow2!$E$39+Tallow3!$E$39+'CornSorghum Oil'!$E$39),0) -> 0 | F222: Tallow2 | G222: =I203 -> 0 | H222: 0 | I222: =H222*References!$C$115 -> 0
B223: 9 | C223: Tallow3 | D223: 0 | E223: =IFERROR(Tallow3!$E$39/('Soy Oil'!$E$39+Canola!$E$39+'UCO1'!$E$39+'UCO2'!$E$39+'UCO3'!$E$39+Tallow1!$E$39+Tallow2!$E$39+Tallow3!$E$39+'CornSorghum Oil'!$E$39),0) -> 0 | F223: Tallow3 | G223: =L203 -> 0 | H223: 0 | I223: =H223*References!$C$115 -> 0
B224: 10 | C224: Other | D224: 0.76 | E224: =IFERROR(Other!$E$39/('Soy Oil'!$E$39+Canola!$E$39+'UCO1'!$E$39+'UCO2'!$E$39+'UCO3'!$E$39+Tallow1!$E$39+Tallow2!$E$39+Tallow3!$E$39+'CornSorghum Oil'!$E$39),0) -> 0 | F224: =C224 -> Other | G224: =F208 -> 0.76 | H224: =E224*$E$48*References!$C$114 -> 0 | I224: =H224*References!$C$115 -> 0
B226: Total | E226: =SUM(E215:E225) -> 0 | H226: =SUM(H215:H225) -> 0 | I226: =SUM(I215:I225) -> 0
C228: Co-product Credit Calculations:
C229: Before the Credit is granted, a mass balance should be performed: Oil Inputs + Methanol + small amount of Sodium Hydroxide and chemicals = Biodiesel + Glycerin + Free fatty acids (if any) + Bottom Distillates + Other Co-products
C285: Source: FNR 2012. * Median values are used for simplification. Please refer to the standards for
C286: ranges. ** Directive 2009/28/EC,
C287: total for cultivation, processing, transport and distribution

Sheet RD-Production
J2: Yellow Cells require user input
C3: Tier 1 Simplified CI Calculator for Renewable Diesel | J3: Light Blue Cells show CI results
J4: Green Cells show the calculation button
A5: Section 1. Applicant Information for Biodiesel Production and Pathway Summary and Estimated CI (g/MJ) | J5: Gray Cells are Calculated Values
A6: 1.1 Applicant | E6: 1.2 Facility Location (City, State, Country) | H6: 1.5 Application #
A7: 1.3 Pathway Description | E7: 1.4 Provisional Pathway? | F7: No | G7: If yes, enter Month and Year of Provided Data | H7: 1.6 Facility #
A8: 1.7 Application Date | B8: Renewable Diesel (RD) | D8: Renewable Naphtha (RN) | F8: Renewable Propane (RP) | H8: Jet Fuel (JF) or Other Fuel
A9: MM/DD/YYYY | B9: CI, gCO2e/MJ | C9: Gallons @ 60oF | D9: CI, gCO2e/MJ | E9: Gallons @ 60oF | F9: CI, gCO2e/MJ | G9: Gallons @ 60oF | H9: CI, gCO2e/MJ | I9: =M26 -> gallons (@ 60°F) or specify applicable unit
A10: Soy Oil | B10: =IF(C10=0,0,D183) -> 0 | C10: =H183 -> 0 | D10: =IF(E10=0,0,G183) -> 0 | E10: =J183 -> 0 | F10: =IF(G10=0,0,K183) -> 0 | G10: =L183 -> 0 | H10: =IF(I10=0,0,M183) -> 0 | I10: =N183 -> 0
A11: Canola Oil | B11: 0 | C11: 0 | D11: 0 | E11: 0 | F11: 0 | G11: 0 | H11: 0 | I11: =N184 -> 0
A12: Corn/Sorghum Oil | B12: 0 | C12: 0 | D12: 0 | E12: 0 | F12: 0 | G12: 0 | H12: 0 | I12: 0
A13: UCO 1 | B13: 0 | C13: 0 | D13: 0 | E13: 0 | F13: 0 | G13: 0 | H13: 0 | I13: 0
A14: UCO 2 | B14: 0 | C14: 0 | D14: 0 | E14: 0 | F14: 0 | G14: 0 | H14: 0 | I14: 0
A15: UCO 3 | B15: 0 | C15: 0 | D15: 0 | E15: 0 | F15: 0 | G15: 0 | H15: 0 | I15: 0
A16: Tallow 1 | B16: 0 | C16: 0 | D16: 0 | E16: 0 | F16: 0 | G16: 0 | H16: 0 | I16: 0
A17: Tallow 2 | B17: 0 | C17: 0 | D17: 0 | E17: 0 | F17: 0 | G17: 0 | H17: 0 | I17: 0
A18: Tallow 3 | B18: 0 | C18: 0 | D18: 0 | E18: 0 | F18: 0 | G18: 0 | H18: 0 | I18: 0
A20: Section 2. Information for Renewable Diesel Production (via Hydrotreating)
A21: Region | B21: 2.1 Regional Electricity Mix for Fuel | H21: 1-U.S Ave Mix | J21: =IF(H21="2-User Defined Mix","2.2 Enter GHG EF of Electricity Mix, gCO2e/kWh","") ->  | N21: 0
B22: 2.3 Regional Crude Mix | H22: U.S Average Crude | J22: =IF(H22="U.S Average Crude","","2.4 Enter GHG EF of Crude Sources, gCO2e/MMBtu of Crude") ->  | N22: 1000
B23: 2.5 Regional Natural Gas Source | H23: U.S Average NG | J23: =IF(H23="U.S Average NG","","2.6 Enter GHG EF of NG Sources, gCO2e/MMBtu of NG") ->  | N23: 2000
A24: Process | B24: Inputs for RD Production | J24: Co-Products | N24: Fuel Transport
A25: 2.7 Reporting Month (MM/YYYY) | B25: 2.8 Beginning RD Inventory | C25: 2.9 RD Produced (Calculated) | D25: 2.10 Ending RD Inventory | E25: 2.11 RD Sales | F25: 2.12 NG Use from Utility Invoices | G25: 2.13 Electricity Use from Utility Invoices | H25: 2.14 Alternate Fuel/ Credit for Co-product Use | I25: 2.15 Hydrogen Use | J25: 2.16 Light Hydrocarbon Production | K25: 2.17 Renewable Naphtha Production | L25: 2.18 Renewable Propane Production | M25: 2.19. Jet Fuel or Other (Specify Other here) | N25: 2.20 RD Transportation and Distribution
B26: gallons (@ 60°F) | C26: gallons (@ 60°F) | D26: gallons (@ 60°F) | E26: gallons (@ 60°F) | F26: MMBtu, HHV | G26: KWh | H26: MMBtu | I26: Cubic feet | J26: MMBtu, HHV | K26: gallons (@ 60°F) | L26: gallons (@ 60°F) | M26: gallons (@ 60°F) or specify applicable unit | N26: Mode | O26: Miles
C27: =D27-B27+E27 -> 0 | N27: 2.20.a From RD plant to port/railyard by HDD Truck
C28: =D28-B28+E28 -> 0
C29: 0 | N29: 2.20.b From RD plant to blending terminal by HDD Truck
C30: 0
C31: 0
C32: 0
C33: 0 | N33: 2.20.c By Rail
C34: 0
C35: 0 | N35: 2.20.d By Ocean Tanker (Define Tanker Size first) | O35: Standard Values
C36: 0 | O36: 22500
C37: 0 | N37: GHG EF, gCO2e/gallon RD-mile | O37: 0.08572157001
C38: 0
C39: 0 | N39: Mileage to California
C40: 0
C41: 0 | N41: 2.20.e By Barge
C42: 0
C43: 0
C44: 0
C45: 0
C46: 0
C47: 0
C48: 0
C49: 0
C50: 0
A51: Total | C51: =SUM(C27:C50) -> 0 | E51: =SUM(E27:E50) -> 0 | F51: =SUM(F27:F50) -> 0 | G51: =SUM(G27:G50) -> 0 | H51: =SUM(H27:H50) -> 0 | I51: 0 | J51: =SUM(J27:J50) -> 0 | K51: 0 | L51: =SUM(L27:L50) -> 0 | M51: 0
B52: Convert from gallons to lbs. of RD | C52: =C51*References!$C$116 -> 0 | D52: lbs. RD | F52: 2.14.a Alternate Fuel GHG Emission Factor, gCO2e/MMBtu | I52: 2.16.a Conversion Factor from HHV to LHV for cell J51
F53: 2.14.b Conversion Factor from HHV to LHV for cell H51 above | I53: 2.17.a Energy Density for other co-products (Btu/gal or applicable unit) in Low Heating Value at 60°F | N53: Co-product Energy Allocation Factor | O53: =IFERROR((Fuel_Specs!E30*C52/((Fuel_Specs!E30*C52)+L51*L53+K51*K53+M51*M53)),0) -> 0
A55: Feedstock Production
A56: Feedstock Production | B56: Process | D56: Inputs | F56: Values | G56: Shares | H56: GHG Emissions, gCO2e | I56: CI, gCO2e/MMBtu of RD | J56: GHG EF Factors | K56: GHG EF Unit | L56: Unallocated, gCO2e/MJ | M56: Mass and Energy Allocation, gCO2e/MJ
A57: Region | B57: Soy Oil Production | E57: =IF('Soy Oil'!D10="U.S.","1-U.S Ave Mix",'Soy Oil'!G41) -> 1-U.S Ave Mix | M57: =IFERROR(M58+M59+M60+M61+M62,0) -> 0
B58: Soybean Farming and Fertilizers | D58: Oil Yield, lb. oil/lb. soybean | F58: 0.2 | H58: =J58/2000/$F$58/$F$118*$C$52*$E$183 ->  | I58: =H58/$C$52/$E$183/Fuel_Specs!$E$30*10^6 ->  | J58: ='Soy Oil'!D41 -> 332219.7378 | K58: gCO2e/dry ton Soybean | L58: =I58/Fuel_Specs!$H$66 ->  | M58: =L58*$O$53*Fuel_Specs!$D$79*$F$58 -> 
B59: Soybean Transport, miles | D59: Soybean transported by Medium Truck, miles | F59: 10 | H59: =J59*F59/2000/$F$58/$F$118*$C$52*$E$183 ->  | I59: =H59/$C$52/$E$183/Fuel_Specs!$E$30*10^6 ->  | J59: ='EF Table'!$C$7 -> 616.2972099 | K59: gCO2e/dry ton Soybean-mile | L59: =I59/Fuel_Specs!$H$66 ->  | M59: =L59*$O$53*Fuel_Specs!$D$79*$F$58 -> 
D60: Soybean transported by Heavy Duty Diesel Truck, miles | F60: =References!C90 -> 40 | H60: =J60*F60/2000/$F$58/$F$118*$C$52*$E$183 ->  | I60: =H60/$C$52/$E$183/Fuel_Specs!$E$30*10^6 ->  | J60: ='EF Table'!$C$8 -> 153.8912487 | K60: gCO2e/dry ton Soybean-mile | L60: =I60/Fuel_Specs!$H$66 ->  | M60: =L60*$O$53*Fuel_Specs!$D$79*$F$58 -> 
B61: Soybean Extraction, Btu/lb. oil | H61: =$J$61*'Soy Oil'!$D$39 -> 0 | I61: =H61/$C$52/$E$183/Fuel_Specs!$E$30*10^6 ->  | J61: ='Soy Oil'!$D$42 -> 295.563158 | K61: gCO2e/lb. Oil | L61: =I61/Fuel_Specs!$H$66 ->  | M61: =L61*$O$53*Fuel_Specs!$D$79*$F$58 -> 
B62: Soybean Oil Transport, miles | L62: =SUM(L63:L67) ->  | M62: =SUM(M63:M67) -> 
D64: Soy Oil transported by Heavy Duty Diesel Truck, miles | F64: ='Soy Oil'!I39 -> 0 | H64: =F64*J64*'Soy Oil'!H39/Fuel_Specs!$F$53 -> 0 | I64: =H64/$C$52/$E$183/Fuel_Specs!$E$30*10^6 ->  | J64: ='EF Table'!$C$23 -> 153.8912487 | K64: gCO2e/ton Oil - Mile | L64: =I64/Fuel_Specs!$H$66 ->  | M64: =L64*$O$53*Fuel_Specs!$D$79 -> 
D65: Soy Oil transported by Ocean Tanker, miles | F65: ='Soy Oil'!K39 -> 0 | H65: =F65*J65*'Soy Oil'!J39/Fuel_Specs!$F$53 -> 0 | I65: =H65/$C$52/$E$183/Fuel_Specs!$E$30*10^6 ->  | J65: ='Soy Oil'!D44 -> 34.60329791 | K65: gCO2e/ton Oil - Mile | L65: =I65/Fuel_Specs!$H$66 ->  | M65: =L65*$O$53*Fuel_Specs!$D$79 -> 
D66: Soy Oil transported by Rail, miles | F66: ='Soy Oil'!M39 -> 0 | H66: =F66*J66*'Soy Oil'!L39/Fuel_Specs!$F$53 -> 0 | I66: =H66/$C$52/$E$183/Fuel_Specs!$E$30*10^6 ->  | J66: ='EF Table'!$C$24 -> 27.28328641 | K66: gCO2e/ton Oil - Mile | L66: =I66/Fuel_Specs!$H$66 ->  | M66: =L66*$O$53*Fuel_Specs!$D$79 -> 
D67: Soy Oil transported by Barge, miles | F67: ='Soy Oil'!O39 -> 0 | H67: =F67*J67*'Soy Oil'!N39/Fuel_Specs!$F$53 -> 0 | I67: =H67/$C$52/$E$183/Fuel_Specs!$E$30*10^6 ->  | J67: ='EF Table'!$C$25 -> 22.41742795 | K67: gCO2e/ton Oil - Mile | L67: =I67/Fuel_Specs!$H$66 ->  | M67: =L67*$O$53*Fuel_Specs!$D$79 -> 
B68: ILUC | M68: =Fuel_Specs!B73 -> 29.1
A69: Region | B69: Canola Oil Production | E69: =IF(Canola!D10="U.S.","1-U.S Ave Mix",Canola!F40) -> 1-U.S Ave Mix | G69: Shares | H69: GHG Emissions, gCO2e | I69: CI, gCO2e/MMBtu of RD | J69: GHG EF Factors | K69: GHG EF Unit | M69: =IFERROR(M71+M72+M73+M74+M75,0) -> 0
B71: Canola Farming and Fertilizers | D71: Oil Yield, lb. oil/lb. canola | F71: ='BD-Production'!F68 -> 0.4733 | H71: =J71/$F$71/Fuel_Specs!$D$53/$F$118*$C$52*$E$184 ->  | I71: =H71/$C$52/$E$184/Fuel_Specs!$E$30*10^6 ->  | J71: =Canola!$D$40 -> 730671.7024 | K71: gCO2e/dry metric ton Canola | L71: =I71/Fuel_Specs!$H$66 ->  | M71: =L71*$O$53*Fuel_Specs!$D$81*$F$71 -> 
B72: Canola Transport | D72: Canola transported by Medium Truck, miles | F72: 10 | H72: =F72*J72/$F$71/Fuel_Specs!$D$53/$F$118*$C$52*$E$184 ->  | I72: =H72/$C$52/$E$184/Fuel_Specs!$E$30*10^6 ->  | J72: ='EF Table'!C16 -> 679.3513854 | K72: gCO2e/metric ton Canola - Mile | L72: =I72/Fuel_Specs!$H$66 ->  | M72: =L72*$O$53*Fuel_Specs!$D$81*$F$71 -> 
D73: Canola transported by Heavy Duty Diesel Truck, miles | F73: =References!E90 -> 40 | H73: =F73*J73/$F$71/Fuel_Specs!$D$53/$F$118*$C$52*$E$184 ->  | I73: =H73/$C$52/$E$184/Fuel_Specs!$E$30*10^6 ->  | J73: ='EF Table'!C17 -> 169.6360641 | K73: gCO2e/metric ton Canola - Mile | L73: =I73/Fuel_Specs!$H$66 ->  | M73: =L73*$O$53*Fuel_Specs!$D$81*$F$71 -> 
B74: Canola Oil Extraction | H74: =$J$74*Canola!$E$39 -> 0 | I74: =H74/$C$52/$E$184/Fuel_Specs!$E$30*10^6 ->  | J74: =Canola!D41 -> 117.221847 | K74: gCO2e/lb. Oil | L74: =I74/Fuel_Specs!$H$66 ->  | M74: =L74*$O$53*Fuel_Specs!$D$81*$F$71 -> 
B75: Canola Oil Transport | L75: =SUM(L76:L80) ->  | M75: =SUM(M76:M80) -> 
D77: Canola Oil transported by Heavy Duty Diesel Truck, miles | F77: =Canola!I39 -> 0 | H77: =F77*J77*Canola!H39/Fuel_Specs!$F$53 -> 0 | I77: =H77/$C$52/$E$184/Fuel_Specs!$E$30*10^6 ->  | J77: ='EF Table'!$C$23 -> 153.8912487 | K77: gCO2e/ton Oil - Mile | L77: =I77/Fuel_Specs!$H$66 ->  | M77: =L77*$O$53*Fuel_Specs!$D$81 -> 
D78: Canola Oil transported by Ocean Tanker, miles | F78: =Canola!K39 -> 0 | H78: =F78*J78*Canola!J39/Fuel_Specs!$F$53 -> 0 | I78: =H78/$C$52/$E$184/Fuel_Specs!$E$30*10^6 ->  | J78: =Canola!D43 -> 34.60329791 | K78: gCO2e/ton Oil - Mile | L78: =I78/Fuel_Specs!$H$66 ->  | M78: =L78*$O$53*Fuel_Specs!$D$81 -> 
D79: Canola Oil transported by Rail, miles | F79: =Canola!M39 -> 0 | H79: =F79*J79*Canola!L39/Fuel_Specs!$F$53 -> 0 | I79: =H79/$C$52/$E$184/Fuel_Specs!$E$30*10^6 ->  | J79: ='EF Table'!$C$24 -> 27.28328641 | K79: gCO2e/ton Oil - Mile | L79: =I79/Fuel_Specs!$H$66 ->  | M79: =L79*$O$53*Fuel_Specs!$D$81 -> 
D80: Canola Oil transported by Barge, miles | F80: =Canola!O39 -> 0 | H80: =F80*J80*Canola!N39/Fuel_Specs!$F$53 -> 0 | I80: =H80/$C$52/$E$184/Fuel_Specs!$E$30*10^6 ->  | J80: ='EF Table'!$C$25 -> 22.41742795 | K80: gCO2e/ton Oil - Mile | L80: =I80/Fuel_Specs!$H$66 ->  | M80: =L80*$O$53*Fuel_Specs!$D$81 -> 
B81: ILUC | M81: =Fuel_Specs!B74 -> 14.5
A82: Region | B82: Corn/Sorghum Oil Production | E82: =IF('CornSorghum Oil'!D10="U.S.","1-U.S Ave Mix",'CornSorghum Oil'!F40) -> 1-U.S Ave Mix | G82: Shares | H82: GHG Emissions, gCO2e | I82: CI, gCO2e/MMBtu of RD | J82: GHG EF Factors | K82: GHG EF Unit | M82: =IFERROR(SUM(M84+M85),0) -> 0
B84: Corn/Sorghum Oil Extraction | H84: =$J$84*'CornSorghum Oil'!$E$39 -> 0 | I84: =H84/$C$52/$E$185/Fuel_Specs!$E$30*10^6 ->  | J84: ='CornSorghum Oil'!D40 -> 47.50169444 | K84: gCO2e/lb. Oil | L84: =I84/Fuel_Specs!$H$66 ->  | M84: =L84*$O$53*Fuel_Specs!$D$87 -> 
B85: Oil Transport | L85: =SUM(L87:L90) ->  | M85: =SUM(M87:M90) -> 
D87: Corn/Sorghum Oil transported by Heavy Duty Diesel Truck, miles | F87: ='CornSorghum Oil'!I39 -> 0 | H87: =F87*J87*'CornSorghum Oil'!H39/Fuel_Specs!$F$53 -> 0 | I87: =H87/$C$52/$E$185/Fuel_Specs!$E$30*10^6 ->  | J87: ='EF Table'!$C$23 -> 153.8912487 | K87: gCO2e/ton Oil - Mile | L87: =I87/Fuel_Specs!$H$66 ->  | M87: =L87*$O$53*Fuel_Specs!$D$87 -> 
D88: Corn/Sorghum Oil transported by Ocean Tanker, miles | F88: ='CornSorghum Oil'!K39 -> 0 | H88: =F88*J88*'CornSorghum Oil'!J39/Fuel_Specs!$F$53 -> 0 | I88: =H88/$C$52/$E$185/Fuel_Specs!$E$30*10^6 ->  | J88: ='CornSorghum Oil'!D42 -> 34.60329791 | K88: gCO2e/ton Oil - Mile | L88: =I88/Fuel_Specs!$H$66 ->  | M88: =L88*$O$53*Fuel_Specs!$D$87 -> 
D89: Corn/Sorghum Oil transported by Rail, miles | F89: ='CornSorghum Oil'!M39 -> 0 | H89: =F89*J89*'CornSorghum Oil'!L39/Fuel_Specs!$F$53 -> 0 | I89: =H89/$C$52/$E$185/Fuel_Specs!$E$30*10^6 ->  | J89: ='EF Table'!$C$24 -> 27.28328641 | K89: gCO2e/ton Oil - Mile | L89: =I89/Fuel_Specs!$H$66 ->  | M89: =L89*$O$53*Fuel_Specs!$D$87 -> 
D90: Corn/Sorghum Oil transported by Barge, miles | F90: ='CornSorghum Oil'!O39 -> 0 | H90: =F90*J90*'CornSorghum Oil'!N39/Fuel_Specs!$F$53 -> 0 | I90: =H90/$C$52/$E$185/Fuel_Specs!$E$30*10^6 ->  | J90: ='EF Table'!$C$25 -> 22.41742795 | K90: gCO2e/ton Oil - Mile | L90: =I90/Fuel_Specs!$H$66 ->  | M90: =L90*$O$53*Fuel_Specs!$D$87 -> 
B91: ILUC | P91: Values | Q91: Shares | R91: GHG Emissions, gCO2e | S91: CI, gCO2e/MMBtu of RD | T91: GHG EF Factors | U91: GHG EF Unit | V91: Unallocated, gCO2e/MJ | W91: Mass and Energy Allocation, gCO2e/MJ | Z91: Values | AA91: Shares | AB91: GHG Emissions, gCO2e | AC91: CI, gCO2e/MMBtu of RD | AD91: GHG EF Factors | AE91: GHG EF Unit | AF91: Unallocated, gCO2e/MJ | AG91: Mass and Energy Allocation, gCO2e/MJ
A92: Region | B92: Used Cooking Oil Production | D92: UCO 1 | E92: =IF('UCO1'!D10="U.S.","1-U.S Ave Mix",'UCO1'!G40) -> 1-U.S Ave Mix | F92: Values | G92: Shares | H92: GHG Emissions, gCO2e | I92: CI, gCO2e/MMBtu of RD | J92: GHG EF Factors | K92: GHG EF Unit | M92: =IFERROR(M93+M94+M95+M96,0) -> 0 | N92: UCO 2 | O92: =IF('UCO2'!D10="U.S.","1-U.S Ave Mix",'UCO2'!G40) -> 1-U.S Ave Mix | W92: =IFERROR(W93+W94+W95+W96,0) -> 0 | X92: UCO 3 | Y92: =IF('UCO3'!D10="U.S.","1-U.S Ave Mix",'UCO3'!G40) -> 1-U.S Ave Mix | AG92: =IFERROR(AG93+AG94+AG95+AG96,0) -> 0
B93: Raw UCO | D93: Oil Yield, lb. oil/lb. raw UCO | F93: =References!I100 -> 0.8 | N93: Oil Yield, lb. oil/lb. raw UCO | P93: =F93 -> 0.8 | X93: Oil Yield, lb. oil/lb. raw UCO | Z93: =F93 -> 0.8
B94: Raw UCO Transport | D94: Raw UCO transported by Heavy Duty Truck, miles | F94: =IF('UCO1'!G11=0,0,50) -> 50 | H94: =F94*J94/2000/$F$93/$F$118*$C$52*$E$186 ->  | I94: =H94/$C$52/$E$186/Fuel_Specs!$E$30*10^6 ->  | J94: ='EF Table'!$C$23 -> 153.8912487 | K94: gCO2e/ton raw UCO - Mile | L94: =I94/Fuel_Specs!$H$66 ->  | M94: =L94*$O$53*Fuel_Specs!$D$83 ->  | N94: Raw UCO transported by Heavy Truck, miles | P94: =IF('UCO2'!G11=0,0,50) -> 50 | R94: =P94*T94/2000/$F$93/$F$118*$C$52*$E$187 ->  | S94: =R94/$C$52/$E$187/Fuel_Specs!$E$30*10^6 ->  | T94: ='EF Table'!C23 -> 153.8912487 | U94: gCO2e/ton raw UCO - Mile | V94: =S94/Fuel_Specs!$H$66 ->  | W94: =V94*$O$53*Fuel_Specs!$D$83 ->  | X94: Raw UCO transported by Heavy Truck, miles | Z94: =IF('UCO3'!G11=0,0,50) -> 50 | AB94: =Z94*AD94/2000/$F$93/$F$118*$C$52*$E$188 ->  | AC94: =AB94/$C$52/$E$188/Fuel_Specs!$E$30*10^6 ->  | AD94: ='EF Table'!C23 -> 153.8912487 | AE94: gCO2e/ton raw UCO - Mile | AF94: =AC94/Fuel_Specs!$H$66 ->  | AG94: =AF94*$O$53*Fuel_Specs!$D$83 -> 
B95: UCO Treatment/Rendering | D95: Oil Rendering | H95: =J95*'UCO1'!$E$39 -> 0 | I95: =H95/$C$52/$E$186/Fuel_Specs!$E$30*10^6 ->  | J95: ='UCO1'!E40 -> 90.43831825 | K95: gCO2e/lb. oil | L95: =I95/Fuel_Specs!$H$66 ->  | M95: =L95*$O$53*Fuel_Specs!$D$83 ->  | N95: UCO Rendering | R95: =T95*'UCO2'!$E$39 -> 0 | S95: =R95/$C$52/Fuel_Specs!$E$30*10^6/$E$187 ->  | T95: ='UCO2'!$E$40 -> 90.43831825 | U95: gCO2e/lb. oil | V95: =S95/Fuel_Specs!$H$66 ->  | W95: =V95*$O$53*Fuel_Specs!$D$83 ->  | X95: UCO Rendering | AB95: =AD95*'UCO3'!$E$39 -> 0 | AC95: =AB95/$C$52/Fuel_Specs!$E$30*10^6/$E$188 ->  | AD95: ='UCO3'!$E$40 -> 90.43831825 | AE95: gCO2e/lb. oil | AF95: =AC95/Fuel_Specs!$H$66 ->  | AG95: =AF95*$O$53*Fuel_Specs!$D$83 -> 
B96: Rendered Oil Transport | M96: =SUM(M97:M101) ->  | V96: =SUM(V98:V101) ->  | W96: =SUM(W97:W101) ->  | AG96: =SUM(AG97:AG101) -> 
D98: Rendered UCO transported by Heavy Duty Diesel Truck, miles | F98: ='UCO1'!I39 -> 0 | H98: =F98*J98*'UCO1'!H39/Fuel_Specs!$F$53 -> 0 | I98: =H98/$C$52/$E$186/Fuel_Specs!$E$30*10^6 ->  | J98: ='EF Table'!$C$23 -> 153.8912487 | K98: gCO2e/ton Oil - Mile | L98: =I98/Fuel_Specs!$H$66 ->  | M98: =L98*$O$53*Fuel_Specs!$D$83 ->  | N98: Rendered UCO transported by Heavy Duty Diesel Truck, miles | P98: ='UCO2'!I39 -> 0 | R98: =P98*T98*'UCO2'!H39/Fuel_Specs!$F$53 -> 0 | S98: =R98/$C$52/$E$187/Fuel_Specs!$E$30*10^6 ->  | T98: ='EF Table'!$C$23 -> 153.8912487 | U98: gCO2e/ton Oil - Mile | V98: =S98/Fuel_Specs!$H$66 ->  | W98: =V98*$O$53*Fuel_Specs!$D$83 ->  | X98: Rendered UCO transported by Heavy Duty Diesel Truck, miles | Z98: ='UCO3'!I39 -> 0 | AB98: =Z98*AD98*'UCO3'!H39/Fuel_Specs!$F$53 -> 0 | AC98: =AB98/$C$52/$E$188/Fuel_Specs!$E$30*10^6 ->  | AD98: ='EF Table'!$C$23 -> 153.8912487 | AE98: gCO2e/ton Oil - Mile | AF98: =AC98/Fuel_Specs!$H$66 ->  | AG98: =AF98*$O$53*Fuel_Specs!$D$83 -> 
D99: Rendered UCO transported by Ocean Tanker, miles | F99: ='UCO1'!K39 -> 0 | H99: =F99*J99*'UCO1'!J39/Fuel_Specs!$F$53 -> 0 | I99: =H99/$C$52/$E$186/Fuel_Specs!$E$30*10^6 ->  | J99: ='UCO1'!O11 -> 34.60329791 | K99: gCO2e/ton Oil - Mile | L99: =I99/Fuel_Specs!$H$66 ->  | M99: =L99*$O$53*Fuel_Specs!$D$83 ->  | N99: Rendered UCO transported by Ocean Tanker, miles | P99: ='UCO2'!K39 -> 0 | R99: =P99*T99*'UCO2'!J39/Fuel_Specs!$F$53 -> 0 | S99: =R99/$C$52/$E$187/Fuel_Specs!$E$30*10^6 ->  | T99: ='UCO2'!E42 -> 34.60329791 | U99: gCO2e/ton Oil - Mile | V99: =S99/Fuel_Specs!$H$66 ->  | W99: =V99*$O$53*Fuel_Specs!$D$83 ->  | X99: Rendered UCO transported by Ocean Tanker, miles | Z99: ='UCO3'!K39 -> 0 | AB99: =Z99*AD99*'UCO3'!J39/Fuel_Specs!$F$53 -> 0 | AC99: =AB99/$C$52/$E$188/Fuel_Specs!$E$30*10^6 ->  | AD99: ='UCO3'!E42 -> 34.60329791 | AE99: gCO2e/ton Oil - Mile | AF99: =AC99/Fuel_Specs!$H$66 ->  | AG99: =AF99*$O$53*Fuel_Specs!$D$83 -> 
D100: Rendered UCO transported by Rail, miles | F100: ='UCO1'!M39 -> 0 | H100: =F100*J100*'UCO1'!L39/Fuel_Specs!$F$53 -> 0 | I100: =H100/$C$52/$E$186/Fuel_Specs!$E$30*10^6 ->  | J100: ='EF Table'!$C$24 -> 27.28328641 | K100: gCO2e/ton Oil - Mile | L100: =I100/Fuel_Specs!$H$66 ->  | M100: =L100*$O$53*Fuel_Specs!$D$83 ->  | N100: Rendered UCO transported by Rail, miles | P100: ='UCO2'!M39 -> 0 | R100: =P100*T100*'UCO2'!L39/Fuel_Specs!$F$53 -> 0 | S100: =R100/$C$52/$E$187/Fuel_Specs!$E$30*10^6 ->  | T100: ='EF Table'!$C$24 -> 27.28328641 | U100: gCO2e/ton Oil - Mile | V100: =S100/Fuel_Specs!$H$66 ->  | W100: =V100*$O$53*Fuel_Specs!$D$83 ->  | X100: Rendered UCO transported by Rail, miles | Z100: ='UCO3'!M39 -> 0 | AB100: =Z100*AD100*'UCO3'!L39/Fuel_Specs!$F$53 -> 0 | AC100: =AB100/$C$52/$E$188/Fuel_Specs!$E$30*10^6 ->  | AD100: ='EF Table'!$C$24 -> 27.28328641 | AE100: gCO2e/ton Oil - Mile | AF100: =AC100/Fuel_Specs!$H$66 ->  | AG100: =AF100*$O$53*Fuel_Specs!$D$83 -> 
D101: Rendered UCO transported by Barge, miles | F101: ='UCO1'!O39 -> 0 | H101: =F101*J101*'UCO1'!N39/Fuel_Specs!$F$53 -> 0 | I101: =H101/$C$52/$E$186/Fuel_Specs!$E$30*10^6 ->  | J101: ='EF Table'!$C$25 -> 22.41742795 | K101: gCO2e/ton Oil - Mile | L101: =I101/Fuel_Specs!$H$66 ->  | M101: =L101*$O$53*Fuel_Specs!$D$83 ->  | N101: Rendered UCO transported by Barge, miles | P101: ='UCO2'!O39 -> 0 | R101: =P101*T101*'UCO2'!N39/Fuel_Specs!$F$53 -> 0 | S101: =R101/$C$52/$E$187/Fuel_Specs!$E$30*10^6 ->  | T101: ='EF Table'!$C$25 -> 22.41742795 | U101: gCO2e/ton Oil - Mile | V101: =S101/Fuel_Specs!$H$66 ->  | W101: =V101*$O$53*Fuel_Specs!$D$83 ->  | X101: Rendered UCO transported by Barge, miles | Z101: ='UCO3'!O39 -> 0 | AB101: =Z101*AD101*'UCO3'!N39/Fuel_Specs!$F$53 -> 0 | AC101: =AB101/$C$52/$E$188/Fuel_Specs!$E$30*10^6 ->  | AD101: ='EF Table'!$C$25 -> 22.41742795 | AE101: gCO2e/ton Oil - Mile | AF101: =AC101/Fuel_Specs!$H$66 ->  | AG101: =AF101*$O$53*Fuel_Specs!$D$83 -> 
B102: ILUC
A103: Region | B103: Tallow Production | D103: Tallow 1 | E103: =IF(Tallow1!D10="U.S.","1-U.S Ave Mix",Tallow1!F40) -> 1-U.S Ave Mix | G103: Shares | H103: GHG Emissions, gCO2e | I103: CI, gCO2e/MMBtu of RD | J103: GHG EF Factors | K103: GHG EF Unit | M103: =IFERROR(M105+M106+M107+M108,0) -> 0 | N103: Tallow 2 | O103: =IF(Tallow2!D10="U.S.","1-U.S Ave Mix",Tallow2!F40) -> 1-U.S Ave Mix | S103: =SUM(S106:S107) ->  | W103: =IFERROR(W105+W106+W107+W108,0) -> 0 | X103: Tallow 3 | Y103: =IF(Tallow3!D10="U.S.","1-U.S Ave Mix",Tallow3!F40) -> 1-U.S Ave Mix | AG103: =IFERROR(AG105+AG106+AG107+AG108,0) -> 0
B105: Tallow | D105: Oil Yield, lb. oil/lb. raw Tallow | F105: =References!$K$100 -> 0.286 | N105: Oil Yield, lb. oil/lb. raw Tallow | P105: =F105 -> 0.286 | X105: Oil Yield, lb. oil/lb. raw Tallow | Z105: =F105 -> 0.286
B107: Tallow Rendering | H107: =J107*Tallow1!$E$39 -> 0 | I107: =H107/$C$52/Fuel_Specs!$E$30*10^6/$E$189 ->  | J107: =Tallow1!$D$40 -> 303.8222645 | K107: gCO2e/lb. oil | L107: =I107/Fuel_Specs!$H$66 ->  | M107: =L107*$O$53*Fuel_Specs!$D$85 ->  | N107: Oil Rendering | R107: =T107*Tallow2!$E$39 -> 0 | S107: =R107/$C$52/Fuel_Specs!$E$30*10^6/$E$190 ->  | T107: =Tallow2!$D$40 -> 303.8222645 | U107: gCO2e/lb. oil | V107: =S107/Fuel_Specs!$H$66 ->  | W107: =V107*$O$53*Fuel_Specs!$D$85 ->  | X107: Oil Rendering | AB107: =AD107*Tallow3!$E$39 -> 0 | AC107: =AB107/$C$52/Fuel_Specs!$E$30*10^6/$E$191 ->  | AD107: =Tallow3!$D$40 -> 303.8222645 | AE107: gCO2e/lb. oil | AF107: =AC107/Fuel_Specs!$H$66 ->  | AG107: =AF107*$O$53*Fuel_Specs!$D$85 -> 
B108: Rendered Oil Transport | M108: =SUM(M109:M113) ->  | W108: =SUM(W109:W113) ->  | AG108: =SUM(AG109:AG113) -> 
X109: Rendered Tallow Oil transported by Medium Truck, miles
D110: Tallow Oil transported by Heavy Duty Diesel Truck, miles | F110: =Tallow1!I39 -> 0 | H110: =F110*J110*Tallow1!H39/Fuel_Specs!$F$53 -> 0 | I110: =H110/$C$52/$E$189/Fuel_Specs!$E$30*10^6 ->  | J110: ='EF Table'!$C$23 -> 153.8912487 | K110: gCO2e/ton Oil - Mile | L110: =I110/Fuel_Specs!$H$66 ->  | M110: =L110*$O$53*Fuel_Specs!$D$85 ->  | N110: Tallow Oil transported by Heavy Duty Diesel Truck, miles | P110: =Tallow2!I39 -> 0 | R110: =P110*T110*Tallow2!H39/Fuel_Specs!$F$53 -> 0 | S110: =R110/$C$52/$E$190/Fuel_Specs!$E$30*10^6 ->  | T110: ='EF Table'!$C$23 -> 153.8912487 | U110: gCO2e/ton Oil - Mile | V110: =S110/Fuel_Specs!$H$66 ->  | W110: =V110*$O$53*Fuel_Specs!$D$85 ->  | X110: Tallow Oil transported by Heavy Duty Diesel Truck, miles | Z110: =Tallow3!I39 -> 0 | AB110: =Z110*AD110*Tallow3!H39/Fuel_Specs!$F$53 -> 0 | AC110: =AB110/$C$52/$E$191/Fuel_Specs!$E$30*10^6 ->  | AD110: ='EF Table'!$C$23 -> 153.8912487 | AE110: gCO2e/ton Oil - Mile | AF110: =AC110/Fuel_Specs!$H$66 ->  | AG110: =AF110*$O$53*Fuel_Specs!$D$85 -> 
D111: Rendered Tallow transported by Ocean Tanker, miles | F111: =Tallow1!K39 -> 0 | H111: =F111*J111*Tallow1!J39/Fuel_Specs!$F$53 -> 0 | I111: =H111/$C$52/$E$189/Fuel_Specs!$E$30*10^6 ->  | J111: =Tallow1!D42 -> 34.60329791 | K111: gCO2e/ton Oil - Mile | L111: =I111/Fuel_Specs!$H$66 ->  | M111: =L111*$O$53*Fuel_Specs!$D$85 ->  | N111: Tallow transported by Ocean Tanker, miles | P111: =Tallow2!K39 -> 0 | R111: =P111*T111*Tallow2!J39/Fuel_Specs!$F$53 -> 0 | S111: =R111/$C$52/$E$190/Fuel_Specs!$E$30*10^6 ->  | T111: =Tallow2!D42 -> 34.60329791 | U111: gCO2e/ton Oil - Mile | V111: =S111/Fuel_Specs!$H$66 ->  | W111: =V111*$O$53*Fuel_Specs!$D$85 ->  | X111: Tallow transported by Ocean Tanker, miles | Z111: =Tallow3!K39 -> 0 | AB111: =Z111*AD111*Tallow3!J39/Fuel_Specs!$F$53 -> 0 | AC111: =AB111/$C$52/$E$191/Fuel_Specs!$E$30*10^6 ->  | AD111: =Tallow3!D42 -> 34.60329791 | AE111: gCO2e/ton Oil - Mile | AF111: =AC111/Fuel_Specs!$H$66 ->  | AG111: =AF111*$O$53*Fuel_Specs!$D$85 -> 
D112: Rendered Tallow transported by Rail, miles | F112: =Tallow1!M39 -> 0 | H112: =F112*J112*Tallow1!L39/Fuel_Specs!$F$53 -> 0 | I112: =H112/$C$52/$E$189/Fuel_Specs!$E$30*10^6 ->  | J112: ='EF Table'!$C$24 -> 27.28328641 | K112: gCO2e/ton Oil - Mile | L112: =I112/Fuel_Specs!$H$66 ->  | M112: =L112*$O$53*Fuel_Specs!$D$85 ->  | N112: Tallow transported by Rail, miles | P112: =Tallow2!M39 -> 0 | R112: =P112*T112*Tallow2!L39/Fuel_Specs!$F$53 -> 0 | S112: =R112/$C$52/$E$190/Fuel_Specs!$E$30*10^6 ->  | T112: ='EF Table'!$C$24 -> 27.28328641 | U112: gCO2e/ton Oil - Mile | V112: =S112/Fuel_Specs!$H$66 ->  | W112: =V112*$O$53*Fuel_Specs!$D$85 ->  | X112: Tallow transported by Rail, miles | Z112: =Tallow3!M39 -> 0 | AB112: =Z112*AD112*Tallow3!L39/Fuel_Specs!$F$53 -> 0 | AC112: =AB112/$C$52/$E$191/Fuel_Specs!$E$30*10^6 ->  | AD112: ='EF Table'!$C$24 -> 27.28328641 | AE112: gCO2e/ton Oil - Mile | AF112: =AC112/Fuel_Specs!$H$66 ->  | AG112: =AF112*$O$53*Fuel_Specs!$D$85 -> 
D113: Rendered Tallow transported by Barge, miles | F113: =Tallow1!O39 -> 0 | H113: =F113*J113*Tallow1!N39/Fuel_Specs!$F$53 -> 0 | I113: =H113/$C$52/$E$189/Fuel_Specs!$E$30*10^6 ->  | J113: ='EF Table'!$C$25 -> 22.41742795 | K113: gCO2e/ton Oil - Mile | L113: =I113/Fuel_Specs!$H$66 ->  | M113: =L113*$O$53*Fuel_Specs!$D$85 ->  | N113: Tallow transported by Barge, miles | P113: =Tallow2!O39 -> 0 | R113: =P113*T113*Tallow2!N39/Fuel_Specs!$F$53 -> 0 | S113: =R113/$C$52/$E$190/Fuel_Specs!$E$30*10^6 ->  | T113: ='EF Table'!$C$25 -> 22.41742795 | U113: gCO2e/ton Oil - Mile | V113: =S113/Fuel_Specs!$H$66 ->  | W113: =V113*$O$53*Fuel_Specs!$D$85 ->  | X113: Tallow transported by Barge, miles | Z113: =Tallow3!O39 -> 0 | AB113: =Z113*AD113*Tallow3!N39/Fuel_Specs!$F$53 -> 0 | AC113: =AB113/$C$52/$E$191/Fuel_Specs!$E$30*10^6 ->  | AD113: ='EF Table'!$C$25 -> 22.41742795 | AE113: gCO2e/ton Oil - Mile | AF113: =AC113/Fuel_Specs!$H$66 ->  | AG113: =AF113*$O$53*Fuel_Specs!$D$85 -> 
A115: Renewable Diesel Production
A116: Region | H116: GHG Emissions, gCO2e | I116: CI, gCO2e/MMBtu of RD | J116: GHG EF Factors | K116: EF Unit | L116: Unallocated, gCO2e/MJ | M116: Energy Allocation, gCO2e/MJ
A117: =H21 -> 1-U.S Ave Mix | B117: Hydrotreating | M117: =M118+M133+M137+M138+M139+M140+M143 -> 0.03
D118: Average RD Yield, lb. RD/lb. Feedstock | F118: =IFERROR(C52/('Soy Oil'!E39+Canola!E39+'CornSorghum Oil'!E39+'UCO1'!E39+'UCO2'!E39+'UCO3'!E39+Tallow1!E39+Tallow2!E39+Tallow3!E39),0) -> 0 | M118: =IFERROR(SUM(M120:M132),0) -> 0
D119: Natural gas, MMBtu (HHV) | F119: =F51 -> 0
E120: Convert to Btu/lb. RD (LHV) | F120: =F119*Fuel_Specs!$I$23*10^6/$C$52 ->  | G120: =F120/($F$120+$F$122+$F$124+$F$126+$F$128+$F$130+$F$132) ->  | H120: =F120*J120*$C$52/10^6 ->  | I120: =H120/$C$52/Fuel_Specs!$E$30*10^6 ->  | J120: =IF(H23="User Defined NG",'EF Table'!E30,'EF Table'!C30) -> 73424.19464 | K120: gCO2e/MMBtu NG | L120: =I120/Fuel_Specs!$H$66 ->  | M120: =L120*$O$53*Fuel_Specs!$D$83 -> 
D121: Biomass Use, MMBtu (HHV) | F121: 0
E122: Convert to Btu/lb. fuel (LHV) | F122: =F121*Fuel_Specs!$I$23*10^6/$C$52 ->  | H122: =F122*J122*$C$52/10^6 ->  | I122: =H122/$C$52/Fuel_Specs!$E$30*10^6 ->  | K122: gCO2e/MMBtu Biomass | L122: =I122/Fuel_Specs!$H$66 ->  | M122: =L122*$O$53*Fuel_Specs!$D$83 -> 
D123: RNG Use, MMBtu (HHV) | F123: 0
E124: Convert to Btu/lb. fuel (LHV) | F124: =F123*Fuel_Specs!$I$23*10^6/$C$52 ->  | H124: =F124*J124*$C$52/10^6 ->  | I124: =H124/$C$52/Fuel_Specs!$E$30*10^6 ->  | K124: gCO2e/MMBtu RNG | L124: =I124/Fuel_Specs!$H$66 ->  | M124: =L124*$O$53*Fuel_Specs!$D$83 -> 
D125: Electricity, kWh | F125: =G51 -> 0
E126: Convert to Btu/lb. fuel (LHV) | F126: =F125*Fuel_Specs!$F$69/$C$52 ->  | G126: =F126/($F$120+$F$122+$F$124+$F$126+$F$128+$F$130+$F$132) ->  | H126: =F125*J126 -> 0 | I126: =H126/$C$52/Fuel_Specs!$E$30*10^6 ->  | J126: =HLOOKUP($A$117,'EF Table'!$C$62:$AF$65,3,FALSE) -> 610.3418915 | K126: gCO2e/kWh | L126: =I126/Fuel_Specs!$H$66 ->  | M126: =L126*$O$53*Fuel_Specs!$D$83 -> 
D127: Other Fuel, MMBtu (HHV) | F127: =H51 -> 0
E128: Convert to Btu/lb. fuel (LHV) | F128: =F127*$H$53*10^6/$C$52 ->  | G128: =F128/($F$120+$F$122+$F$124+$F$126+$F$128+$F$130+$F$132) ->  | H128: =F128*J128*$C$52/10^6 ->  | I128: =H128/$C$52/Fuel_Specs!$E$30*10^6 ->  | J128: =H52 -> 0 | K128: gCO2e/MMBtu of Other Fuel | L128: =I128/Fuel_Specs!$H$66 ->  | M128: =L128*$O$53*Fuel_Specs!$D$83 -> 
D129: Other Electricity Use, kWh | F129: 0
E130: Convert to Btu/lb. fuel (LHV) | F130: =F129*Fuel_Specs!$F$69/$C$52 ->  | H130: =F130*J130*$C$51*Fuel_Specs!$B$79/10^6 ->  | I130: =H130/$C$52/Fuel_Specs!$E$30*10^6 ->  | L130: =I130/Fuel_Specs!$H$66 ->  | M130: =L130*$O$53*Fuel_Specs!$D$83 -> 
D131: Hydrogen Use, ft3 (HHV) | F131: =I51 -> 0
E132: Convert to Btu/lb. fuel (LHV) | F132: =F131*Fuel_Specs!$B$24/$C$52 ->  | G132: =F132/($F$120+$F$122+$F$124+$F$126+$F$128+$F$130+$F$132) ->  | H132: =F132*J132*$C$52/10^6 ->  | I132: =H132/$C$52/Fuel_Specs!$E$30*10^6 ->  | J132: ='EF Table'!C37 -> 106907.1196 | K132: gCO2e/MMBtu Hydrogen | L132: =I132/Fuel_Specs!$H$66 ->  | M132: =L132*$O$53*Fuel_Specs!$D$83 -> 
D133: Chemical Use CI, g/MJ | M133: =References!C109 -> 0.03
D134: Total Thermal energy, Btu/lb. fuel | F134: =F120+F122+F124+F128+F132 -> 
D135: Total Electricity energy, Btu/lb. fuel | F135: =F130+F126 -> 
D136: Total Energy, Btu/lb. fuel | F136: =F134+F135 -> 
B137: Displacement Credit (NG/Propane) | D137: Light Hydro Carbon, MMBtu LHV | F137: =-J51*J52 -> 0 | H137: =F137*J137 -> 0 | I137: =H137/$C$52/Fuel_Specs!$E$30*10^6 ->  | J137: ='EF Table'!C30 -> 73424.19464 | K137: gCO2e/MMBtu NG | L137: =I137/Fuel_Specs!$H$66 ->  | M137: =IFERROR(L137*O53*Fuel_Specs!$D$83,0) -> 0
B138: Energy Allocation | D138: Renewable Naphtha, gallons | F138: =K51 -> 0 | J138: =K53 -> 0 | K138: Btu/gal in LHV
B139: Energy Allocation | D139: Renewable Propane, gallons | F139: =L51 -> 0 | J139: =L53 -> 0 | K139: Btu/gal in LHV
B140: Energy Allocation | D140: Renewable Jet fuel or Other, gallons | F140: =M51 -> 0 | J140: =M53 -> 0 | K140: Btu/gal in LHV
B141: Corn/SorghumOil Use as Debit to DGS in Corn/Sorghum Ethanol | D141: Corn/Sorghum Oil from DGS | F141: ='CornSorghum Oil'!E39 -> 0 | H141: =F141*J141 -> 0 | I141: =H141/$C$52/$E$185/Fuel_Specs!$E$30*10^6 ->  | J141: ='EF Table'!C67 -> 177.1574839 | K141: gCO2e/lb. oil | L141: =I141/Fuel_Specs!$H$66 ->  | M141: =L141*$O$53*Fuel_Specs!$D$87 -> 
B143: RD Transport | L143: =SUM(L144:L147) ->  | M143: =IFERROR(SUM(M144:M147),0) -> 0
D144: by Diesel HDT, miles | F144: =O29+O27 -> 0 | G144: 1 | H144: =F144*J144*$C$51 -> 0 | I144: =H144/$C$51/Fuel_Specs!$B$18*10^6 ->  | J144: ='EF Table'!C57 -> 0.4080710874 | K144: gCO2e/gallon RD - Mile | L144: =I144/Fuel_Specs!$H$66 ->  | M144: =L144 -> 
D145: by Rail, miles | F145: =O33 -> 0 | G145: 1 | H145: =F145*J145*$C$51 -> 0 | I145: =H145/$C$51/Fuel_Specs!$B$18*10^6 ->  | J145: ='EF Table'!C58 -> 0.0886601425 | K145: gCO2e/gallon RD - Mile | L145: =I145/Fuel_Specs!$H$66 ->  | M145: =L145 -> 
D146: by Ocean Tanker, miles | F146: =O39 -> 0 | G146: 1 | H146: =F146*J146*$C$51 -> 0 | I146: =H146/$C$51/Fuel_Specs!$B$18*10^6 ->  | J146: =$O$37 -> 0.08572157001 | K146: gCO2e/gallon RD - Mile | L146: =I146/Fuel_Specs!$H$66 ->  | M146: =L146 -> 
D147: by Barge, miles | F147: =O41 -> 0 | G147: 1 | H147: =F147*J147*$C$51 -> 0 | I147: =H147/$C$51/Fuel_Specs!$B$18*10^6 ->  | J147: ='EF Table'!C60 -> 0.072847982 | K147: gCO2e/gallon RD - Mile | L147: =I147/Fuel_Specs!$H$66 ->  | M147: =L147 -> 
B148: Tailpipe Emissions | M148: ='BD-Production'!M182 -> 0.76
B149: CI Summary | D149: RD from Soy Oil, gCO2e/MJ | F149: =SUM(F150:F153) -> 0
D150: Feedstock Production, gCO2e/MJ | F150: =IF('Soy Oil'!$E$39=0,0,M57) -> 0
D151: Fuel Production, gCO2e/MJ | F151: =IF('Soy Oil'!$E$39=0,0,M117) -> 0
D152: Indirect Land Use, gCO2e/MJ | F152: =IF('Soy Oil'!$E$39=0,0,M68) -> 0
D153: Tailpipe Emissions, gCO2e/MJ | F153: =IF('Soy Oil'!$E$39=0,0,0.76) -> 0
D154: RD from Canola Oil, gCO2e/MJ | F154: =SUM(F155:F158) -> 0
D155: Feedstock Production, gCO2e/MJ | F155: =IF(Canola!$E$39=0,0,M69) -> 0
D156: Fuel Production, gCO2e/MJ | F156: =IF(Canola!$E$39=0,0,M117) -> 0
D157: Indirect Land Use, gCO2e/MJ | F157: =IF(Canola!$E$39=0,0,M81) -> 0
D158: Tailpipe Emissions, gCO2e/MJ | F158: =IF(Canola!$E$39=0,0,0.76) -> 0
D159: RD from Corn/Sorghum Oil, gCO2e/MJ | F159: =SUM(F160:F163) -> 0
D160: Feedstock Production, gCO2e/MJ | F160: =IF('CornSorghum Oil'!$E$39=0,0,M82+M141) -> 0
D161: Fuel Production, gCO2e/MJ | F161: =IF('CornSorghum Oil'!$E$39=0,0,M117) -> 0
D162: Indirect Land Use, gCO2e/MJ | F162: 0
D163: Tailpipe Emissions, gCO2e/MJ | F163: =IF('CornSorghum Oil'!$E$39=0,0,0.76) -> 0
D164: RD from Used Cooking Oil 1, gCO2e/MJ | F164: =SUM(F165:F168) -> 0 | G164: RD from Used Cooking Oil 2, gCO2e/MJ | I164: =SUM(I165:I168) -> 0 | J164: RD from Used Cooking Oil 3, gCO2e/MJ | L164: =SUM(L165:L168) -> 0
D165: Feedstock Production, gCO2e/MJ | F165: =IF('UCO1'!$E$39=0,0,M92) -> 0 | G165: Feedstock Production, gCO2e/MJ | I165: =IF('UCO2'!$E$39=0,0,W92) -> 0 | J165: Feedstock Production, gCO2e/MJ | L165: =IF('UCO3'!$E$39=0,0,AG92) -> 0
D166: Fuel Production, gCO2e/MJ | F166: =IF('UCO1'!$E$39=0,0,M117) -> 0 | G166: Fuel Production, gCO2e/MJ | I166: =IF('UCO2'!$E$39=0,0,M117) -> 0 | J166: Fuel Production, gCO2e/MJ | L166: =IF('UCO3'!$E$39=0,0,M117) -> 0
D167: Indirect Land Use, gCO2e/MJ | F167: 0 | G167: Indirect Land Use, gCO2e/MJ | I167: 0 | J167: Indirect Land Use, gCO2e/MJ | L167: 0
D168: Tailpipe Emissions, gCO2e/MJ | F168: =IF('UCO1'!$E$39=0,0,M148) -> 0 | G168: Tailpipe Emissions, gCO2e/MJ | I168: =IF('UCO2'!$E$39=0,0,M148) -> 0 | J168: Tailpipe Emissions, gCO2e/MJ | L168: =IF('UCO3'!$E$39=0,0,M148) -> 0
D169: RD from Tallow 1, gCO2e/MJ | F169: =SUM(F170:F173) -> 0 | G169: RD from Tallow 2, gCO2e/MJ | I169: =SUM(I170:I173) -> 0 | J169: RD from Tallow 3, gCO2e/MJ | L169: =SUM(L170:L173) -> 0
D170: Feedstock Production, gCO2e/MJ | F170: =IF(Tallow1!$E$39=0,0,M103) -> 0 | G170: Feedstock Production, gCO2e/MJ | I170: =IF(Tallow2!$E$39=0,0,W103) -> 0 | J170: Feedstock Production, gCO2e/MJ | L170: =IF(Tallow3!$E$39=0,0,AG103) -> 0
D171: Fuel Production, gCO2e/MJ | F171: =IF(Tallow1!$E$39=0,0,M117) -> 0 | G171: Fuel Production, gCO2e/MJ | I171: =IF(Tallow2!$E$39=0,0,M117) -> 0 | J171: Fuel Production, gCO2e/MJ | L171: =IF(Tallow3!$E$39=0,0,M117) -> 0
D172: Indirect Land Use, gCO2e/MJ | F172: =0 -> 0 | G172: Indirect Land Use, gCO2e/MJ | I172: =0 -> 0 | J172: Indirect Land Use, gCO2e/MJ | L172: =0 -> 0
D173: Tailpipe Emissions, gCO2e/MJ | F173: =IF(Tallow1!$E$39=0,0,M148) -> 0 | G173: Tailpipe Emissions, gCO2e/MJ | I173: =IF(Tallow2!$E$39=0,0,M148) -> 0 | J173: Tailpipe Emissions, gCO2e/MJ | L173: =IF(Tallow3!$E$39=0,0,M148) -> 0
D174: RD from Other Feedstock ,gCO2e/MJ | F174: =SUM(F175:F178) -> 0
D175: Feedstock Production, gCO2e/MJ | F175: 0
D176: Fuel Production, gCO2e/MJ | F176: 0
D177: Indirect Land Use, gCO2e/MJ | F177: 0
D178: Tailpipe Emissions, gCO2e/MJ | F178: 0
F181: Feedstock | G181: Renewable Diesel | I181: Renewable Naphtha | K181: Renewable Propane | M181: Jet Fuel or Other Fuel
B182: Position | C182: ID | D182: CI | E182: % | F182: Type | G182: CI, gCO2e/MJ | H182: Volume, gals | I182: CI, gCO2e/MJ | J182: Volume, gals | K182: CI, gCO2e/MJ | L182: Volume, gals | M182: CI, gCO2e/MJ | N182: Volume, gals
B183: 1 | C183: Soy Oil | D183: =VLOOKUP(C183,$F$183:$G$199,2,FALSE) -> 0 | E183: =IFERROR('Soy Oil'!E$39/('Soy Oil'!$E$39+Canola!$E$39+Tallow1!$E$39+Tallow2!$E$39+Tallow3!$E$39+'UCO1'!$E$39+'UCO2'!$E$39+'UCO3'!$E$39+'CornSorghum Oil'!$E$39),0) -> 0 | F183: =C183 -> Soy Oil | G183: =F$149 -> 0 | H183: =E183*$C$51 -> 0 | I183: =G183 -> 0 | J183: =E183*$K$51 -> 0 | K183: =G183 -> 0 | L183: =E183*$L$51 -> 0 | M183: =G183 -> 0 | N183: =E183*$M$51 -> 0
B184: 2 | C184: Canola Oil | D184: =VLOOKUP(C184,$F$183:$G$199,2,FALSE) -> 0 | E184: =IFERROR(Canola!E$39/('Soy Oil'!$E$39+Canola!$E$39+Tallow1!$E$39+Tallow2!$E$39+Tallow3!$E$39+'UCO1'!$E$39+'UCO2'!$E$39+'UCO3'!$E$39+'CornSorghum Oil'!$E$39),0) -> 0 | F184: Canola Oil | G184: =F154 -> 0 | H184: =E184*$C$51 -> 0 | I184: =G184 -> 0 | J184: =E184*$K$51 -> 0 | K184: =G184 -> 0 | L184: =E184*$L$51 -> 0 | M184: =G184 -> 0 | N184: 0
B185: 3 | C185: Corn/Sorghum Oil | D185: =VLOOKUP(C185,$F$183:$G$196,2,FALSE) -> 0 | E185: =IFERROR('CornSorghum Oil'!E$39/('Soy Oil'!$E$39+Canola!$E$39+Tallow1!$E$39+Tallow2!$E$39+Tallow3!$E$39+'UCO1'!$E$39+'UCO2'!$E$39+'UCO3'!$E$39+'CornSorghum Oil'!$E$39),0) -> 0 | F185: =C185 -> Corn/Sorghum Oil | G185: =F159 -> 0 | H185: =E185*$C$51 -> 0 | I185: 0 | J185: 0 | K185: 0 | L185: 0 | M185: 0 | N185: 0
B186: 4 | C186: UCO1 | D186: =VLOOKUP(C186,$F$183:$G$193,2,FALSE) -> 0 | E186: =IFERROR('UCO1'!E$39/('Soy Oil'!$E$39+Canola!$E$39+Tallow1!$E$39+Tallow2!$E$39+Tallow3!$E$39+'UCO1'!$E$39+'UCO2'!$E$39+'UCO3'!$E$39+'CornSorghum Oil'!$E$39),0) -> 0 | F186: UCO1 | G186: =F164 -> 0 | H186: 0 | I186: 0 | J186: 0 | K186: 0 | L186: 0 | M186: 0 | N186: 0
B187: 5 | C187: UCO2 | D187: =VLOOKUP(C187,$F$183:$G$199,2,FALSE) -> 0 | E187: =IFERROR('UCO2'!E$39/('Soy Oil'!$E$39+Canola!$E$39+Tallow1!$E$39+Tallow2!$E$39+Tallow3!$E$39+'UCO1'!$E$39+'UCO2'!$E$39+'UCO3'!$E$39+'CornSorghum Oil'!$E$39),0) -> 0 | F187: UCO2 | G187: =I164 -> 0 | H187: 0 | I187: 0 | J187: 0 | K187: 0 | L187: 0 | M187: 0 | N187: 0
B188: 6 | C188: UCO3 | D188: 0 | E188: =IFERROR('UCO3'!E$39/('Soy Oil'!$E$39+Canola!$E$39+Tallow1!$E$39+Tallow2!$E$39+Tallow3!$E$39+'UCO1'!$E$39+'UCO2'!$E$39+'UCO3'!$E$39+'CornSorghum Oil'!$E$39),0) -> 0 | F188: UCO3 | G188: =L164 -> 0 | H188: 0 | I188: 0 | J188: 0 | K188: 0 | L188: 0 | M188: 0 | N188: 0
B189: 7 | C189: Tallow1 | D189: 0 | E189: =IFERROR(Tallow1!E$39/('Soy Oil'!$E$39+Canola!$E$39+Tallow1!$E$39+Tallow2!$E$39+Tallow3!$E$39+'UCO1'!$E$39+'UCO2'!$E$39+'UCO3'!$E$39+'CornSorghum Oil'!$E$39),0) -> 0 | F189: Tallow1 | G189: =F169 -> 0 | H189: 0 | I189: 0 | J189: 0 | K189: 0 | L189: 0 | M189: 0 | N189: 0
B190: 8 | C190: Tallow2 | D190: 0 | E190: =IFERROR(Tallow2!E$39/('Soy Oil'!$E$39+Canola!$E$39+Tallow1!$E$39+Tallow2!$E$39+Tallow3!$E$39+'UCO1'!$E$39+'UCO2'!$E$39+'UCO3'!$E$39+'CornSorghum Oil'!$E$39),0) -> 0 | F190: Tallow2 | G190: =I169 -> 0 | H190: 0 | I190: 0 | J190: 0 | K190: 0 | L190: 0 | M190: 0 | N190: 0
B191: 9 | C191: Tallow3 | D191: 0 | E191: =IFERROR(Tallow3!E$39/('Soy Oil'!$E$39+Canola!$E$39+Tallow1!$E$39+Tallow2!$E$39+Tallow3!$E$39+'UCO1'!$E$39+'UCO2'!$E$39+'UCO3'!$E$39+'CornSorghum Oil'!$E$39),0) -> 0 | F191: Tallow3 | G191: =L169 -> 0 | H191: 0 | I191: 0 | J191: 0 | K191: 0 | L191: 0 | M191: 0 | N191: 0
B192: 10 | C192: Other | D192: 0 | E192: =IFERROR(Other!$C$3/('Soy Oil'!$E$39+Canola!$E$39+Tallow1!$E$39+'UCO1'!$E$39+'CornSorghum Oil'!$E$39),0) -> 0 | F192: =C192 -> Other | G192: =F174 -> 0 | H192: 0 | I192: 0 | J192: 0 | K192: 0 | L192: 0 | M192: 0 | N192: 0
B194: Total | E194: =SUM(E183:E193) -> 0 | H194: =SUM(H183:H193) -> 0 | J194: =SUM(J183:J193) -> 0 | L194: =SUM(L183:L193) -> 0 | N194: =SUM(N183:N193) -> 0
B196: Co-product Credit Calculations:
B197: Before the Credit is granted, a mass balance should be performed: Oil Inputs + Hydrogen + Chemicals = Renewable Diesel + Propane + Other Co-products (Light HC, Naphtha, Jet Fuels)+Water

Sheet EF Table
B1: Greenhouse Gases Emissions Factors Used in CA-GREET 3.0 for Carbon Intensity Calculation
B2: Soybean, gCO2e/dry ton Soybean | C2: US | D2: User Defined
B3: Farming, (unallocated) | C3: 75961.7571 | D3: ='Soy Oil'!N10 -> 0
B4: Fertilizers, (unallocated) | C4: 39994.79249
B5: N2O in Soil, (unallocated) | C5: 216263.1882
B6: Soybean Transport (unallocated)
B7: by MDT, gCO2e/ton-mile | C7: 616.2972099
B8: by HDT, gCO2e/ton-mile | C8: 153.8912487
B9: by Rail, gCO2e/ton-mile | C9: 27.27620861
B10: by Barge, gCO2e/ton-mile | C10: 22.41742795
B11: Canola, gCO2e/dry metric ton Canola | C11: US | D11: User Defined
B12: Farming, (unallocated) | C12: 52570.88017 | D12: =Canola!N10 -> 0
B13: Fertilizers, (unallocated) | C13: 297412.3249
B14: N2O in Soil, (unallocated) | C14: 380688.4973
B15: Canola Transport, (unallocated)
B16: by MDT, gCO2e/metric ton-mile | C16: 679.3513854
B17: by HDT, gCO2e/metric ton-mile | C17: 169.6360641
B18: by Rail, gCO2e/metric ton-mile | C18: 30.0746752
B19: by Barge, gCO2e/metric ton-mile | C19: 24.7109844
B20: Oil Transport (unallocated) | C20: U.S EF | D20: Standard Tanker Size | F20: User Defined EF | G20: User Defined Tanker Size
B21: Rendered Oil Transport, (unallocated)
B23: by HDT, gCO2e/ton-mile | C23: 153.8912487
B24: by Rail, gCO2e/ton-mile | C24: 27.28328641
B25: by Barge, gCO2e/ton-mile | C25: 22.41742795
B26: by Ocean Tanker, gCO2e/ton-mile | C26: 34.60329791 | D26: Tanker Size, DWT | E26: 12500 | G26: Tanker Size, DWT | H26: 12500
B27: Transesterification and Hydrotreating, per MMBtu fuel input (unallocated except electricity) | C27: U.S | D27: User Defined (NG or Crude) for BD Production | E27: User Defined (Crude or NG) for RD Production
B28: Residual Oil, gCO2e/MMBtu | C28: 100447.9321
B29: Diesel, gCO2e/MMBtu | C29: 99056.66304
B30: NG, gCO2e/MMBtu | C30: 73424.19464 | D30: =IF('BD-Production'!H20="User Defined NG",'BD-Production'!N20,"") ->  | E30: =IF('RD-Production'!H23="User Defined NG",'RD-Production'!N23,"") -> 
B31: Coal, gCO2e/MMBtu | C31: 105842.137
B32: Hexane, gCO2e/MMBtu | C32: 94245.33783
B33: Electricity, gCO2e/kWh | C33: =IF('BD RD Summary'!P3="Biodiesel",HLOOKUP(D33,'EF Table'!C52:AF54,3,FALSE),HLOOKUP(D33,'EF Table'!C62:AF64,3,FALSE)) -> 610.3418915 | D33: =IF('BD RD Summary'!P3="Biodiesel",'BD-Production'!H18,'RD-Production'!H21) -> 1-U.S Ave Mix | E33: =IF('BD RD Summary'!P3="Biodiesel",'BD-Production'!H18,'RD-Production'!H21) -> 1-U.S Ave Mix
B34: Crude, gCO2e/MMBtu | D34: =IF('BD-Production'!H19="User Defined Crude",'BD-Production'!N19,"") ->  | E34: =IF('RD-Production'!H22="User Defined Crude",'RD-Production'!N22,"") -> 
B36: Methanol, gCO2e/MMBtu | C36: 113250.9966
B37: Hydrogen, gCO2e/MMBtu | C37: 106907.1196
B38: Other Fuel, gCO2e/MMBtu | C38: =IF('BD RD Summary'!P3="Biodisell",'BD-Production'!H49,'RD-Production'!H51) -> 0
B40: Alternate Fuels, gCO2e/MMBtu | D40: ='BD-Production'!H49 -> 0
B41: Soy Oil Extraction (unallocated), gCO2e/lb oil | C41: 295.563158
B42: Canola Oil Extraction, gCO2e/lb oil | C42: 117.221847
B43: Tallow Rendering, gCO2e/lb oil | C43: 303.8222645 | D43: =IF(Tallow1!D11="User Defined",Tallow1!G11,"") ->  | E43: =IF(Tallow2!D11="User Defined",Tallow2!G11,"") ->  | F43: =IF(Tallow3!D11="User Defined",Tallow3!G11,"") -> 
B44: UCO Rendering, gCO2e/lb oil | C44: 90.43831825 | D44: =IF('UCO1'!D11="User Defined",'UCO1'!G11,"") ->  | E44: =IF('UCO2'!D11="User Defined",'UCO2'!G11,"") ->  | F44: =IF('UCO3'!D11="User Defined",'UCO3'!G11,"") -> 
B45: Corn Oil Extraction, gCO2e/lb oil | C45: 47.50169444 | D45: =IF('CornSorghum Oil'!D10="User Defined",'CornSorghum Oil'!D40,"") -> 
B47: BD Transport | F47: User Defined EF | G47: User Defined Tanker Size
B48: by HDT, gCO2e/gallon-mile | C48: 0.4652397981
B49: by Rail, gCO2e/gallon-mile | C49: 0.1010809834
B50: by Ocean Tanker, gCO2e/gallon BD-mile | C50: 0.09773073162 | D50: Tanker Size, DWT | E50: 22500 | F50: =IF('BD-Production'!R34="User Defined",'BD-Production'!R36,0) -> 0 | G50: Tanker Size, DWT | H50: =IF('BD-Production'!R34="User Defined",'BD-Production'!R35,E50) -> 22500
B51: by Barge, gCO2e/gallon-mile | C51: 0.08305361856
B52: GHG Emission Factors for BD | C52: 1-U.S Ave Mix | D52: 2-User Defined Mix | E52: 3-CAMX Mix | F52: 4-NWPP Mix | G52: 5-AZNM Mix | H52: 6-RMPA Mix | I52: 7-MROW Mix | J52: 8-SPNO Mix | K52: 9-SPSO Mix | L52: 10-ERCT Mix | M52: 11-MROE Mix | N52: 12-SRMW Mix | O52: 13-SRMV Mix | P52: 14-RFCM Mix | Q52: 15-RFCW Mix | R52: 16-SRTV Mix | S52: 17-SRSO Mix | T52: 18-NEWE Mix | U52: 19-NYUP Mix | V52: 20-RFCE Mix | W52: 21-NYLI Mix | X52: 22-NYCW Mix | Y52: 23-SRVC Mix | Z52: 24-FRCC Mix | AA52: 25-AKMS Mix | AB52: 26-AKGD Mix | AC52: 27-HIOA Mix | AD52: 28-HIMS Mix | AE52: 29-Brazilian Mix | AF52: 30-Canadian Mix
B53: Emissions from Electricity use (gCO2e/kWh) For Feedstock Production | C53: 610.3418915 | E53: 370.2153615 | F53: 476.6675589 | G53: 460.828593 | H53: 851.0302066 | I53: 684.3534391 | J53: 792.60226 | K53: 795.0546932 | L53: 638.5930168 | M53: 892.006906 | N53: 924.3059717 | O53: 614.2474033 | P53: 785.9173014 | Q53: 738.4269048 | R53: 682.1417198 | S53: 628.5383725 | T53: 356.8984902 | U53: 231.0811543 | V53: 462.5107826 | W53: 627.0563909 | X53: 356.8338354 | Y53: 493.6181335 | Z53: 601.6503365 | AA53: 161.9571553 | AB53: 747.5726312 | AC53: 1127.536138 | AD53: 680.4957247 | AE53: 193.692493 | AF53: 176.2324788
B54: Emissions from Electricity use (gCO2e/kWh) for Fuel Production | C54: 610.3418915 | E54: 370.2153615 | F54: 476.6675589 | G54: 460.828593 | H54: 851.0302066 | I54: 684.3534391 | J54: 792.60226 | K54: 795.0546932 | L54: 638.5930168 | M54: 892.006906 | N54: 924.3059717 | O54: 614.2474033 | P54: 785.9173014 | Q54: 738.4269048 | R54: 682.1417198 | S54: 628.5383725 | T54: 356.8984902 | U54: 231.0811543 | V54: 462.5107826 | W54: 627.0563909 | X54: 356.8338354 | Y54: 493.6181335 | Z54: 601.6503365 | AA54: 161.9571553 | AB54: 747.5726312 | AC54: 1127.536138 | AD54: 680.4957247 | AE54: 193.692493 | AF54: 176.2324788
B56: RD Transport | F56: User Defined EF | G56: User Defined Tanker Size
B57: by HDT, gCO2e/gallon-mile | C57: 0.4080710874
B58: by Rail, gCO2e/gallon-mile | C58: 0.0886601425
B59: by Ocean Tanker, gCO2e/gallon RD-mile | C59: 0.08572157001 | D59: Tanker Size, DWT | E59: 22500 | F59: =IF('RD-Production'!O36="User Defined",'RD-Production'!O37:O38,0) -> 0 | G59: Tanker Size, DWT | H59: =IF('RD-Production'!O35="User Defined",'RD-Production'!O36,E59) -> 22500
B60: by Barge, gCO2e/gallon-mile | C60: 0.072847982
B62: GHG Emission Factors for RD | C62: 1-U.S Ave Mix | D62: 2-User Defined Mix | E62: 3-CAMX Mix | F62: 4-NWPP Mix | G62: 5-AZNM Mix | H62: 6-RMPA Mix | I62: 7-MROW Mix | J62: 8-SPNO Mix | K62: 9-SPSO Mix | L62: 10-ERCT Mix | M62: 11-MROE Mix | N62: 12-SRMW Mix | O62: 13-SRMV Mix | P62: 14-RFCM Mix | Q62: 15-RFCW Mix | R62: 16-SRTV Mix | S62: 17-SRSO Mix | T62: 18-NEWE Mix | U62: 19-NYUP Mix | V62: 20-RFCE Mix | W62: 21-NYLI Mix | X62: 22-NYCW Mix | Y62: 23-SRVC Mix | Z62: 24-FRCC Mix | AA62: 25-AKMS Mix | AB62: 26-AKGD Mix | AC62: 27-HIOA Mix | AD62: 28-HIMS Mix | AE62: 29-Brazilian Mix | AF62: 30-Canadian Mix
B63: Emissions from Electricity use (gCO2e/kWh) For Feedstock Production | C63: 610.3418915 | E63: 370.2153615 | F63: 476.6675589 | G63: 460.828593 | H63: 851.0302066 | I63: 684.3534391 | J63: 792.60226 | K63: 795.0546932 | L63: 638.5930168 | M63: 892.006906 | N63: 924.3059717 | O63: 614.2474033 | P63: 785.9173014 | Q63: 738.4269048 | R63: 682.1417198 | S63: 628.5383725 | T63: 356.8984902 | U63: 231.0811543 | V63: 462.5107826 | W63: 627.0563909 | X63: 356.8338354 | Y63: 493.6181335 | Z63: 601.6503365 | AA63: 161.9571553 | AB63: 747.5726312 | AC63: 1127.536138 | AD63: 680.4957247 | AE63: 193.692493 | AF63: 176.2324788
B64: Emissions from Electricity use (gCO2e/kWh) for Fuel Production | C64: 610.3418915 | E64: 370.2153615 | F64: 476.6675589 | G64: 460.828593 | H64: 851.0302066 | I64: 684.3534391 | J64: 792.60226 | K64: 795.0546932 | L64: 638.5930168 | M64: 892.006906 | N64: 924.3059717 | O64: 614.2474033 | P64: 785.9173014 | Q64: 738.4269048 | R64: 682.1417198 | S64: 628.5383725 | T64: 356.8984902 | U64: 231.0811543 | V64: 462.5107826 | W64: 627.0563909 | X64: 356.8338354 | Y64: 493.6181335 | Z64: 601.6503365 | AA64: 161.9571553 | AB64: 747.5726312 | AC64: 1127.536138 | AD64: 680.4957247 | AE64: 193.692493 | AF64: 176.2324788
B67: Corn Oil from DGS, CO2e/lb oil as Debit | C67: 177.1574839

Sheet References
B67: References for Biodiesel and Renewable Diesel Pathways
B68: Feedstock Type | C68: 1) Soybean | E68: 2) Canola | G68: 3) Corn Oil from DGS of an Ethanol Plant | I68: 4) Used Cooking Oil | K68: 5) Tallow
B69: a. Farming Energy
B70: Total Farming Energy | C70: 16,718 Btu/bushel | D70: Sources | E70: 519,148 Btu/dry MT | F70: Sources | G70: N/A | I70: N/A | K70: N/A
B71: Diesel fuel | C71: 10766.392 | D71: GREET 1 2016 | E71: 519148 | F71: GREET 1 2016
B72: Gasoline | C72: 2975.804
B73: Natural gas | C73: 1220.414
B74: Liquefied petroleum gas | C74: 1270.568
B75: Electricity | C75: 484.822
B76: Moisture | C76: 0.13 | E76: 0.09
B77: Biomass Use for Oil Extraction lb./lb. oil | E77: 2.1544
B78: b. Fertilizer Use
B79: Nitrogen | C79: 49.9 g/bushel | D79: GREET 1 2016 | E79: 54,699 g/dry MT | F79: GREET 1 2016
B80: P2O5 | C80: 206.7 | E80: 15299
B81: K2O | C81: 344.4 | E81: 2946
B82: CaCO3 | C82: 0
B83: Herbicide | C83: 20.7 | E83: 300
B84: Pesticide | C84: 0.63 | E84: 42.86
B85: c. N2O in soil
B86: N in N2O as % of N in N fertilizer | C86: 0.01325 | D86: GREET 1 2016 | E86: 0.01325 | F86: GREET 1 2016
B87: N in N2O as % of N in biomass | C87: 0.01225 | D87: GREET 1 2016 | E87: 0.01225 | F87: GREET 1 2016
B88: d. Transport
B89: Raw feedstock to collection point by MDT, mi | C89: 10 | D89: GREET 1 2016 | E89: 10 | F89: GREET 1 2016
B90: To crushing/rendering plant by HDDT mi | C90: 40 | E90: 40
B91: e. Oil Extraction
B92: Total Extraction Energy, Btu/lb. oil | C92: 3073 | D92: CA-GREET 3.0 | E92: 1238 | F92: GREET 1 2016 | G92: =266 -> 266 | H92: GREET 1 2016 | I92: 1073 | J92: GREET 1 2016 | K92: 3944 | L92: GREET 1 2016
B93: Natural gas | C93: 1723.47 | E93: 1005 | I93: 963 | K93: 3500
B94: Coal | C94: 848.37
B95: Electricity | C95: 368.72 | E95: 178 | G95: 266 | I95: =0.046*3412.14 -> 156.95844 | K95: =0.13*3412.14 -> 443.5782
B96: N-Hexane | C96: 49.16 | E96: 54
B97: Biomass | C97: 26.73
B98: LFG | C98: 13.21
B99: f. Yield | G99: 0.04221516906 | H99: Corn oil in DGS (whole) (wt.%)
B100: Oil Yield, lb. oil/lb. feedstock | C100: 0.2 | D100: CA-GREET 3.0 | E100: 0.4733 | F100: CA-GREET 3.0 | G100: 0.236 | H100: (lbs./gal EtOH) from LCFS applications | I100: 0.8 | J100: CA-GREET 3.0 | K100: 0.286 | L100: CA-GREET 3.0
B101: Biodiesel Yield, lb. BD/lb. oil | C101: User Defined | E101: User defined | G101: User defined | I101: User defined | K101: User defined
B102: Glycerin energy allocation | C102: 0.0494 | D102: CA-GREET 3.0 | E102: 0.0494 | F102: CA-GREET 3.0 | G102: 0.0494 | H102: CA-GREET 3.0 | I102: 0.0494 | J102: CA-GREET 3.0 | K102: 0.0494 | L102: CA-GREET 3.0
B103: RD Yield, lb. BD/lb. oil | C103: User defined | E103: User defined | G103: User defined | I103: User defined | K103: User defined
B104: Propane energy allocation | C104: 0.0548 | D104: CA-GREET 3.0 | E104: 0.0548 | F104: CA-GREET 3.0 | G104: 0.0548 | H104: CA-GREET 3.0 | I104: 0.0548 | J104: CA-GREET 3.0 | K104: 0.0548 | L104: CA-GREET 3.0
B105: g. Biodiesel via Transesterification
B106: Chemical Use, gCO2e/MJ | C106: 0.65 | D106: From LCFS applications | E106: =C106 -> 0.65 | F106: From LCFS applications | G106: =E106 -> 0.65 | H106: From LCFS applications | I106: =E106 -> 0.65 | J106: From LCFS applications | K106: =E106 -> 0.65 | L106: From LCFS applications
B107: Methanol Use | C107: User defined | E107: User defined | G107: User defined | I107: User defined | K107: User defined
B108: h. Renewable Diesel via Hydrotreating
B109: Chemical Use, gCO2e/MJ | C109: 0.03 | D109: From LCFS applications | E109: =C109 -> 0.03 | F109: From LCFS applications | G109: =C109 -> 0.03 | H109: From LCFS applications | I109: =C109 -> 0.03 | J109: From LCFS applications | K109: =C109 -> 0.03 | L109: From LCFS applications
B110: Hydrogen Use | C110: User defined | E110: User defined | G110: User defined | I110: User defined | K110: User defined
B111: i. Fuel Distribution
B112: Distribution by HDT to blending terminal, miles | C112: 50 | D112: CA-GREET 3.0
B113: Distribution by HDT to stations, miles | C113: 90 | D113: CA-GREET 3.0
B114: g. Fuel Properties
B115: Density of BD, lbs./gal | C115: =Fuel_Specs!E17/Fuel_Specs!$E$50 -> 7.409736632 | D115: CA-GREET 3.0
B116: Density of RD, lbs./gal | C116: =Fuel_Specs!E18/Fuel_Specs!$E$50 -> 6.499227489 | D116: CA-GREET 3.0
B117: Average lb. DGS/gal EtOH | C117: 5.635 | D117: From LCFS applications | G117: 12.31 | H117: gCO2e/MJ of DGS credit from LCFS applications
B118: h. Ocean Tanker Size for Feedstock Transport | C118: 12500 | D118: From LCFS applications
B119: i. Ocean Tanker Size for Fuel Transport, DWT | C119: 22500 | D119: From LCFS applications

Sheet Fuel_Specs
A1: Specifications of Fuels, Global Warming Potentials of Greenhouse Gases, and Carbon and Sulfur Ratios of Pollutants
A2: 1) Specifications of Fuels
A3: Fuel | B3: Heating Value | E3: Density | F3: C ratio | G3: S ratio | H3: S ratio | J3: Density
B4: Calculation: LHV | C4: LHV | D4: HHV | F4: (% by wt) | G4: (ppm by wt) | H4: Actual ratio by wt | I4: LHV/HHV
A5: Use LHV or HHV in calculations? | B5: 1 | C5: 1 -- LHV; 2 -- HHV
A6: Liquid Fuels: | B6: Btu/gal | C6: Btu/gal | D6: Btu/gal | E6: grams/gal | J6: lbs/gal
A7: Gasoline | B7: 112193.52 | C7: 112193.52 | D7: 120438.62 | E7: 2835.562 | F7: 0.8277854697 | G7: 22.86665536 | H7: 2.286665536e-05 | I7: 0.9315410622
A8: CA gasoline | B8: 109786.1863 | C8: 109786.1863 | D8: 117852.0061 | E8: 2788.004945 | F8: 0.824672169 | G8: 22.9024935 | H8: 2.29024935e-05 | I8: 0.9315597589
A9: U.S. conventional diesel | B9: 128450 | C9: 128450 | D9: 137380 | E9: 3167 | F9: 0.865 | G9: 200 | H9: 0.0002 | I9: 0.9349978163
A10: CA conventional diesel | G10: 120 | H10: 0.00012
A11: Diesel for non-road engines | B11: 128450 | C11: 128450 | D11: 137380 | E11: 3167 | F11: 0.865 | G11: 163 | H11: 0.000163 | I11: 0.9349978163
A12: Low-sulfur diesel | B12: 127460 | C12: 127460 | D12: 133075.1388 | E12: 3142 | F12: 0.865 | G12: 11 | H12: 1.1e-05 | I12: 0.9578047497
A13: Residual oil | B13: 140352.5222 | C13: 140352.5222 | D13: 150110 | E13: 3752 | F13: 0.868 | G13: 5000 | H13: 0.005 | I13: 0.9349978163
A14: Bunker fuel for ocean tanker | B14: 140352.5222 | C14: 140352.5222 | D14: 150110 | E14: 3752 | F14: 0.868 | G14: 27000 | H14: 0.027 | I14: 0.9349978163
A15: Ethanol | B15: =IF($B$5=1,C15,D15) -> 76330 | C15: 76330 | D15: 84530 | E15: 2988 | F15: 0.522 | G15: =EtOH_CornEtOH_Share*([2]Inputs!F501*0+[2]Inputs!H501*5)+(EtOH_WBiomassEtOH_Share+EtOH_PoplarEtOH_Share+EtOH_HBiomassEtOH_Share+EtOH_MiscanthusEtOH_Share+EtOH_CornStoverEtOH_Share+EtOH_WoodResidueEtOH_Share+EtOH_SugarCaneEtOH_Share)*5 -> 0 | H15: =G15/1000000 -> 0 | I15: =C15/D15 -> 0.9029930202
A16: Methanol | B16: 57250 | C16: 57250 | D16: 65200 | E16: 3006 | F16: 0.375 | G16: 0 | H16: 0 | I16: 0.8780674847
A17: Methyl ester (biodiesel, BD) | B17: 119550 | C17: 119550 | D17: 127960 | E17: 3361 | F17: 0.776 | G17: 0 | H17: 0 | I17: 0.9342763364 | J17: =E17/$E$50 -> 7.409736632
A18: Renewable Diesel II (UOP-HDO) | B18: 122887 | C18: 122887 | D18: 130817 | E18: 2948 | F18: 0.871 | G18: 0 | H18: 0 | I18: 0.9393809673 | J18: =E18/$E$50 -> 6.499227489
A19: Propane | B19: 84250 | C19: 84250 | D19: 91420 | E19: 1920 | F19: 0.818 | G19: 0 | H19: 0 | I19: 0.9215707723
A20: Natural gas liquids | B20: 83686.11202 | C20: 83686.11202 | D20: 90050 | G20: 0 | H20: 0 | I20: 0.929329395
A21: n-Hexane | B21: 105124.8 | C21: 105124.8 | D21: 112166.3 | E21: 2478.7 | F21: 0.836251 | G21: 0 | H21: 0 | I21: 0.9372226774
A22: Gaseous Fuels (at 60F and 1atm): | B22: Btu/ft3 | C22: Btu/ft3 | D22: Btu/ft3 | E22: grams/ft3 | I22: LHV/HHV
A23: Natural gas | B23: 930 | C23: 930 | D23: 1030 | E23: 20.8 | F23: 0.724 | G23: 6 | H23: 6e-06 | I23: =B23/D23 -> 0.9029126214
A24: Gaseous hydrogen | B24: 290 | C24: 290 | D24: 343 | E24: 2.55 | F24: 0 | G24: 0 | H24: 0 | I24: 0.8454810496
A25: Solid Fuels: | B25: Btu/ton | C25: Btu/ton | D25: Btu/ton | I25: LHV/HHV
A26: Coal Mix for Electricity Generation | B26: 19474169.22 | C26: 19474169.22 | D26: 20673610.12 | F26: 0.5857110988 | G26: 10455.98834 | H26: 0.01045598834 | I26: =B26/D26 -> 0.9419820297
A27: Bituminous coal | B27: 22639319.98 | C27: 22639319.98 | D27: 23633492.96 | F27: 0.612 | G27: 15352.09272 | H27: 0.01535209272 | I27: 0.9579337264
A28: Forest residue | B28: 17289000 | C28: 17289000 | D28: 17906000 | F28: 0.503 | G28: 400 | H28: 0.0004 | I28: 0.9655422763
A29: Glycerin | B29: 7979 | C29: Btu/lb | D29: BD | E29: =B17/E17*$E$50 -> 16134.17668 | F29: Btu/lb
A30: Propane | B30: 18568.45 | C30: Btu/lb | D30: RD | E30: =B18/E18*$E$50 -> 18907.93947 | F30: Btu/lb
A32: 2) Global Warming Potentials of Greenhouse Gases: relative to CO2
A33: CO2 | B33: 1
A34: CH4 | B34: 25
A35: N2O | B35: 298
A36: VOC | B36: 3.116666667
A37: CO | B37: 1.571428571
A38: NO2 | B38: 0
A40: 3) Carbon and Sulfur Ratios of Pollutants
A41: Carbon ratio of VOC | B41: 0.85
A42: Carbon ratio of CO | B42: 0.4285714286
A43: Carbon ratio of CH4 | B43: 0.75
A44: Carbon ratio of CO2 | B44: 0.2727272727
A45: Sulfur ratio of SO2 | B45: 0.5
A48: 4) Unit Conversion
A49: Mass | B49: 1 g | C49: 1 kg | D49: 1 metric ton | E49: 1 lb | F49: 1 short ton
A50: g | B50: 1 | C50: 1000 | D50: 1000000 | E50: 453.59237 | F50: 907184.74
A51: kg | B51: 0.001 | C51: 1 | D51: 1000 | E51: 0.45359237 | F51: 907.18474
A52: metric ton | B52: 1e-06 | C52: 0.001 | D52: 1 | E52: 0.00045359237 | F52: 0.90718474
A53: lb | B53: 0.002204622622 | C53: 2.204622622 | D53: 2204.622622 | E53: 1 | F53: 2000
A54: short ton | B54: 1.102311311e-06 | C54: 0.001102311311 | D54: 1.102311311 | E54: 0.0005 | F54: 1
A56: Volume | B56: 1 m3 | C56: 1 ml | D56: 1 L | E56: 1 gal | F56: 1 ft3
A57: m3 | B57: 1 | C57: 1e-06 | D57: 0.001 | E57: 0.003785411 | F57: 0.028316847
A58: ml | B58: 1000000 | C58: 1 | D58: 1000 | E58: 3785.411 | F58: 28316.847
A59: L | B59: 1000 | C59: 0.001 | D59: 1 | E59: 3.785411 | F59: 28.316847
A60: gal | B60: 264.1721071 | C60: 0.0002641721071 | D60: 0.2641721071 | E60: 1 | F60: 7.480521138
A61: ft3 | B61: 35.31466621 | C61: 3.531466621e-05 | D61: 0.03531466621 | E61: 0.1336805259 | F61: 1
A63: Energy | B63: 1 J | C63: 1kJ | D63: 1 MJ | E63: 1Wh | F63: 1 kWh | G63: 1 Btu | H63: 1 MMBtu
A64: J | B64: 1 | C64: 1000 | D64: 1000000 | E64: 3600 | F64: 3600000 | G64: 1055.05585 | H64: 1055055850
A65: kJ | B65: 0.001 | C65: 1 | D65: 1000 | E65: 3.6 | F65: 3600 | G65: 1.05505585 | H65: 1055055.85
A66: MJ | B66: 1e-06 | C66: 0.001 | D66: 1 | E66: 0.0036 | F66: 3.6 | G66: 0.00105505585 | H66: 1055.05585
A67: Wh | B67: 0.0002777777778 | C67: 0.2777777778 | D67: 277.7777778 | E67: 1 | F67: 1000 | G67: 0.2930710694 | H67: 293071.0694
A68: kWh | B68: 2.777777778e-07 | C68: 0.0002777777778 | D68: 0.2777777778 | E68: 0.001 | F68: 1 | G68: 0.0002930710694 | H68: 293.0710694
A69: Btu | B69: 0.0009478171227 | C69: 0.9478171227 | D69: 947.8171227 | E69: 3.412141642 | F69: 3412.141642 | G69: 1 | H69: 1000000
A70: MMBtu | B70: 9.478171227e-10 | C70: 9.478171227e-07 | D70: 0.0009478171227 | E70: 3.412141642e-06 | F70: 0.003412141642 | G70: 1e-06 | H70: 1
A72: Indirect Land Use (ILUC) | B72: gCO2e/MJ
A73: Soybean | B73: 29.1
A74: Canola | B74: 14.5
A76: 5) Loss Factors
A77: Biodiesel | C77: Renewable Diesel
A78: Soybean
A79: Soybean BD | B79: 1.000038664 | C79: Soybean RD | D79: 1.000044883
A80: Canola
A81: Canola BD | B81: 1.000038664 | C81: Canola RD | D81: 1.000044883
A82: UCO
A83: UCO BD | B83: 1.000038664 | C83: UCO RD | D83: 1.000044883
A84: Tallow
A85: Tallow BD | B85: 1.000038664 | C85: Tallow RD | D85: 1.000044883
A86: Corn Oil
A87: Corn Oil BD | B87: 1.000038664 | C87: Corn Oil RD | D87: 1.000044883
B89: Soy Oil | C89: Canola | D89: Tallow | E89: UCO | F89: Corn Oil
A90: Oil Yield, lb oil/lb feedstock | B90: =References!C100 -> 0.2 | C90: =References!E100 -> 0.4733 | D90: =References!K100 -> 0.286 | E90: =References!G100 -> 0.236 | F90: =References!G100 -> 0.236

Sheet Report (hidden)
A1: SUMMARY OF THE FUEL PATHWAY
B2: Pathway Description | C2: New Certified CI | D2: Note
A3: =CONCATENATE("Applicant: ",#REF!) ->  | B3: xxx landfill gas to pipeline-quality biomethane; delivered via pipeline; compressed to CNG, liquefied in CA. A part of LNG is re-gasified and compressed to L-CNG | D3: Provisional pathways with ? (from which month to which month)
A4: =CONCATENATE("Location: ",#REF!) -> 
A5: Certified Date: | C5: TBD
A6: Carbon Intensity: | C6: =F62 -> 
A7: FPC Code: | C7: TBD
A8: Carbon Intensity: | C8: =G63 -> 
A9: FPC Code: | C9: TBD
A10: Carbon Intensity: | C10: =H64 -> 
A11: FPC Code: | C11: TBD
A12: User Inputs Parameters | B12: Units | C12: Input Values in CA-GREET2.0 | D12: Note | E12: Details CI Breakdown
A13: 1) Feedstock Production | F13: CNG | G13: LNG | H13: LCNG
A14: Electricity Mix for LFG Recovery | C14: =#REF! -> 
A15: Recovery Energy Efficiency | B15: % | C15: =#REF! ->  | E15: Biogas Recovery | F15: =#REF! ->  | G15: =#REF! ->  | H15: =#REF! -> 
A16: Raw Biogas Production | B16: MMBtu
A17: Methane content | B17: Mole % | C17: =#REF! -> 
A18: Electricity use | B18: kWh | C18: =#REF! -> 
A19: Landfill Gas Processing Efficiency | B19: % | C19: =#REF! ->  | E19: Biogas Processing | F19: =#REF! ->  | G19: =#REF! ->  | H19: =G19 -> 
A20: Biomethane Production | B20: MMBtu | C20: =#REF! -> 
A21: Methane content | B21: Mole % | C21: 0.98
A22: Biomethane Use in Flare | B22: MMBtu | C22: =#REF!/10^6 -> 
A23: Share | B23: % | C23: =#REF! -> 
A24: Fossil NG | B24: MMBtu | C24: =#REF! ->  | D24: for TOX use
A25: Share | B25: % | C25: =#REF! -> 
A26: Diesel | B26: Gallons | C26: =#REF! -> 
A27: Share | B27: % | C27: =#REF! -> 
A28: Propane (LPG) | B28: MMBtu | C28: =#REF! -> 
A29: Share | B29: % | C29: =#REF! -> 
A30: Electricity | B30: kWh | C30: =#REF! -> 
A31: Share | B31: % | C31: =#REF! -> 
A32: Leakage | B32: % | C32: =#REF! -> 
A33: Avoided Flaring Credit | B33: MMBtu | C33: =#REF! ->  | E33: Avoided Flaring Credit | F33: =#REF! ->  | G33: =#REF! ->  | H33: =#REF! -> 
A34: Electricity Mix for LFG Transmission | C34: 1-U.S. Average
A35: Pipeline Transport of Biomethane to CA | B35: miles | C35: =#REF! ->  | E35: Pipeline Transport | F35: =#REF! ->  | G35: =#REF! ->  | H35: =#REF! -> 
A37: 2) Fuel Production
A38: Electricity Mix for CNG Production | C38: =#REF! -> 
A39: a. CNG stations energy use: | E39: CNG Production | F39: =#REF! -> 
A40: Processed NG as feedstock | B40: ft3 | C40: =#REF! -> 
A41: CNG produced | B41: ft3 | C41: =#REF! -> 
A42: Compression Efficiency | C42: =#REF! -> 
A43: Natural Gas | B43: Btu | C43: 0
A44: Electricity | B44: kWh | C44: =#REF! -> 
A45: Feed Loss | B45: Btu | C45: 0
A46: b. LNG plant energy use
A47: Electricity Mix for LNG Production | C47: =#REF! -> 
A48: Processed NG as feedstock | B48: ft3 | C48: =#REF! ->  | E48: LNG Production | G48: =#REF! ->  | H48: =#REF! -> 
A49: LNG produced | B49: gallons | C49: =#REF! -> 
A50: Liquefaction Efficiency | C50: =#REF! -> 
A51: Natural Gas | B51: Btu/gal | C51: =#REF! -> 
A52: Electricity | B52: kWh/gal | C52: =#REF! -> 
A53: NG feed loss in liquefaction process | B53: Btu/gal | C53: 0
A54: c. L-CNG stations energy use
E55: Re-gasification | H55: =#REF! -> 
E56: Compression | H56: =#REF! -> 
A57: d. LNG transmission to LNG stations | E57: LNG Transport | G57: =#REF! ->  | H57: =#REF! -> 
A58: LNG by HD truck to LNG stations (10%) | B58: miles | C58: =#REF! ->  | E58: LNG Storage | G58: =#REF! ->  | H58: =#REF! -> 
A59: LNG by LNG truck to LNG stations (90%) | B59: miles | C59: =#REF! -> 
A60: e. Tailpipe Emissions | E60: CNG Tailpipe Emissions | F60: =#REF! ->  | H60: =#REF! -> 
E61: LNG Tailpipe Emissions | G61: =#REF! -> 
A62: Total CI | E62: Total CNG CI, g/MJ | F62: =SUM(F15:F61) -> 
G63: =SUM(G15:G62) -> 
H64: =SUM(H14:H63) -> 
A65: Operating Conditions: This is a sample only, appllicant has to enter their own Conditions 1. Except for periods of abnormal operations, such as planned maintenance or unpredictable, unavoidable, and uncontrollable force majeure events, the CI value specified in the application shall not be exceeded. 2. The recovery and processing efficiency levels at the yyy Landfill, state, shall remain at or above the levels specified in the xxx’s application1. In addition, the liquefaction efficiency at the zzz LNG plant and the compression efficiency level at the L-CNG stations in California shall remain at or above the levels specified in the application. Energy consumption values for these facilities are classified by the applicant as confidential business information. 3. Because the biomethane supplied under this pathway is commingled with fossil NG both when it enters the interstate pipeline system and when it enters xxx’s zzz liquefaction facility, xxx must maintain an accounting system that will enable it to demonstrate unequivocally at any time that every unit of biomethane-based transportation fuel sold and reported under the LCFS can be associated with an equal unit of biomethane purchased from the yyy Landfill. 4. Because xxx does not have two years of production data from the yyy Landfill processing plant, xxx will submit quarterly (effective the quarter after the original data was submitted production data until staff is in receipt of records covering a full two years of production data from the yyy Landfill processing plant. If these records indicate that one or more of the certified CIs shown in the table below are higher, staff may adjust the certified values upwards. 5. xxx must provide signed statements from yyy Landfill, state and any party to whom it conveys biomethane from the yyy LFG processing plant attesting under penalty of perjury under California law that all environmental attributes, including the right to generate credits under the LCFS, are exclusively reserved to xxx and that no party will claim or has claimed credit for volumes reported in California’s LCFS program under any other governmental program except the federal RFS.
A68: SUMMARY OF THE FUEL PATHWAY
A69: Application # | B69: Pathway Description | C69: New Certified CI | D69: Note
A70: Applicant: Corn Ethanol | B70: Corn Ethanol, Dry DGS, NG
A71: Location: City and State
A72: Certified Date: | C72: TBD
A73: Carbon Intensity: | C73: 41.49
A74: FPC Code: | C74: TBD
A75: Carbon Intensity: | C75: 45.31
A76: FPC Code: | C76: TBD
A79: User Inputs Parameters | B79: Units | C79: in 2.0 | D79: Note | E79: Details CI Breakdown
A80: 1) Feedstock Production | F80: Dry DGS | G80: Modified DGS | H80: Wet DGS
A81: Electricity Mix for Farming | C81: 8-SPNO
A82: Farming | E82: Farming | F82: =#REF! ->  | G82: 1.13 | H82: 1.13
A83: Bushels of Corn | B83: bushels | C83: =#REF! -> 
A84: Farming Energy | B84: Btu/bushel | C84: =#REF! -> 
A85: Fertilizers | E85: Fertilizers | F85: =#REF! -> 
A86: Nitrogen | B86: g/bushel | C86: 423.3
A87: P2O5 | B87: g/bushel | C87: 145.8
A88: K2O | B88: g/bushel | C88: 151.3
A89: CaCO3 | B89: g/bushel | C89: 1149.87
A90: Herbicide | B90: g/bushel | C90: 7
A91: Insecticide | B91: g/bushel | C91: 0.06
A92: N2O in Soil (in fertilizer and above/below ground) | E92: N2O in Soil | F92: =#REF! -> 
A93: Corn Transport | E93: Corn Transport | F93: =#REF! -> 
A94: by Medium Diesel Truck | B94: miles | C94: =#REF! -> 
A95: by Heavy Duty Diesel Truck | B95: miles | C95: =#REF! -> 
A96: by Rail | B96: miles | C96: =#REF! -> 
A97: Other modes | B97: miles
A98: Co-product Credit for Displacement | E98: Co-product Credit | F98: 33.43 | G98: 33.1 | H98: 33.1
A99: Dried Distiller Grains (DDGS) | B99: Tons | C99: =#REF! -> 
A100: Moisture content | B100: % | C100: =#REF! -> 
A101: Modified Distiller Grains (MDGS) | B101: Tons | C101: =#REF! -> 
A102: Moisture content | B102: % | C102: =#REF! -> 
A103: Wet Distiller Grains (WDGS) | B103: Tons | C103: =#REF! -> 
A104: Moisture content | B104: % | C104: =#REF! -> 
A105: Syrup | B105: Tons | C105: =#REF! -> 
A106: Moisture content | B106: % | C106: =#REF! -> 
A107: Corn Oil | B107: Tons | C107: =#REF! -> 
A108: Moisture content | B108: % | C108: =#REF! -> 
A109: Displacement Ratio
A110: Corn Displacement Ratio | B110: lb corn/lb DGS | C110: 0.781:1
A111: Soybean Meal Displacement Ratio | B111: lb corn/lb SBM | C111: 0.307:1
A112: Urea Displacement Ratio | B112: lb corn/lb Urea | C112: 0.023:1
A113: DGS Yield | B113: lb of bone dry DGS/gal EtOH | C113: =#REF! -> 
A114: 2) Fuel Production
A115: Electricity Mix for Fuel Production | C115: 3-CAMX
A116: Ethanol Yield | B116: gal/bushel | C116: =#REF! ->  | E116: Ethanol Production | F116: 2.77
B117: ft3 | C117: =#REF! -> 
B118: ft3 | C118: =#REF! -> 
C119: 0.9743
B120: Btu | C120: =#REF! -> 
B121: kWh | C121: =#REF! -> 
A122: Feed Loss | B122: Btu | C122: 0
A123: b. LNG plant energy use
A124: Processed NG as feedstock | B124: ft3 | C124: =#REF! ->  | D124: Calculated | E124: LNG Production | F124: 7.06 | G124: 7.06 | H124: 7.06
A125: LNG produced | B125: gallons | C125: =#REF! ->  | D125: Calculated
A126: Liquefaction Efficiency | C126: 0.9415
A127: Natural Gas | B127: Btu/gal | C127: 0
A128: LFG (for on-site liq.) | B128: Btu/gal | C128: 0
A129: Electricity | B129: kWh/gal | C129: 1.3598
A130: NG feed loss in liquefaction process | B130: Btu/gal | C130: 0
A131: c. L-CNG stations energy use
A132: LNG used as feedstock | B132: gallons | C132: 49996745 | D132: Calculated | E132: Re-gasification | H132: 0.68
A133: Re-gasified NG produced, ft3 | B133: ft3
A134: CNG produced, ft3 | C134: 3800362957 | D134: Calculated | E134: Compression | H134: 2.77
A135: NG use, | B135: MMBtu in LHV | C135: 37358
A136: Electricity use | B136: kWh | C136: 28806751
A137: d. LNG transmission to CNG stations | E137: LNG Transport | F137: 0.37 | G137: 0.36 | H137: 0.36
A138: LNG by HD truck to LNG stations | B138: miles | C138: 50 | E138: LNG Storage | F138: 0.83 | G138: 0.83 | H138: 0.83
A140: e. Tailpipe Emissions | E140: CNG Tailpipe Emissions | F140: 60.69 | H140: 60.69
E141: LNG Tailpipe Emissions | G141: 60.92
E142: Total CNG CI, g/MJ | F142: 41.49
A143: Total CI | E143: Total LNG CI, g/MJ | G143: 45.31
E144: Total L-CNG CI, g/MJ | H144: 48.53
